Workbook

Sheet Инструкция

Sheet Титульный
D2: Версия 1.0
F3: 2019
B4: ="Информация для расчета ставок платы за технологическое присоединение к электрическим сетям на " & D10 & " год (фактические данные предоставляются за " & D10-2 & " г.)" -> Информация для расчета ставок платы за технологическое присоединение к электрическим сетям на 2025 год (фактические данные предоставляются за 2023 г.) | F4: 2020
F5: 2021
F6: 2022
B8: Наименование организации | D8: ООО "Сургутские городские электрические сети"
B10: Период регулирования | D10: 2025
B12: Ответственный за заполнение формы | D12: С1,С2,С3,С4.1-4.3,С4.4-4.6,С5,С6,С7,С8-Ведущий инженер Ходин В.И., Приложение-Начальник отдела Ваньшина Р.А.
B14: Телефон исполнителя | D14: 8 (3462) 52-46-50
B16: Электонная почта | D16: khodin_VI@surgutges.ru
B18: Дата заполнения | D18: 15.08.2024г.

Sheet Ставка 1.
B1: ="Расходы на выполнение мероприятий по технологическому присоединению, предусмотренным подпунктами 'а' и 'в' пункта 16 Методических указаний, за "& Титульный!D10-2 & " гг." -> Расходы на выполнение мероприятий по технологическому присоединению, предусмотренным подпунктами 'а' и 'в' пункта 16 Методических указаний, за 2023 гг.
B5: N п/п | C5: Наименование мероприятий | D5: Информация для расчета стандартизированной тарифной ставки С1 | G5: Год | H5: Расходы на одно присоединение (руб. на одно ТП), (без НДС)
D6: Расходы по каждому мероприятию (руб.), (без НДС) | E6: Количество технологических присоединений (шт.) | F6: Объем максимальной мощности (кВт)
B7: 1 | C7: 2 | D7: 3 | E7: 4 | F7: 5 | G7: 6 | H7: 7
E8: =Титульный!D10-4 -> 2021
B9: 1 | C9: Подготовка и выдача сетевой организацией технических условий Заявителю, в том числе: | D9: =SUM(D10:D18) -> 0 | E9: =SUM(E10:E18) -> 0 | F9: =SUM(F10:F18) -> 0 | G9: =Титульный!$D$10-4 -> 2021 | H9: =IFERROR(D9/E9,"Заполните все столбцы") -> Заполните все столбцы
B10: 1.1 | C10: п.12(1). Юридические лице или индивидуальные предприниматели в целях технологического присоединения по второй или третьей категории надежности энергопринимающих устройств, максимальная мощность которых составляет до 150 кВт включительно, в случае если технологическое присоединение энергопринимающих устройств таких заявителей осуществляется на уровне напряжения 0,4 кВ и ниже | G10: =Титульный!$D$10-4 -> 2021 | H10: =IFERROR(D10/E10,"Заполните все столбцы") -> Заполните все столбцы
B11: 1.2 | C11: п.13(2). Юридические лица или индивидуальные предприниматели в целях технологического присоединения объектов микрогенерации к объектам электросетевого хозяйства с уровнем напряжения до 1000 В, в случае если технологическое присоединение энергопринимающих устройств таких заявителей осуществляется на уровне напряжения 0,4 кВ и ниже | G11: =Титульный!$D$10-4 -> 2021 | H11: Заполните все столбцы
B12: 1.3 | C12: п.13(3). Юридические лица или индивидуальные предприниматели в целях одновременного технологического присоединения к объектам электросетевого хозяйства с уровнем напряжения до 1000 В энергопринимающих устройств, максимальная мощность которых составляет до 150 кВт включительно (с учетом ранее присоединенных в данной точке присоединения энергопринимающих устройств), электроснабжение которых предусматривается по одному источнику, и объектов микрогенерации, в случае если технологическое присоединение энергопринимающих устройств таких заявителей осуществляется на уровне напряжения 0,4 кВ и ниже | G12: =Титульный!$D$10-4 -> 2021 | H12: Заполните все столбцы
B13: 1.4 | C13: п.13(4). Физические лица в целях технологического присоединения объекта микрогенерации к объектам электросетевого хозяйства с уровнем напряжения до 1000 В, в случае если технологическое присоединение энергопринимающих устройств таких заявителей осуществляется на уровне напряжения 0,4 кВ и ниже | G13: =Титульный!$D$10-4 -> 2021 | H13: Заполните все столбцы
B14: 1.5 | C14: п.13(5). Физические лица в целях одновременного технологического присоединения к объектам электросетевого хозяйства с уровнем напряжения до 1000 В энергопринимающих устройств, максимальная мощность которых составляет до 150 кВт включительно (с учетом ранее присоединенных в данной точке присоединения энергопринимающих устройств), которые используются для бытовых и иных нужд, не связанных с осуществлением предпринимательской деятельности, и электроснабжение которых предусматривается по одному источнику, и объектов микрогенерации, в случае если технологическое присоединение энергопринимающих устройств таких заявителей осуществляется на уровне напряжения 0,4 кВ и ниже | G14: =Титульный!$D$10-4 -> 2021 | H14: Заполните все столбцы
B15: 1.6 | C15: п.14. Физические лица в целях технологического присоединения энергопринимающих устройств, максимальная мощность которых составляет до 15 кВт включительно (с учетом ранее присоединенных в данной точке присоединения энергопринимающих устройств), которые используются для бытовых и иных нужд, не связанных с осуществлением предпринимательской деятельности, и электроснабжение которых предусматривается по одному источнику, в случае если технологическое присоединение энергопринимающих устройств таких заявителей осуществляется на уровне напряжения 0,4 кВ и ниже | G15: =Титульный!$D$10-4 -> 2021 | H15: Заполните все столбцы
B16: 1.7 | C16: Заявители, не относящиеся к вышеуказннаыми категориям свыше 15 кВт до 150 кВт | G16: =Титульный!$D$10-4 -> 2021 | H16: =IFERROR(D16/E16,"Заполните все столбцы") -> Заполните все столбцы
B17: 1.8 | C17: Заявители, не относящиеся к вышеуказннаыми категориям свыше 150 кВт до 670 кВт | G17: =Титульный!$D$10-4 -> 2021 | H17: =IFERROR(D17/E17,"Заполните все столбцы") -> Заполните все столбцы
B18: 1.9 | C18: Заявители, не относящиеся к вышеуказннаыми категориям свыше 670 кВт | G18: =Титульный!$D$10-4 -> 2021 | H18: Заполните все столбцы
B19: 2 | C19: Проверка сетевой организацией выполнения технических условий Заявителем | D19: =D20+D27 -> 0 | E19: =E20+E27 -> 0 | F19: =F20+F27 -> 0 | G19: =Титульный!$D$10-4 -> 2021 | H19: Заполните все столбцы
B20: 2.1 | C20: Выдача сетевой организацией уведомления об обеспечении сетевой организацией возможности присоединения к электрическим сетям Заявителям, указанным в абзаце шестом пункта 24 Методических указаний по определению размера платы за технологическое присоединение к электрическим сетям | D20: =SUM(D21:D26) -> 0 | E20: =SUM(E21:E26) -> 0 | F20: =SUM(F21:F26) -> 0 | G20: =Титульный!$D$10-4 -> 2021 | H20: Заполните все столбцы
B21: 2.1.1 | C21: п.12(1). Юридические лице или индивидуальные предприниматели в целях технологического присоединения по второй или третьей категории надежности энергопринимающих устройств, максимальная мощность которых составляет до 150 кВт включительно, в случае если технологическое присоединение энергопринимающих устройств таких заявителей осуществляется на уровне напряжения 0,4 кВ и ниже | G21: =Титульный!$D$10-4 -> 2021 | H21: =IFERROR(D21/E21,"Заполните все столбцы") -> Заполните все столбцы
B22: 2.1.2 | C22: п.13(2). Юридические лица или индивидуальные предприниматели в целях технологического присоединения объектов микрогенерации к объектам электросетевого хозяйства с уровнем напряжения до 1000 В, в случае если технологическое присоединение энергопринимающих устройств таких заявителей осуществляется на уровне напряжения 0,4 кВ и ниже | G22: =Титульный!$D$10-4 -> 2021 | H22: =IFERROR(D22/E22,"Заполните все столбцы") -> Заполните все столбцы
B23: 2.1.3 | C23: п.13(3). Юридические лица или индивидуальные предприниматели в целях одновременного технологического присоединения к объектам электросетевого хозяйства с уровнем напряжения до 1000 В энергопринимающих устройств, максимальная мощность которых составляет до 150 кВт включительно (с учетом ранее присоединенных в данной точке присоединения энергопринимающих устройств), электроснабжение которых предусматривается по одному источнику, и объектов микрогенерации, в случае если технологическое присоединение энергопринимающих устройств таких заявителей осуществляется на уровне напряжения 0,4 кВ и ниже | G23: =Титульный!$D$10-4 -> 2021 | H23: =IFERROR(D23/E23,"Заполните все столбцы") -> Заполните все столбцы
B24: 2.1.4 | C24: п.13(4). Физические лица в целях технологического присоединения объекта микрогенерации к объектам электросетевого хозяйства с уровнем напряжения до 1000 В, в случае если технологическое присоединение энергопринимающих устройств таких заявителей осуществляется на уровне напряжения 0,4 кВ и ниже | G24: =Титульный!$D$10-4 -> 2021 | H24: =IFERROR(D24/E24,"Заполните все столбцы") -> Заполните все столбцы
B25: 2.1.5 | C25: п.13(5). Физические лица в целях одновременного технологического присоединения к объектам электросетевого хозяйства с уровнем напряжения до 1000 В энергопринимающих устройств, максимальная мощность которых составляет до 150 кВт включительно (с учетом ранее присоединенных в данной точке присоединения энергопринимающих устройств), которые используются для бытовых и иных нужд, не связанных с осуществлением предпринимательской деятельности, и электроснабжение которых предусматривается по одному источнику, и объектов микрогенерации, в случае если технологическое присоединение энергопринимающих устройств таких заявителей осуществляется на уровне напряжения 0,4 кВ и ниже | G25: =Титульный!$D$10-4 -> 2021 | H25: =IFERROR(D25/E25,"Заполните все столбцы") -> Заполните все столбцы
B26: 2.1.6 | C26: п.14. Физические лица в целях технологического присоединения энергопринимающих устройств, максимальная мощность которых составляет до 15 кВт включительно (с учетом ранее присоединенных в данной точке присоединения энергопринимающих устройств), которые используются для бытовых и иных нужд, не связанных с осуществлением предпринимательской деятельности, и электроснабжение которых предусматривается по одному источнику, в случае если технологическое присоединение энергопринимающих устройств таких заявителей осуществляется на уровне напряжения 0,4 кВ и ниже | G26: =Титульный!$D$10-4 -> 2021 | H26: Заполните все столбцы
B27: 2.2 | C27: Проверка сетевой организацией выполнения технических условий Заявителями, указанными в абзаце седьмом пункта 24 Методических указаний по определению размера платы за технологическое присоединение к электрическим сетям | D27: =SUM(D28:D30) -> 0 | E27: =SUM(E28:E30) -> 0 | F27: =SUM(F28:F30) -> 0 | G27: =Титульный!$D$10-4 -> 2021 | H27: Заполните все столбцы
B28: 2.2.1 | C28: Заявители, не относящиеся к вышеуказннаыми категориям свыше 15 кВт до 150 кВт | G28: =Титульный!$D$10-4 -> 2021 | H28: =IFERROR(D28/E28,"Заполните все столбцы") -> Заполните все столбцы
B29: 2.2.2 | C29: Заявители, не относящиеся к вышеуказннаыми категориям свыше 150 кВт до 670 кВт | G29: =Титульный!$D$10-4 -> 2021 | H29: =IFERROR(D29/E29,"Заполните все столбцы") -> Заполните все столбцы
B30: 2.2.3 | C30: Заявители, не относящиеся к вышеуказннаыми категориям свыше 670 кВт | G30: =Титульный!$D$10-4 -> 2021 | H30: Заполните все столбцы
E31: =Титульный!D10-3 -> 2022
B32: 1 | C32: Подготовка и выдача сетевой организацией технических условий Заявителю, в том числе: | D32: =SUM(D33:D41) -> 0 | E32: =SUM(E33:E41) -> 0 | F32: =SUM(F33:F41) -> 0 | G32: =Титульный!$D$10-3 -> 2022 | H32: =IFERROR(D32/E32,"Заполните все столбцы") -> Заполните все столбцы
B33: 1.1 | C33: п.12(1). Юридические лице или индивидуальные предприниматели в целях технологического присоединения по второй или третьей категории надежности энергопринимающих устройств, максимальная мощность которых составляет до 150 кВт включительно, в случае если технологическое присоединение энергопринимающих устройств таких заявителей осуществляется на уровне напряжения 0,4 кВ и ниже | G33: =Титульный!$D$10-3 -> 2022 | H33: =IFERROR(D33/E33,"Заполните все столбцы") -> Заполните все столбцы
B34: 1.2 | C34: п.13(2). Юридические лица или индивидуальные предприниматели в целях технологического присоединения объектов микрогенерации к объектам электросетевого хозяйства с уровнем напряжения до 1000 В, в случае если технологическое присоединение энергопринимающих устройств таких заявителей осуществляется на уровне напряжения 0,4 кВ и ниже | G34: =Титульный!$D$10-3 -> 2022 | H34: Заполните все столбцы
B35: 1.3 | C35: п.13(3). Юридические лица или индивидуальные предприниматели в целях одновременного технологического присоединения к объектам электросетевого хозяйства с уровнем напряжения до 1000 В энергопринимающих устройств, максимальная мощность которых составляет до 150 кВт включительно (с учетом ранее присоединенных в данной точке присоединения энергопринимающих устройств), электроснабжение которых предусматривается по одному источнику, и объектов микрогенерации, в случае если технологическое присоединение энергопринимающих устройств таких заявителей осуществляется на уровне напряжения 0,4 кВ и ниже | G35: =Титульный!$D$10-3 -> 2022 | H35: Заполните все столбцы
B36: 1.4 | C36: п.13(4). Физические лица в целях технологического присоединения объекта микрогенерации к объектам электросетевого хозяйства с уровнем напряжения до 1000 В, в случае если технологическое присоединение энергопринимающих устройств таких заявителей осуществляется на уровне напряжения 0,4 кВ и ниже | G36: =Титульный!$D$10-3 -> 2022 | H36: Заполните все столбцы
B37: 1.5 | C37: п.13(5). Физические лица в целях одновременного технологического присоединения к объектам электросетевого хозяйства с уровнем напряжения до 1000 В энергопринимающих устройств, максимальная мощность которых составляет до 150 кВт включительно (с учетом ранее присоединенных в данной точке присоединения энергопринимающих устройств), которые используются для бытовых и иных нужд, не связанных с осуществлением предпринимательской деятельности, и электроснабжение которых предусматривается по одному источнику, и объектов микрогенерации, в случае если технологическое присоединение энергопринимающих устройств таких заявителей осуществляется на уровне напряжения 0,4 кВ и ниже | G37: =Титульный!$D$10-3 -> 2022 | H37: Заполните все столбцы
B38: 1.6 | C38: п.14. Физические лица в целях технологического присоединения энергопринимающих устройств, максимальная мощность которых составляет до 15 кВт включительно (с учетом ранее присоединенных в данной точке присоединения энергопринимающих устройств), которые используются для бытовых и иных нужд, не связанных с осуществлением предпринимательской деятельности, и электроснабжение которых предусматривается по одному источнику, в случае если технологическое присоединение энергопринимающих устройств таких заявителей осуществляется на уровне напряжения 0,4 кВ и ниже | G38: =Титульный!$D$10-3 -> 2022 | H38: Заполните все столбцы
B39: 1.7 | C39: Заявители, не относящиеся к вышеуказннаыми категориям свыше 15 кВт до 150 кВт | G39: =Титульный!$D$10-3 -> 2022 | H39: Заполните все столбцы
B40: 1.8 | C40: Заявители, не относящиеся к вышеуказннаыми категориям свыше 150 кВт до 670 кВт | G40: =Титульный!$D$10-3 -> 2022 | H40: Заполните все столбцы
B41: 1.9 | C41: Заявители, не относящиеся к вышеуказннаыми категориям свыше 670 кВт | G41: =Титульный!$D$10-3 -> 2022 | H41: Заполните все столбцы
B42: 2 | C42: Проверка сетевой организацией выполнения технических условий Заявителем | D42: =D43+D50 -> 0 | E42: =E43+E50 -> 0 | F42: =F43+F50 -> 0 | G42: =Титульный!$D$10-3 -> 2022 | H42: Заполните все столбцы
B43: 2.1 | C43: Выдача сетевой организацией уведомления об обеспечении сетевой организацией возможности присоединения к электрическим сетям Заявителям, указанным в абзаце шестом пункта 24 Методических указаний по определению размера платы за технологическое присоединение к электрическим сетям | D43: =SUM(D44:D49) -> 0 | E43: =SUM(E44:E49) -> 0 | F43: =SUM(F44:F49) -> 0 | G43: =Титульный!$D$10-3 -> 2022 | H43: Заполните все столбцы
B44: 2.1.1 | C44: п.12(1). Юридические лице или индивидуальные предприниматели в целях технологического присоединения по второй или третьей категории надежности энергопринимающих устройств, максимальная мощность которых составляет до 150 кВт включительно, в случае если технологическое присоединение энергопринимающих устройств таких заявителей осуществляется на уровне напряжения 0,4 кВ и ниже | G44: =Титульный!$D$10-3 -> 2022 | H44: Заполните все столбцы
B45: 2.1.2 | C45: п.13(2). Юридические лица или индивидуальные предприниматели в целях технологического присоединения объектов микрогенерации к объектам электросетевого хозяйства с уровнем напряжения до 1000 В, в случае если технологическое присоединение энергопринимающих устройств таких заявителей осуществляется на уровне напряжения 0,4 кВ и ниже | G45: =Титульный!$D$10-3 -> 2022 | H45: Заполните все столбцы
B46: 2.1.3 | C46: п.13(3). Юридические лица или индивидуальные предприниматели в целях одновременного технологического присоединения к объектам электросетевого хозяйства с уровнем напряжения до 1000 В энергопринимающих устройств, максимальная мощность которых составляет до 150 кВт включительно (с учетом ранее присоединенных в данной точке присоединения энергопринимающих устройств), электроснабжение которых предусматривается по одному источнику, и объектов микрогенерации, в случае если технологическое присоединение энергопринимающих устройств таких заявителей осуществляется на уровне напряжения 0,4 кВ и ниже | G46: =Титульный!$D$10-3 -> 2022 | H46: Заполните все столбцы
B47: 2.1.4 | C47: п.13(4). Физические лица в целях технологического присоединения объекта микрогенерации к объектам электросетевого хозяйства с уровнем напряжения до 1000 В, в случае если технологическое присоединение энергопринимающих устройств таких заявителей осуществляется на уровне напряжения 0,4 кВ и ниже | G47: =Титульный!$D$10-3 -> 2022 | H47: Заполните все столбцы
B48: 2.1.5 | C48: п.13(5). Физические лица в целях одновременного технологического присоединения к объектам электросетевого хозяйства с уровнем напряжения до 1000 В энергопринимающих устройств, максимальная мощность которых составляет до 150 кВт включительно (с учетом ранее присоединенных в данной точке присоединения энергопринимающих устройств), которые используются для бытовых и иных нужд, не связанных с осуществлением предпринимательской деятельности, и электроснабжение которых предусматривается по одному источнику, и объектов микрогенерации, в случае если технологическое присоединение энергопринимающих устройств таких заявителей осуществляется на уровне напряжения 0,4 кВ и ниже | G48: =Титульный!$D$10-3 -> 2022 | H48: Заполните все столбцы
B49: 2.1.6 | C49: п.14. Физические лица в целях технологического присоединения энергопринимающих устройств, максимальная мощность которых составляет до 15 кВт включительно (с учетом ранее присоединенных в данной точке присоединения энергопринимающих устройств), которые используются для бытовых и иных нужд, не связанных с осуществлением предпринимательской деятельности, и электроснабжение которых предусматривается по одному источнику, в случае если технологическое присоединение энергопринимающих устройств таких заявителей осуществляется на уровне напряжения 0,4 кВ и ниже | G49: =Титульный!$D$10-3 -> 2022 | H49: Заполните все столбцы
B50: 2.2 | C50: Проверка сетевой организацией выполнения технических условий Заявителями, указанными в абзаце седьмом пункта 24 Методических указаний по определению размера платы за технологическое присоединение к электрическим сетям | D50: =SUM(D51:D53) -> 0 | E50: =SUM(E51:E53) -> 0 | F50: =SUM(F51:F53) -> 0 | G50: =Титульный!$D$10-3 -> 2022 | H50: Заполните все столбцы
B51: 2.2.1 | C51: Заявители, не относящиеся к вышеуказннаыми категориям свыше 15 кВт до 150 кВт | G51: =Титульный!$D$10-3 -> 2022 | H51: Заполните все столбцы
B52: 2.2.2 | C52: Заявители, не относящиеся к вышеуказннаыми категориям свыше 150 кВт до 670 кВт | G52: =Титульный!$D$10-3 -> 2022 | H52: Заполните все столбцы
B53: 2.2.3 | C53: Заявители, не относящиеся к вышеуказннаыми категориям свыше 670 кВт | G53: =Титульный!$D$10-3 -> 2022 | H53: Заполните все столбцы
E54: =Титульный!D10-2 -> 2023
B55: 1 | C55: Подготовка и выдача сетевой организацией технических условий Заявителю, в том числе: | D55: =SUM(D56:D64) -> 2764918.03 | E55: =SUM(E56:E64) -> 60 | F55: =SUM(F56:F64) -> 30836.1 | G55: =Титульный!$D$10-2 -> 2023 | H55: =IFERROR(D55/E55,"Заполните все столбцы") -> 46081.96717
B56: 1.1 | C56: п.12(1). Юридические лице или индивидуальные предприниматели в целях технологического присоединения по второй или третьей категории надежности энергопринимающих устройств, максимальная мощность которых составляет до 150 кВт включительно, в случае если технологическое присоединение энергопринимающих устройств таких заявителей осуществляется на уровне напряжения 0,4 кВ и ниже | D56: 1305017.46 | E56: 38 | F56: 3086.42 | G56: =Титульный!$D$10-2 -> 2023 | H56: =IFERROR(D56/E56,"Заполните все столбцы") -> 34342.56474
B57: 1.2 | C57: п.13(2). Юридические лица или индивидуальные предприниматели в целях технологического присоединения объектов микрогенерации к объектам электросетевого хозяйства с уровнем напряжения до 1000 В, в случае если технологическое присоединение энергопринимающих устройств таких заявителей осуществляется на уровне напряжения 0,4 кВ и ниже | G57: =Титульный!$D$10-2 -> 2023 | H57: Заполните все столбцы
B58: 1.3 | C58: п.13(3). Юридические лица или индивидуальные предприниматели в целях одновременного технологического присоединения к объектам электросетевого хозяйства с уровнем напряжения до 1000 В энергопринимающих устройств, максимальная мощность которых составляет до 150 кВт включительно (с учетом ранее присоединенных в данной точке присоединения энергопринимающих устройств), электроснабжение которых предусматривается по одному источнику, и объектов микрогенерации, в случае если технологическое присоединение энергопринимающих устройств таких заявителей осуществляется на уровне напряжения 0,4 кВ и ниже | G58: =Титульный!$D$10-2 -> 2023 | H58: Заполните все столбцы
B59: 1.4 | C59: п.13(4). Физические лица в целях технологического присоединения объекта микрогенерации к объектам электросетевого хозяйства с уровнем напряжения до 1000 В, в случае если технологическое присоединение энергопринимающих устройств таких заявителей осуществляется на уровне напряжения 0,4 кВ и ниже | G59: =Титульный!$D$10-2 -> 2023 | H59: Заполните все столбцы
B60: 1.5 | C60: п.13(5). Физические лица в целях одновременного технологического присоединения к объектам электросетевого хозяйства с уровнем напряжения до 1000 В энергопринимающих устройств, максимальная мощность которых составляет до 150 кВт включительно (с учетом ранее присоединенных в данной точке присоединения энергопринимающих устройств), которые используются для бытовых и иных нужд, не связанных с осуществлением предпринимательской деятельности, и электроснабжение которых предусматривается по одному источнику, и объектов микрогенерации, в случае если технологическое присоединение энергопринимающих устройств таких заявителей осуществляется на уровне напряжения 0,4 кВ и ниже | G60: =Титульный!$D$10-2 -> 2023 | H60: Заполните все столбцы
B61: 1.6 | C61: п.14. Физические лица в целях технологического присоединения энергопринимающих устройств, максимальная мощность которых составляет до 15 кВт включительно (с учетом ранее присоединенных в данной точке присоединения энергопринимающих устройств), которые используются для бытовых и иных нужд, не связанных с осуществлением предпринимательской деятельности, и электроснабжение которых предусматривается по одному источнику, в случае если технологическое присоединение энергопринимающих устройств таких заявителей осуществляется на уровне напряжения 0,4 кВ и ниже | G61: =Титульный!$D$10-2 -> 2023 | H61: Заполните все столбцы
B62: 1.7 | C62: Заявители, не относящиеся к вышеуказннаыми категориям свыше 15 кВт до 150 кВт | D62: 304512.67 | E62: 7 | F62: 354 | G62: =Титульный!$D$10-2 -> 2023 | H62: 43501.81
B63: 1.8 | C63: Заявители, не относящиеся к вышеуказннаыми категориям свыше 150 кВт до 670 кВт | D63: 371045.9 | E63: 12 | F63: 3310.68 | G63: =Титульный!$D$10-2 -> 2023 | H63: 30920.49167
B64: 1.9 | C64: Заявители, не относящиеся к вышеуказннаыми категориям свыше 670 кВт | D64: 784342 | E64: 3 | F64: 24085 | G64: =Титульный!$D$10-2 -> 2023 | H64: 261447.3333
B65: 2 | C65: Проверка сетевой организацией выполнения технических условий Заявителем | D65: =D66+D73 -> 911921.75 | E65: =E66+E73 -> 25 | F65: =F66+F73 -> 5676.35 | G65: =Титульный!$D$10-2 -> 2023 | H65: 36476.87
B66: 2.1 | C66: Выдача сетевой организацией уведомления об обеспечении сетевой организацией возможности присоединения к электрическим сетям Заявителям, указанным в абзаце шестом пункта 24 Методических указаний по определению размера платы за технологическое присоединение к электрическим сетям | D66: =SUM(D67:D72) -> 244556 | E66: =SUM(E67:E72) -> 6 | F66: =SUM(F67:F72) -> 491 | G66: =Титульный!$D$10-2 -> 2023 | H66: 40759.33333
B67: 2.1.1 | C67: п.12(1). Юридические лице или индивидуальные предприниматели в целях технологического присоединения по второй или третьей категории надежности энергопринимающих устройств, максимальная мощность которых составляет до 150 кВт включительно, в случае если технологическое присоединение энергопринимающих устройств таких заявителей осуществляется на уровне напряжения 0,4 кВ и ниже | D67: 244556 | E67: 6 | F67: 491 | G67: =Титульный!$D$10-2 -> 2023 | H67: 40759.33333
B68: 2.1.2 | C68: п.13(2). Юридические лица или индивидуальные предприниматели в целях технологического присоединения объектов микрогенерации к объектам электросетевого хозяйства с уровнем напряжения до 1000 В, в случае если технологическое присоединение энергопринимающих устройств таких заявителей осуществляется на уровне напряжения 0,4 кВ и ниже | G68: =Титульный!$D$10-2 -> 2023 | H68: Заполните все столбцы
B69: 2.1.3 | C69: п.13(3). Юридические лица или индивидуальные предприниматели в целях одновременного технологического присоединения к объектам электросетевого хозяйства с уровнем напряжения до 1000 В энергопринимающих устройств, максимальная мощность которых составляет до 150 кВт включительно (с учетом ранее присоединенных в данной точке присоединения энергопринимающих устройств), электроснабжение которых предусматривается по одному источнику, и объектов микрогенерации, в случае если технологическое присоединение энергопринимающих устройств таких заявителей осуществляется на уровне напряжения 0,4 кВ и ниже | G69: =Титульный!$D$10-2 -> 2023 | H69: Заполните все столбцы
B70: 2.1.4 | C70: п.13(4). Физические лица в целях технологического присоединения объекта микрогенерации к объектам электросетевого хозяйства с уровнем напряжения до 1000 В, в случае если технологическое присоединение энергопринимающих устройств таких заявителей осуществляется на уровне напряжения 0,4 кВ и ниже | G70: =Титульный!$D$10-2 -> 2023 | H70: Заполните все столбцы
B71: 2.1.5 | C71: п.13(5). Физические лица в целях одновременного технологического присоединения к объектам электросетевого хозяйства с уровнем напряжения до 1000 В энергопринимающих устройств, максимальная мощность которых составляет до 150 кВт включительно (с учетом ранее присоединенных в данной точке присоединения энергопринимающих устройств), которые используются для бытовых и иных нужд, не связанных с осуществлением предпринимательской деятельности, и электроснабжение которых предусматривается по одному источнику, и объектов микрогенерации, в случае если технологическое присоединение энергопринимающих устройств таких заявителей осуществляется на уровне напряжения 0,4 кВ и ниже | G71: =Титульный!$D$10-2 -> 2023 | H71: Заполните все столбцы
B72: 2.1.6 | C72: п.14. Физические лица в целях технологического присоединения энергопринимающих устройств, максимальная мощность которых составляет до 15 кВт включительно (с учетом ранее присоединенных в данной точке присоединения энергопринимающих устройств), которые используются для бытовых и иных нужд, не связанных с осуществлением предпринимательской деятельности, и электроснабжение которых предусматривается по одному источнику, в случае если технологическое присоединение энергопринимающих устройств таких заявителей осуществляется на уровне напряжения 0,4 кВ и ниже | G72: =Титульный!$D$10-2 -> 2023 | H72: Заполните все столбцы
B73: 2.2 | C73: Проверка сетевой организацией выполнения технических условий Заявителями, указанными в абзаце седьмом пункта 24 Методических указаний по определению размера платы за технологическое присоединение к электрическим сетям | D73: =SUM(D74:D76) -> 667365.75 | E73: =SUM(E74:E76) -> 19 | F73: =SUM(F74:F76) -> 5185.35 | G73: =Титульный!$D$10-2 -> 2023 | H73: 35124.51316
B74: 2.2.1 | C74: Заявители, не относящиеся к вышеуказннаыми категориям свыше 15 кВт до 150 кВт | D74: 372907.67 | E74: 11 | F74: 440 | G74: =Титульный!$D$10-2 -> 2023 | H74: 33900.69727
B75: 2.2.2 | C75: Заявители, не относящиеся к вышеуказннаыми категориям свыше 150 кВт до 670 кВт | D75: 118349.28 | E75: 5 | F75: 1101.15 | G75: =Титульный!$D$10-2 -> 2023 | H75: 23669.856
B76: 2.2.3 | C76: Заявители, не относящиеся к вышеуказннаыми категориям свыше 670 кВт | D76: 176108.8 | E76: 3 | F76: 3644.2 | G76: =Титульный!$D$10-2 -> 2023 | H76: 58702.93333

Sheet Ставка 2. (ВЛ)
C2: Расходы на строительство введенных в эксплуатацию объектов электросетевого хозяйства для целей технологического присоединения и для целей реализации иных мероприятий инвестиционной программы территориальной сетевой организации
C6: ДЛЯ НАСЕЛЕННЫХ ПУНКТОВ ВСЕХ ТЕРРИТОРИЙ
C8: N п/п | D8: Технический код ставки | E8: Обозначение ставки | F8: Наименование ставки | G8: Объект электросетевого хозяйства | H8: Территория | I8: Опоры | J8: Изоляция | K8: Материал провода | L8: Сечение | M8: Количество цепей | N8: Напряжение | O8: Год ввода объекта | P8: Протяженность линий электропередачи, км | Q8: Общие расходы на строительство объекта, руб. (без НДС) | R8: Расходы на строительство единицы ВЛ, руб./км | S8: Наименование папки | T8: Источник финансирования
C9: 1 | D9: =C$9+1 -> 2 | E9: 3 | F9: 4 | G9: 5 | H9: 6 | I9: 7 | J9: =I$9+1 -> 8 | K9: =J$9+1 -> 9 | L9: 10 | M9: 11 | N9: 12 | O9: 13 | P9: 14 | Q9: =P$9+1 -> 15 | R9: =Q$9+1 -> 16 | S9: =R$9+1 -> 17 | T9: =S$9+1 -> 18
C10: 2. | L10: Строительство воздушных линий
B11: X | C11: =ROW($C11)-12 -> -1 | D11: =IF(AND(I11="2) Металлические",OR(N11="3) 27,5 - 60 кВ",N11="4) 110 кВ и выше")),"Заполните все столбцы",IF(AND(I11="2.1) Металлические, за исключением многогранных",OR(N11="1) 0,4 кВ и ниже",N11="2) 1 - 20 кВ")),"Заполните все столбцы",IF(AND(I11="2.2) Металлические многогранные",OR(N11="1) 0,4 кВ и ниже",N11="2) 1 - 20 кВ")),"Заполните все столбцы",IF(AND(OR(I11="2.1) Металлические, за исключением многогранных"),OR(N11="3) 27,5 - 60 кВ",N11="4) 110 кВ и выше")),IF(OR($I11="",$J11="",$K11="",$L11="",$M11="",$N11=""),"Заполните все столбцы","2."&LEFT($I11,1)&"."&LEFT($J11,1)&"."&LEFT($K11,1)&"."&LEFT($L11,1)&"."&LEFT($M11,1)&"."&"1"),IF(AND(OR(I11="2.2) Металлические многогранные"),OR(N11="3) 27,5 - 60 кВ",N11="4) 110 кВ и выше")),IF(OR($I11="",$J11="",$K11="",$L11="",$M11="",$N11=""),"Заполните все столбцы","2."&LEFT($I11,1)&"."&LEFT($J11,1)&"."&LEFT($K11,1)&"."&LEFT($L11,1)&"."&LEFT($M11,1)&"."&"2"),IF(OR($I11="",$J11="",$K11="",$L11="",$M11="",$N11=""),"Заполните все столбцы","2."&LEFT($I11,1)&"."&LEFT($J11,1)&"."&LEFT($K11,1)&"."&LEFT($L11,1)&"."&LEFT($M11,1))))))) -> Заполните все столбцы | E11: =IF(D11="Заполните все столбцы","Заполните все столбцы",IFERROR("С "&(MID($D11,1,LEN($D11)))&","&(RIGHT($N11,LEN($N11)-2)),"Заполните все столбцы")) -> Заполните все столбцы | F11: =IFERROR(LOWER("воздушные линии на "&VLOOKUP($I11,'1.1Назв. объ. эл. сетевого хоз.'!$A$2:$B$24,2,0)&" "&VLOOKUP($J11,'1.1Назв. объ. эл. сетевого хоз.'!$A$2:$B$24,2,0)&" "&VLOOKUP($K11,'1.1Назв. объ. эл. сетевого хоз.'!$A$2:$B$24,2,0)&" проводом "&"сечением "&VLOOKUP($L11,'1.1Назв. объ. эл. сетевого хоз.'!$A$2:$B$24,2,0)&" "&VLOOKUP($M11,'1.1Назв. объ. эл. сетевого хоз.'!$A$2:$B$24,2,0)),"Заполните все столбцы") -> Заполните все столбцы | G11: Название объекта | O11: =Титульный!$D$10-2 -> 2023 | R11: =IF(OR($Q11="",$P11=""),"Заполните все столбцы",IF(AND(IF(AND(Q11<>0,P11<>0),Q11/P11,0)>=1000000,IF(AND(Q11<>0,P11<>0),Q11/P11,0)<=20000000),IF(AND(Q11<>0,P11<>0),Q11/P11,0),"Значение расходов вне возможного диапазона")) -> Заполните все столбцы
B12: TAG | G12: Добавить строки
C13: =ROW($C13)-12 -> 1 | D13: =IF(AND(I13="2) Металлические",OR(N13="3) 27,5 - 60 кВ",N13="4) 110 кВ и выше")),"Заполните все столбцы",IF(AND(I13="2.1) Металлические, за исключением многогранных",OR(N13="1) 0,4 кВ и ниже",N13="2) 1 - 20 кВ")),"Заполните все столбцы",IF(AND(I13="2.2) Металлические многогранные",OR(N13="1) 0,4 кВ и ниже",N13="2) 1 - 20 кВ")),"Заполните все столбцы",IF(AND(OR(I13="2.1) Металлические, за исключением многогранных"),OR(N13="3) 27,5 - 60 кВ",N13="4) 110 кВ и выше")),IF(OR($I13="",$J13="",$K13="",$L13="",$M13="",$N13=""),"Заполните все столбцы","2."&LEFT($I13,1)&"."&LEFT($J13,1)&"."&LEFT($K13,1)&"."&LEFT($L13,1)&"."&LEFT($M13,1)&"."&"1"),IF(AND(OR(I13="2.2) Металлические многогранные"),OR(N13="3) 27,5 - 60 кВ",N13="4) 110 кВ и выше")),IF(OR($I13="",$J13="",$K13="",$L13="",$M13="",$N13=""),"Заполните все столбцы","2."&LEFT($I13,1)&"."&LEFT($J13,1)&"."&LEFT($K13,1)&"."&LEFT($L13,1)&"."&LEFT($M13,1)&"."&"2"),IF(OR($I13="",$J13="",$K13="",$L13="",$M13="",$N13=""),"Заполните все столбцы","2."&LEFT($I13,1)&"."&LEFT($J13,1)&"."&LEFT($K13,1)&"."&LEFT($L13,1)&"."&LEFT($M13,1))))))) -> Заполните все столбцы | E13: =IF(D13="Заполните все столбцы","Заполните все столбцы",IFERROR("С "&(MID($D13,1,LEN($D13)))&","&(RIGHT($N13,LEN($N13)-2)),"Заполните все столбцы")) -> Заполните все столбцы | F13: =IFERROR(LOWER("воздушные линии на "&VLOOKUP($I13,'1.1Назв. объ. эл. сетевого хоз.'!$A$2:$B$24,2,0)&" "&VLOOKUP($J13,'1.1Назв. объ. эл. сетевого хоз.'!$A$2:$B$24,2,0)&" "&VLOOKUP($K13,'1.1Назв. объ. эл. сетевого хоз.'!$A$2:$B$24,2,0)&" проводом "&"сечением "&VLOOKUP($L13,'1.1Назв. объ. эл. сетевого хоз.'!$A$2:$B$24,2,0)&" "&VLOOKUP($M13,'1.1Назв. объ. эл. сетевого хоз.'!$A$2:$B$24,2,0)),"Заполните все столбцы") -> Заполните все столбцы | G13: Название объекта | O13: =Титульный!$D$10-2 -> 2023 | R13: =IF(OR($Q13="",$P13=""),"Заполните все столбцы",IF(AND(IF(AND(Q13<>0,P13<>0),Q13/P13,0)>=1000000,IF(AND(Q13<>0,P13<>0),Q13/P13,0)<=20000000),IF(AND(Q13<>0,P13<>0),Q13/P13,0),"Значение расходов вне возможного диапазона")) -> Заполните все столбцы
C14: 2 | D14: =IF(AND(I14="2) Металлические",OR(N14="3) 27,5 - 60 кВ",N14="4) 110 кВ и выше")),"Заполните все столбцы",IF(AND(I14="2.1) Металлические, за исключением многогранных",OR(N14="1) 0,4 кВ и ниже",N14="2) 1 - 20 кВ")),"Заполните все столбцы",IF(AND(I14="2.2) Металлические многогранные",OR(N14="1) 0,4 кВ и ниже",N14="2) 1 - 20 кВ")),"Заполните все столбцы",IF(AND(OR(I14="2.1) Металлические, за исключением многогранных"),OR(N14="3) 27,5 - 60 кВ",N14="4) 110 кВ и выше")),IF(OR($I14="",$J14="",$K14="",$L14="",$M14="",$N14=""),"Заполните все столбцы","2."&LEFT($I14,1)&"."&LEFT($J14,1)&"."&LEFT($K14,1)&"."&LEFT($L14,1)&"."&LEFT($M14,1)&"."&"1"),IF(AND(OR(I14="2.2) Металлические многогранные"),OR(N14="3) 27,5 - 60 кВ",N14="4) 110 кВ и выше")),IF(OR($I14="",$J14="",$K14="",$L14="",$M14="",$N14=""),"Заполните все столбцы","2."&LEFT($I14,1)&"."&LEFT($J14,1)&"."&LEFT($K14,1)&"."&LEFT($L14,1)&"."&LEFT($M14,1)&"."&"2"),IF(OR($I14="",$J14="",$K14="",$L14="",$M14="",$N14=""),"Заполните все столбцы","2."&LEFT($I14,1)&"."&LEFT($J14,1)&"."&LEFT($K14,1)&"."&LEFT($L14,1)&"."&LEFT($M14,1))))))) -> Заполните все столбцы | E14: =IF(D14="Заполните все столбцы","Заполните все столбцы",IFERROR("С "&(MID($D14,1,LEN($D14)))&","&(RIGHT($N14,LEN($N14)-2)),"Заполните все столбцы")) -> Заполните все столбцы | F14: =IFERROR(LOWER("воздушные линии на "&VLOOKUP($I14,'1.1Назв. объ. эл. сетевого хоз.'!$A$2:$B$24,2,0)&" "&VLOOKUP($J14,'1.1Назв. объ. эл. сетевого хоз.'!$A$2:$B$24,2,0)&" "&VLOOKUP($K14,'1.1Назв. объ. эл. сетевого хоз.'!$A$2:$B$24,2,0)&" проводом "&"сечением "&VLOOKUP($L14,'1.1Назв. объ. эл. сетевого хоз.'!$A$2:$B$24,2,0)&" "&VLOOKUP($M14,'1.1Назв. объ. эл. сетевого хоз.'!$A$2:$B$24,2,0)),"Заполните все столбцы") -> Заполните все столбцы | G14: Название объекта | O14: =Титульный!$D$10-2 -> 2023 | R14: =IF(OR($Q14="",$P14=""),"Заполните все столбцы",IF(AND(IF(AND(Q14<>0,P14<>0),Q14/P14,0)>=1000000,IF(AND(Q14<>0,P14<>0),Q14/P14,0)<=20000000),IF(AND(Q14<>0,P14<>0),Q14/P14,0),"Значение расходов вне возможного диапазона")) -> Заполните все столбцы
C15: 3 | D15: =IF(AND(I15="2) Металлические",OR(N15="3) 27,5 - 60 кВ",N15="4) 110 кВ и выше")),"Заполните все столбцы",IF(AND(I15="2.1) Металлические, за исключением многогранных",OR(N15="1) 0,4 кВ и ниже",N15="2) 1 - 20 кВ")),"Заполните все столбцы",IF(AND(I15="2.2) Металлические многогранные",OR(N15="1) 0,4 кВ и ниже",N15="2) 1 - 20 кВ")),"Заполните все столбцы",IF(AND(OR(I15="2.1) Металлические, за исключением многогранных"),OR(N15="3) 27,5 - 60 кВ",N15="4) 110 кВ и выше")),IF(OR($I15="",$J15="",$K15="",$L15="",$M15="",$N15=""),"Заполните все столбцы","2."&LEFT($I15,1)&"."&LEFT($J15,1)&"."&LEFT($K15,1)&"."&LEFT($L15,1)&"."&LEFT($M15,1)&"."&"1"),IF(AND(OR(I15="2.2) Металлические многогранные"),OR(N15="3) 27,5 - 60 кВ",N15="4) 110 кВ и выше")),IF(OR($I15="",$J15="",$K15="",$L15="",$M15="",$N15=""),"Заполните все столбцы","2."&LEFT($I15,1)&"."&LEFT($J15,1)&"."&LEFT($K15,1)&"."&LEFT($L15,1)&"."&LEFT($M15,1)&"."&"2"),IF(OR($I15="",$J15="",$K15="",$L15="",$M15="",$N15=""),"Заполните все столбцы","2."&LEFT($I15,1)&"."&LEFT($J15,1)&"."&LEFT($K15,1)&"."&LEFT($L15,1)&"."&LEFT($M15,1))))))) -> Заполните все столбцы | E15: =IF(D15="Заполните все столбцы","Заполните все столбцы",IFERROR("С "&(MID($D15,1,LEN($D15)))&","&(RIGHT($N15,LEN($N15)-2)),"Заполните все столбцы")) -> Заполните все столбцы | F15: =IFERROR(LOWER("воздушные линии на "&VLOOKUP($I15,'1.1Назв. объ. эл. сетевого хоз.'!$A$2:$B$24,2,0)&" "&VLOOKUP($J15,'1.1Назв. объ. эл. сетевого хоз.'!$A$2:$B$24,2,0)&" "&VLOOKUP($K15,'1.1Назв. объ. эл. сетевого хоз.'!$A$2:$B$24,2,0)&" проводом "&"сечением "&VLOOKUP($L15,'1.1Назв. объ. эл. сетевого хоз.'!$A$2:$B$24,2,0)&" "&VLOOKUP($M15,'1.1Назв. объ. эл. сетевого хоз.'!$A$2:$B$24,2,0)),"Заполните все столбцы") -> Заполните все столбцы | G15: Название объекта | O15: =Титульный!$D$10-2 -> 2023 | R15: =IF(OR($Q15="",$P15=""),"Заполните все столбцы",IF(AND(IF(AND(Q15<>0,P15<>0),Q15/P15,0)>=1000000,IF(AND(Q15<>0,P15<>0),Q15/P15,0)<=20000000),IF(AND(Q15<>0,P15<>0),Q15/P15,0),"Значение расходов вне возможного диапазона")) -> Заполните все столбцы
C16: 4 | D16: =IF(AND(I16="2) Металлические",OR(N16="3) 27,5 - 60 кВ",N16="4) 110 кВ и выше")),"Заполните все столбцы",IF(AND(I16="2.1) Металлические, за исключением многогранных",OR(N16="1) 0,4 кВ и ниже",N16="2) 1 - 20 кВ")),"Заполните все столбцы",IF(AND(I16="2.2) Металлические многогранные",OR(N16="1) 0,4 кВ и ниже",N16="2) 1 - 20 кВ")),"Заполните все столбцы",IF(AND(OR(I16="2.1) Металлические, за исключением многогранных"),OR(N16="3) 27,5 - 60 кВ",N16="4) 110 кВ и выше")),IF(OR($I16="",$J16="",$K16="",$L16="",$M16="",$N16=""),"Заполните все столбцы","2."&LEFT($I16,1)&"."&LEFT($J16,1)&"."&LEFT($K16,1)&"."&LEFT($L16,1)&"."&LEFT($M16,1)&"."&"1"),IF(AND(OR(I16="2.2) Металлические многогранные"),OR(N16="3) 27,5 - 60 кВ",N16="4) 110 кВ и выше")),IF(OR($I16="",$J16="",$K16="",$L16="",$M16="",$N16=""),"Заполните все столбцы","2."&LEFT($I16,1)&"."&LEFT($J16,1)&"."&LEFT($K16,1)&"."&LEFT($L16,1)&"."&LEFT($M16,1)&"."&"2"),IF(OR($I16="",$J16="",$K16="",$L16="",$M16="",$N16=""),"Заполните все столбцы","2."&LEFT($I16,1)&"."&LEFT($J16,1)&"."&LEFT($K16,1)&"."&LEFT($L16,1)&"."&LEFT($M16,1))))))) -> Заполните все столбцы | E16: =IF(D16="Заполните все столбцы","Заполните все столбцы",IFERROR("С "&(MID($D16,1,LEN($D16)))&","&(RIGHT($N16,LEN($N16)-2)),"Заполните все столбцы")) -> Заполните все столбцы | F16: =IFERROR(LOWER("воздушные линии на "&VLOOKUP($I16,'1.1Назв. объ. эл. сетевого хоз.'!$A$2:$B$24,2,0)&" "&VLOOKUP($J16,'1.1Назв. объ. эл. сетевого хоз.'!$A$2:$B$24,2,0)&" "&VLOOKUP($K16,'1.1Назв. объ. эл. сетевого хоз.'!$A$2:$B$24,2,0)&" проводом "&"сечением "&VLOOKUP($L16,'1.1Назв. объ. эл. сетевого хоз.'!$A$2:$B$24,2,0)&" "&VLOOKUP($M16,'1.1Назв. объ. эл. сетевого хоз.'!$A$2:$B$24,2,0)),"Заполните все столбцы") -> Заполните все столбцы | G16: Название объекта | O16: =Титульный!$D$10-2 -> 2023 | R16: =IF(OR($Q16="",$P16=""),"Заполните все столбцы",IF(AND(IF(AND(Q16<>0,P16<>0),Q16/P16,0)>=1000000,IF(AND(Q16<>0,P16<>0),Q16/P16,0)<=20000000),IF(AND(Q16<>0,P16<>0),Q16/P16,0),"Значение расходов вне возможного диапазона")) -> Заполните все столбцы
B17: TAG | G17: Добавить строки

Sheet Ставка 3. (КЛ)
C2: Расходы на строительство введенных в эксплуатацию объектов электросетевого хозяйства для целей технологического присоединения и для целей реализации иных мероприятий инвестиционной программы территориальной сетевой организации
C6: ДЛЯ НАСЕЛЕННЫХ ПУНКТОВ ВСЕХ ТЕРРИТОРИЙ
C8: N п/п | D8: Технический код ставки | E8: Обозначение ставки | F8: Наименование ставки | G8: Объект электросетевого хозяйства | H8: Территория | I8: Способ прокладки | J8: Вид жилы | K8: Изоляция | L8: Сечение | M8: Количество кабелей | N8: Напряжение | O8: Год ввода объекта | P8: Протяженность линий электропередачи, км | Q8: Общие расходы на строительство объекта, руб. (без НДС) | R8: Расходы на строительство единицы КЛ, руб./км | S8: Наименование папки | T8: Источник финансирования
C9: 1 | D9: =C$9+1 -> 2 | E9: =D$9+1 -> 3 | F9: 4 | G9: 5 | H9: 6 | I9: 7 | J9: 8 | K9: 9 | L9: 10 | M9: 11 | N9: 12 | O9: 13 | P9: 14 | Q9: =P$9+1 -> 15 | R9: =Q$9+1 -> 16 | S9: =R$9+1 -> 17 | T9: =S$9+1 -> 18
C10: 3. | L10: Строительство кабельных линий
B11: X | C11: =ROW($C11)-12 -> -1 | D11: =IF(OR($I11="",$J11="",$K11="",$L11="",$M11="",$N11="",$O11=""),"Заполните все столбцы","3."&LEFT($I11,1)&"."&LEFT($J11,1)&"."&LEFT($K11,1)&"."&LEFT($L11,1)&"."&LEFT($M11,1)) -> Заполните все столбцы | E11: =IFERROR("С "&(MID($D11,1,LEN($D11)))&","&(RIGHT($N11,LEN($N11)-2)),"Заполните все столбцы") -> Заполните все столбцы | F11: =IFERROR(LOWER("кабельные линии"&IF($I11="6) метод горизонтального наклонного бурения",VLOOKUP($I11,'1.1Назв. объ. эл. сетевого хоз.'!$D$2:$E$34,2,0)&" "&VLOOKUP($J11,'1.1Назв. объ. эл. сетевого хоз.'!$D$2:$E$34,2,0)&" c "&VLOOKUP($K11,'1.1Назв. объ. эл. сетевого хоз.'!$D$2:$E$34,2,0)&" изоляцией "&"сечением провода "&VLOOKUP($L11,'1.1Назв. объ. эл. сетевого хоз.'!$D$2:$E$34,2,0)&" "&IF($M11="5) более четырех","с количеством "&IF($I11="6) метод горизонтального наклонного бурения",VLOOKUP($M11,'1.1Назв. объ. эл. сетевого хоз.'!$D$2:$F$34,3,0),VLOOKUP($M11,'1.1Назв. объ. эл. сетевого хоз.'!$D$2:$E$34,2,0)),IF($I11="6) метод горизонтального наклонного бурения",VLOOKUP($M11,'1.1Назв. объ. эл. сетевого хоз.'!$D$2:$F$34,3,0),VLOOKUP($M11,'1.1Назв. объ. эл. сетевого хоз.'!$D$2:$E$34,2,0))),VLOOKUP($I11,'1.1Назв. объ. эл. сетевого хоз.'!$D$2:$E$34,2,0)&" "&VLOOKUP($J11,'1.1Назв. объ. эл. сетевого хоз.'!$D$2:$E$34,2,0)&" c "&VLOOKUP($K11,'1.1Назв. объ. эл. сетевого хоз.'!$D$2:$E$34,2,0)&" изоляцией "&"сечением провода "&VLOOKUP($L11,'1.1Назв. объ. эл. сетевого хоз.'!$D$2:$E$34,2,0)&" "&IF($M11="5) более четырех","с количеством "&IF($I11="6) метод горизонтального наклонного бурения",VLOOKUP($M11,'1.1Назв. объ. эл. сетевого хоз.'!$D$2:$F$34,3,0),VLOOKUP($M11,'1.1Назв. объ. эл. сетевого хоз.'!$D$2:$E$34,2,0)),IF($I11="6) метод горизонтального наклонного бурения",VLOOKUP($M11,'1.1Назв. объ. эл. сетевого хоз.'!$D$2:$F$34,3,0),VLOOKUP($M11,'1.1Назв. объ. эл. сетевого хоз.'!$D$2:$E$34,2,0)))&" "&VLOOKUP($I11,'1.1Назв. объ. эл. сетевого хоз.'!$D$2:$F$34,3,0))),"Заполните все столбцы") -> Заполните все столбцы | G11: Название объекта | O11: =Титульный!$D$10-2 -> 2023 | R11: =IF(OR($Q11="",$P11=""),"Заполните все столбцы",IF(AND(IF(AND(Q11<>0,P11<>0),Q11/P11,0)>=1000000,IF(AND(Q11<>0,P11<>0),Q11/P11,0)<=50000000),IF(AND(Q11<>0,P11<>0),Q11/P11,0),"Значение расходов вне возможного диапазона")) -> Заполните все столбцы
B12: TAG | G12: Добавить строки
C13: =ROW($C13)-12 -> 1 | D13: =IF(OR($I13="",$J13="",$K13="",$L13="",$M13="",$N13="",$O13=""),"Заполните все столбцы","3."&LEFT($I13,1)&"."&LEFT($J13,1)&"."&LEFT($K13,1)&"."&LEFT($L13,1)&"."&LEFT($M13,1)) -> 3.1.1.2.4.2 | E13: =IFERROR("С "&(MID($D13,1,LEN($D13)))&","&(RIGHT($N13,LEN($N13)-2)),"Заполните все столбцы") -> С 3.1.1.2.4.2, 1 - 10 кВ | F13: =IFERROR(LOWER("кабельные линии"&IF($I13="6) метод горизонтального наклонного бурения",VLOOKUP($I13,'1.1Назв. объ. эл. сетевого хоз.'!$D$2:$E$34,2,0)&" "&VLOOKUP($J13,'1.1Назв. объ. эл. сетевого хоз.'!$D$2:$E$34,2,0)&" c "&VLOOKUP($K13,'1.1Назв. объ. эл. сетевого хоз.'!$D$2:$E$34,2,0)&" изоляцией "&"сечением провода "&VLOOKUP($L13,'1.1Назв. объ. эл. сетевого хоз.'!$D$2:$E$34,2,0)&" "&IF($M13="5) более четырех","с количеством "&IF($I13="6) метод горизонтального наклонного бурения",VLOOKUP($M13,'1.1Назв. объ. эл. сетевого хоз.'!$D$2:$F$34,3,0),VLOOKUP($M13,'1.1Назв. объ. эл. сетевого хоз.'!$D$2:$E$34,2,0)),IF($I13="6) метод горизонтального наклонного бурения",VLOOKUP($M13,'1.1Назв. объ. эл. сетевого хоз.'!$D$2:$F$34,3,0),VLOOKUP($M13,'1.1Назв. объ. эл. сетевого хоз.'!$D$2:$E$34,2,0))),VLOOKUP($I13,'1.1Назв. объ. эл. сетевого хоз.'!$D$2:$E$34,2,0)&" "&VLOOKUP($J13,'1.1Назв. объ. эл. сетевого хоз.'!$D$2:$E$34,2,0)&" c "&VLOOKUP($K13,'1.1Назв. объ. эл. сетевого хоз.'!$D$2:$E$34,2,0)&" изоляцией "&"сечением провода "&VLOOKUP($L13,'1.1Назв. объ. эл. сетевого хоз.'!$D$2:$E$34,2,0)&" "&IF($M13="5) более четырех","с количеством "&IF($I13="6) метод горизонтального наклонного бурения",VLOOKUP($M13,'1.1Назв. объ. эл. сетевого хоз.'!$D$2:$F$34,3,0),VLOOKUP($M13,'1.1Назв. объ. эл. сетевого хоз.'!$D$2:$E$34,2,0)),IF($I13="6) метод горизонтального наклонного бурения",VLOOKUP($M13,'1.1Назв. объ. эл. сетевого хоз.'!$D$2:$F$34,3,0),VLOOKUP($M13,'1.1Назв. объ. эл. сетевого хоз.'!$D$2:$E$34,2,0)))&" "&VLOOKUP($I13,'1.1Назв. объ. эл. сетевого хоз.'!$D$2:$F$34,3,0))),"Заполните все столбцы") -> кабельные линии в траншеях одножильные c бумажной изоляцией сечением провода от 200 до 250 квадратных мм включительно с двумя кабелями в траншее | G13: Строительство КЛ-10 кВ от РП(ТП) - 2х1000 кВА Станция скорой медицинской помощи до ТП-2х1000 кВА мкр. 31А Станция переливания крови | H13: I ) Город | I13: 1) траншея | J13: 1) одножильный | K13: 2) бумажная | L13: 4) от 200 до 250 квадратных мм включительно | M13: 2) два | N13: 2) 1 - 10 кВ | O13: =Титульный!$D$10-2 -> 2023 | P13: 0.42 | Q13: 1818791 | R13: =IF(OR($Q13="",$P13=""),"Заполните все столбцы",IF(AND(IF(AND(Q13<>0,P13<>0),Q13/P13,0)>=1000000,IF(AND(Q13<>0,P13<>0),Q13/P13,0)<=50000000),IF(AND(Q13<>0,P13<>0),Q13/P13,0),"Значение расходов вне возможного диапазона")) -> 4330454.762 | S13: 15 | T13: Инвестиционная программа
C14: 2 | D14: 3.1.1.2.4.2 | E14: С 3.1.1.2.4.2, 1 - 10 кВ | F14: =IFERROR(LOWER("кабельные линии"&IF($I14="6) метод горизонтального наклонного бурения",VLOOKUP($I14,'1.1Назв. объ. эл. сетевого хоз.'!$D$2:$E$34,2,0)&" "&VLOOKUP($J14,'1.1Назв. объ. эл. сетевого хоз.'!$D$2:$E$34,2,0)&" c "&VLOOKUP($K14,'1.1Назв. объ. эл. сетевого хоз.'!$D$2:$E$34,2,0)&" изоляцией "&"сечением провода "&VLOOKUP($L14,'1.1Назв. объ. эл. сетевого хоз.'!$D$2:$E$34,2,0)&" "&IF($M14="5) более четырех","с количеством "&IF($I14="6) метод горизонтального наклонного бурения",VLOOKUP($M14,'1.1Назв. объ. эл. сетевого хоз.'!$D$2:$F$34,3,0),VLOOKUP($M14,'1.1Назв. объ. эл. сетевого хоз.'!$D$2:$E$34,2,0)),IF($I14="6) метод горизонтального наклонного бурения",VLOOKUP($M14,'1.1Назв. объ. эл. сетевого хоз.'!$D$2:$F$34,3,0),VLOOKUP($M14,'1.1Назв. объ. эл. сетевого хоз.'!$D$2:$E$34,2,0))),VLOOKUP($I14,'1.1Назв. объ. эл. сетевого хоз.'!$D$2:$E$34,2,0)&" "&VLOOKUP($J14,'1.1Назв. объ. эл. сетевого хоз.'!$D$2:$E$34,2,0)&" c "&VLOOKUP($K14,'1.1Назв. объ. эл. сетевого хоз.'!$D$2:$E$34,2,0)&" изоляцией "&"сечением провода "&VLOOKUP($L14,'1.1Назв. объ. эл. сетевого хоз.'!$D$2:$E$34,2,0)&" "&IF($M14="5) более четырех","с количеством "&IF($I14="6) метод горизонтального наклонного бурения",VLOOKUP($M14,'1.1Назв. объ. эл. сетевого хоз.'!$D$2:$F$34,3,0),VLOOKUP($M14,'1.1Назв. объ. эл. сетевого хоз.'!$D$2:$E$34,2,0)),IF($I14="6) метод горизонтального наклонного бурения",VLOOKUP($M14,'1.1Назв. объ. эл. сетевого хоз.'!$D$2:$F$34,3,0),VLOOKUP($M14,'1.1Назв. объ. эл. сетевого хоз.'!$D$2:$E$34,2,0)))&" "&VLOOKUP($I14,'1.1Назв. объ. эл. сетевого хоз.'!$D$2:$F$34,3,0))),"Заполните все столбцы") -> кабельные линии в траншеях одножильные c бумажной изоляцией сечением провода от 200 до 250 квадратных мм включительно с двумя кабелями в траншее | G14: Строительство КЛ-6 кВ от КТПН 1-630 кВА СТ №38 "Берендей" до КТПН 2-1000 кВА СТ №38 "Берендей" | H14: I ) Город | I14: 1) траншея | J14: 1) одножильный | K14: 2) бумажная | L14: 4) от 200 до 250 квадратных мм включительно | M14: 2) два | N14: 2) 1 - 10 кВ | O14: =Титульный!$D$10-2 -> 2023 | P14: 0.596 | Q14: 2723975.87 | R14: 4570429.312 | S14: 16 | T14: Инвестиционная программа
C15: 3 | D15: 3.1.1.1.3.4 | E15: С 3.1.1.1.3.4, 0,4 кВ и ниже | F15: =IFERROR(LOWER("кабельные линии"&IF($I15="6) метод горизонтального наклонного бурения",VLOOKUP($I15,'1.1Назв. объ. эл. сетевого хоз.'!$D$2:$E$34,2,0)&" "&VLOOKUP($J15,'1.1Назв. объ. эл. сетевого хоз.'!$D$2:$E$34,2,0)&" c "&VLOOKUP($K15,'1.1Назв. объ. эл. сетевого хоз.'!$D$2:$E$34,2,0)&" изоляцией "&"сечением провода "&VLOOKUP($L15,'1.1Назв. объ. эл. сетевого хоз.'!$D$2:$E$34,2,0)&" "&IF($M15="5) более четырех","с количеством "&IF($I15="6) метод горизонтального наклонного бурения",VLOOKUP($M15,'1.1Назв. объ. эл. сетевого хоз.'!$D$2:$F$34,3,0),VLOOKUP($M15,'1.1Назв. объ. эл. сетевого хоз.'!$D$2:$E$34,2,0)),IF($I15="6) метод горизонтального наклонного бурения",VLOOKUP($M15,'1.1Назв. объ. эл. сетевого хоз.'!$D$2:$F$34,3,0),VLOOKUP($M15,'1.1Назв. объ. эл. сетевого хоз.'!$D$2:$E$34,2,0))),VLOOKUP($I15,'1.1Назв. объ. эл. сетевого хоз.'!$D$2:$E$34,2,0)&" "&VLOOKUP($J15,'1.1Назв. объ. эл. сетевого хоз.'!$D$2:$E$34,2,0)&" c "&VLOOKUP($K15,'1.1Назв. объ. эл. сетевого хоз.'!$D$2:$E$34,2,0)&" изоляцией "&"сечением провода "&VLOOKUP($L15,'1.1Назв. объ. эл. сетевого хоз.'!$D$2:$E$34,2,0)&" "&IF($M15="5) более четырех","с количеством "&IF($I15="6) метод горизонтального наклонного бурения",VLOOKUP($M15,'1.1Назв. объ. эл. сетевого хоз.'!$D$2:$F$34,3,0),VLOOKUP($M15,'1.1Назв. объ. эл. сетевого хоз.'!$D$2:$E$34,2,0)),IF($I15="6) метод горизонтального наклонного бурения",VLOOKUP($M15,'1.1Назв. объ. эл. сетевого хоз.'!$D$2:$F$34,3,0),VLOOKUP($M15,'1.1Назв. объ. эл. сетевого хоз.'!$D$2:$E$34,2,0)))&" "&VLOOKUP($I15,'1.1Назв. объ. эл. сетевого хоз.'!$D$2:$F$34,3,0))),"Заполните все столбцы") -> кабельные линии в траншеях одножильные c резиновой или пластмассовой изоляцией сечением провода от 100 до 200 квадратных мм включительно с четырьмя кабелями в траншее | G15: Строительство КЛ-0,4 кВ ТП-4 2х1600 кВА мкр. Марьина гора до ж/д №20 ВРУ-1 | H15: I ) Город | I15: 1) траншея | J15: 1) одножильный | K15: 1) резиновая или пластмассовая | L15: 3) от 100 до 200 квадратных мм включительно | M15: 4) четыре | N15: 1) 0,4 кВ и ниже | O15: =Титульный!$D$10-2 -> 2023 | P15: 3.6 | Q15: 848087.45 | R15: Значение расходов вне возможного диапазона | S15: 17 | T15: Инвестиционная программа
C16: 4 | D16: 3.1.1.1.3.2 | E16: С 3.1.1.1.3.2, 0,4 кВ и ниже | F16: =IFERROR(LOWER("кабельные линии"&IF($I16="6) метод горизонтального наклонного бурения",VLOOKUP($I16,'1.1Назв. объ. эл. сетевого хоз.'!$D$2:$E$34,2,0)&" "&VLOOKUP($J16,'1.1Назв. объ. эл. сетевого хоз.'!$D$2:$E$34,2,0)&" c "&VLOOKUP($K16,'1.1Назв. объ. эл. сетевого хоз.'!$D$2:$E$34,2,0)&" изоляцией "&"сечением провода "&VLOOKUP($L16,'1.1Назв. объ. эл. сетевого хоз.'!$D$2:$E$34,2,0)&" "&IF($M16="5) более четырех","с количеством "&IF($I16="6) метод горизонтального наклонного бурения",VLOOKUP($M16,'1.1Назв. объ. эл. сетевого хоз.'!$D$2:$F$34,3,0),VLOOKUP($M16,'1.1Назв. объ. эл. сетевого хоз.'!$D$2:$E$34,2,0)),IF($I16="6) метод горизонтального наклонного бурения",VLOOKUP($M16,'1.1Назв. объ. эл. сетевого хоз.'!$D$2:$F$34,3,0),VLOOKUP($M16,'1.1Назв. объ. эл. сетевого хоз.'!$D$2:$E$34,2,0))),VLOOKUP($I16,'1.1Назв. объ. эл. сетевого хоз.'!$D$2:$E$34,2,0)&" "&VLOOKUP($J16,'1.1Назв. объ. эл. сетевого хоз.'!$D$2:$E$34,2,0)&" c "&VLOOKUP($K16,'1.1Назв. объ. эл. сетевого хоз.'!$D$2:$E$34,2,0)&" изоляцией "&"сечением провода "&VLOOKUP($L16,'1.1Назв. объ. эл. сетевого хоз.'!$D$2:$E$34,2,0)&" "&IF($M16="5) более четырех","с количеством "&IF($I16="6) метод горизонтального наклонного бурения",VLOOKUP($M16,'1.1Назв. объ. эл. сетевого хоз.'!$D$2:$F$34,3,0),VLOOKUP($M16,'1.1Назв. объ. эл. сетевого хоз.'!$D$2:$E$34,2,0)),IF($I16="6) метод горизонтального наклонного бурения",VLOOKUP($M16,'1.1Назв. объ. эл. сетевого хоз.'!$D$2:$F$34,3,0),VLOOKUP($M16,'1.1Назв. объ. эл. сетевого хоз.'!$D$2:$E$34,2,0)))&" "&VLOOKUP($I16,'1.1Назв. объ. эл. сетевого хоз.'!$D$2:$F$34,3,0))),"Заполните все столбцы") -> кабельные линии в траншеях одножильные c резиновой или пластмассовой изоляцией сечением провода от 100 до 200 квадратных мм включительно с двумя кабелями в траншее | G16: Строительство КЛ-0,4 кВ ТП-4 2х1600 кВА мкр. Марьина гора до ж/д №20 ВРУ-2 | H16: I ) Город | I16: 1) траншея | J16: 1) одножильный | K16: 1) резиновая или пластмассовая | L16: 3) от 100 до 200 квадратных мм включительно | M16: 2) два | N16: 1) 0,4 кВ и ниже | O16: =Титульный!$D$10-2 -> 2023 | P16: 0.18 | Q16: 368991.02 | R16: 2049950.111 | S16: 17 | T16: Инвестиционная программа
B17: X | C17: 5 | D17: 3.1.1.1.3.4 | E17: =IFERROR("С "&(MID($D17,1,LEN($D17)))&","&(RIGHT($N17,LEN($N17)-2)),"Заполните все столбцы") -> С 3.1.1.1.3.4, 0,4 кВ и ниже | F17: =IFERROR(LOWER("кабельные линии"&IF($I17="6) метод горизонтального наклонного бурения",VLOOKUP($I17,'1.1Назв. объ. эл. сетевого хоз.'!$D$2:$E$34,2,0)&" "&VLOOKUP($J17,'1.1Назв. объ. эл. сетевого хоз.'!$D$2:$E$34,2,0)&" c "&VLOOKUP($K17,'1.1Назв. объ. эл. сетевого хоз.'!$D$2:$E$34,2,0)&" изоляцией "&"сечением провода "&VLOOKUP($L17,'1.1Назв. объ. эл. сетевого хоз.'!$D$2:$E$34,2,0)&" "&IF($M17="5) более четырех","с количеством "&IF($I17="6) метод горизонтального наклонного бурения",VLOOKUP($M17,'1.1Назв. объ. эл. сетевого хоз.'!$D$2:$F$34,3,0),VLOOKUP($M17,'1.1Назв. объ. эл. сетевого хоз.'!$D$2:$E$34,2,0)),IF($I17="6) метод горизонтального наклонного бурения",VLOOKUP($M17,'1.1Назв. объ. эл. сетевого хоз.'!$D$2:$F$34,3,0),VLOOKUP($M17,'1.1Назв. объ. эл. сетевого хоз.'!$D$2:$E$34,2,0))),VLOOKUP($I17,'1.1Назв. объ. эл. сетевого хоз.'!$D$2:$E$34,2,0)&" "&VLOOKUP($J17,'1.1Назв. объ. эл. сетевого хоз.'!$D$2:$E$34,2,0)&" c "&VLOOKUP($K17,'1.1Назв. объ. эл. сетевого хоз.'!$D$2:$E$34,2,0)&" изоляцией "&"сечением провода "&VLOOKUP($L17,'1.1Назв. объ. эл. сетевого хоз.'!$D$2:$E$34,2,0)&" "&IF($M17="5) более четырех","с количеством "&IF($I17="6) метод горизонтального наклонного бурения",VLOOKUP($M17,'1.1Назв. объ. эл. сетевого хоз.'!$D$2:$F$34,3,0),VLOOKUP($M17,'1.1Назв. объ. эл. сетевого хоз.'!$D$2:$E$34,2,0)),IF($I17="6) метод горизонтального наклонного бурения",VLOOKUP($M17,'1.1Назв. объ. эл. сетевого хоз.'!$D$2:$F$34,3,0),VLOOKUP($M17,'1.1Назв. объ. эл. сетевого хоз.'!$D$2:$E$34,2,0)))&" "&VLOOKUP($I17,'1.1Назв. объ. эл. сетевого хоз.'!$D$2:$F$34,3,0))),"Заполните все столбцы") -> кабельные линии в траншеях одножильные c резиновой или пластмассовой изоляцией сечением провода от 100 до 200 квадратных мм включительно с четырьмя кабелями в траншее | G17: Строительство КЛ-0,4 кВ ТП-3 2х2500 кВА мкр. Марьина гора до ж/д №21 ВРУ-1 | H17: I ) Город | I17: 1) траншея | J17: 1) одножильный | K17: 1) резиновая или пластмассовая | L17: 3) от 100 до 200 квадратных мм включительно | M17: 4) четыре | N17: 1) 0,4 кВ и ниже | O17: =Титульный!$D$10-2 -> 2023 | P17: 3.36 | Q17: 686285.21 | R17: Значение расходов вне возможного диапазона | S17: 18 | T17: Инвестиционная программа
B18: X | C18: 6 | D18: 3.1.1.1.3.2 | E18: С 3.1.1.1.3.2, 0,4 кВ и ниже | F18: =IFERROR(LOWER("кабельные линии"&IF($I18="6) метод горизонтального наклонного бурения",VLOOKUP($I18,'1.1Назв. объ. эл. сетевого хоз.'!$D$2:$E$34,2,0)&" "&VLOOKUP($J18,'1.1Назв. объ. эл. сетевого хоз.'!$D$2:$E$34,2,0)&" c "&VLOOKUP($K18,'1.1Назв. объ. эл. сетевого хоз.'!$D$2:$E$34,2,0)&" изоляцией "&"сечением провода "&VLOOKUP($L18,'1.1Назв. объ. эл. сетевого хоз.'!$D$2:$E$34,2,0)&" "&IF($M18="5) более четырех","с количеством "&IF($I18="6) метод горизонтального наклонного бурения",VLOOKUP($M18,'1.1Назв. объ. эл. сетевого хоз.'!$D$2:$F$34,3,0),VLOOKUP($M18,'1.1Назв. объ. эл. сетевого хоз.'!$D$2:$E$34,2,0)),IF($I18="6) метод горизонтального наклонного бурения",VLOOKUP($M18,'1.1Назв. объ. эл. сетевого хоз.'!$D$2:$F$34,3,0),VLOOKUP($M18,'1.1Назв. объ. эл. сетевого хоз.'!$D$2:$E$34,2,0))),VLOOKUP($I18,'1.1Назв. объ. эл. сетевого хоз.'!$D$2:$E$34,2,0)&" "&VLOOKUP($J18,'1.1Назв. объ. эл. сетевого хоз.'!$D$2:$E$34,2,0)&" c "&VLOOKUP($K18,'1.1Назв. объ. эл. сетевого хоз.'!$D$2:$E$34,2,0)&" изоляцией "&"сечением провода "&VLOOKUP($L18,'1.1Назв. объ. эл. сетевого хоз.'!$D$2:$E$34,2,0)&" "&IF($M18="5) более четырех","с количеством "&IF($I18="6) метод горизонтального наклонного бурения",VLOOKUP($M18,'1.1Назв. объ. эл. сетевого хоз.'!$D$2:$F$34,3,0),VLOOKUP($M18,'1.1Назв. объ. эл. сетевого хоз.'!$D$2:$E$34,2,0)),IF($I18="6) метод горизонтального наклонного бурения",VLOOKUP($M18,'1.1Назв. объ. эл. сетевого хоз.'!$D$2:$F$34,3,0),VLOOKUP($M18,'1.1Назв. объ. эл. сетевого хоз.'!$D$2:$E$34,2,0)))&" "&VLOOKUP($I18,'1.1Назв. объ. эл. сетевого хоз.'!$D$2:$F$34,3,0))),"Заполните все столбцы") -> кабельные линии в траншеях одножильные c резиновой или пластмассовой изоляцией сечением провода от 100 до 200 квадратных мм включительно с двумя кабелями в траншее | G18: Строительство КЛ-0,4 кВ ТП-3 2х2500 кВА мкр. Марьина гора до ж/д №21 ВРУ-2 | H18: I ) Город | I18: 1) траншея | J18: 1) одножильный | K18: 1) резиновая или пластмассовая | L18: 3) от 100 до 200 квадратных мм включительно | M18: 2) два | N18: 1) 0,4 кВ и ниже | O18: =Титульный!$D$10-2 -> 2023 | P18: 0.168 | Q18: 278459.95 | R18: 1657499.702 | S18: 18 | T18: Инвестиционная программа
B19: X | C19: 7 | D19: 3.1.1.1.3.4 | E19: С 3.1.1.1.3.4, 0,4 кВ и ниже | F19: =IFERROR(LOWER("кабельные линии"&IF($I19="6) метод горизонтального наклонного бурения",VLOOKUP($I19,'1.1Назв. объ. эл. сетевого хоз.'!$D$2:$E$34,2,0)&" "&VLOOKUP($J19,'1.1Назв. объ. эл. сетевого хоз.'!$D$2:$E$34,2,0)&" c "&VLOOKUP($K19,'1.1Назв. объ. эл. сетевого хоз.'!$D$2:$E$34,2,0)&" изоляцией "&"сечением провода "&VLOOKUP($L19,'1.1Назв. объ. эл. сетевого хоз.'!$D$2:$E$34,2,0)&" "&IF($M19="5) более четырех","с количеством "&IF($I19="6) метод горизонтального наклонного бурения",VLOOKUP($M19,'1.1Назв. объ. эл. сетевого хоз.'!$D$2:$F$34,3,0),VLOOKUP($M19,'1.1Назв. объ. эл. сетевого хоз.'!$D$2:$E$34,2,0)),IF($I19="6) метод горизонтального наклонного бурения",VLOOKUP($M19,'1.1Назв. объ. эл. сетевого хоз.'!$D$2:$F$34,3,0),VLOOKUP($M19,'1.1Назв. объ. эл. сетевого хоз.'!$D$2:$E$34,2,0))),VLOOKUP($I19,'1.1Назв. объ. эл. сетевого хоз.'!$D$2:$E$34,2,0)&" "&VLOOKUP($J19,'1.1Назв. объ. эл. сетевого хоз.'!$D$2:$E$34,2,0)&" c "&VLOOKUP($K19,'1.1Назв. объ. эл. сетевого хоз.'!$D$2:$E$34,2,0)&" изоляцией "&"сечением провода "&VLOOKUP($L19,'1.1Назв. объ. эл. сетевого хоз.'!$D$2:$E$34,2,0)&" "&IF($M19="5) более четырех","с количеством "&IF($I19="6) метод горизонтального наклонного бурения",VLOOKUP($M19,'1.1Назв. объ. эл. сетевого хоз.'!$D$2:$F$34,3,0),VLOOKUP($M19,'1.1Назв. объ. эл. сетевого хоз.'!$D$2:$E$34,2,0)),IF($I19="6) метод горизонтального наклонного бурения",VLOOKUP($M19,'1.1Назв. объ. эл. сетевого хоз.'!$D$2:$F$34,3,0),VLOOKUP($M19,'1.1Назв. объ. эл. сетевого хоз.'!$D$2:$E$34,2,0)))&" "&VLOOKUP($I19,'1.1Назв. объ. эл. сетевого хоз.'!$D$2:$F$34,3,0))),"Заполните все столбцы") -> кабельные линии в траншеях одножильные c резиновой или пластмассовой изоляцией сечением провода от 100 до 200 квадратных мм включительно с четырьмя кабелями в траншее | G19: Строительство КЛ-0,4 кВ ТП-3 2х2500 кВА мкр. Марьина гора до ж/д №21 ВРУ-3 | H19: I ) Город | I19: 1) траншея | J19: 1) одножильный | K19: 1) резиновая или пластмассовая | L19: 3) от 100 до 200 квадратных мм включительно | M19: 4) четыре | N19: 1) 0,4 кВ и ниже | O19: =Титульный!$D$10-2 -> 2023 | P19: 0.336 | Q19: 536060.13 | R19: 1595417.054 | S19: 18 | T19: Инвестиционная программа
B20: X | C20: 8 | D20: 3.1.1.2.4.4 | E20: С 3.1.1.2.4.4, 1 - 10 кВ | F20: =IFERROR(LOWER("кабельные линии"&IF($I20="6) метод горизонтального наклонного бурения",VLOOKUP($I20,'1.1Назв. объ. эл. сетевого хоз.'!$D$2:$E$34,2,0)&" "&VLOOKUP($J20,'1.1Назв. объ. эл. сетевого хоз.'!$D$2:$E$34,2,0)&" c "&VLOOKUP($K20,'1.1Назв. объ. эл. сетевого хоз.'!$D$2:$E$34,2,0)&" изоляцией "&"сечением провода "&VLOOKUP($L20,'1.1Назв. объ. эл. сетевого хоз.'!$D$2:$E$34,2,0)&" "&IF($M20="5) более четырех","с количеством "&IF($I20="6) метод горизонтального наклонного бурения",VLOOKUP($M20,'1.1Назв. объ. эл. сетевого хоз.'!$D$2:$F$34,3,0),VLOOKUP($M20,'1.1Назв. объ. эл. сетевого хоз.'!$D$2:$E$34,2,0)),IF($I20="6) метод горизонтального наклонного бурения",VLOOKUP($M20,'1.1Назв. объ. эл. сетевого хоз.'!$D$2:$F$34,3,0),VLOOKUP($M20,'1.1Назв. объ. эл. сетевого хоз.'!$D$2:$E$34,2,0))),VLOOKUP($I20,'1.1Назв. объ. эл. сетевого хоз.'!$D$2:$E$34,2,0)&" "&VLOOKUP($J20,'1.1Назв. объ. эл. сетевого хоз.'!$D$2:$E$34,2,0)&" c "&VLOOKUP($K20,'1.1Назв. объ. эл. сетевого хоз.'!$D$2:$E$34,2,0)&" изоляцией "&"сечением провода "&VLOOKUP($L20,'1.1Назв. объ. эл. сетевого хоз.'!$D$2:$E$34,2,0)&" "&IF($M20="5) более четырех","с количеством "&IF($I20="6) метод горизонтального наклонного бурения",VLOOKUP($M20,'1.1Назв. объ. эл. сетевого хоз.'!$D$2:$F$34,3,0),VLOOKUP($M20,'1.1Назв. объ. эл. сетевого хоз.'!$D$2:$E$34,2,0)),IF($I20="6) метод горизонтального наклонного бурения",VLOOKUP($M20,'1.1Назв. объ. эл. сетевого хоз.'!$D$2:$F$34,3,0),VLOOKUP($M20,'1.1Назв. объ. эл. сетевого хоз.'!$D$2:$E$34,2,0)))&" "&VLOOKUP($I20,'1.1Назв. объ. эл. сетевого хоз.'!$D$2:$F$34,3,0))),"Заполните все столбцы") -> кабельные линии в траншеях одножильные c бумажной изоляцией сечением провода от 200 до 250 квадратных мм включительно с четырьмя кабелями в траншее | G20: Строительство КЛ-10 кВ от ТП-2х1000 кВА мкр. 48 до оп 23 ВЛ-10 кВ ПС-12 до РП-133 ЭСК-24 | H20: I ) Город | I20: 1) траншея | J20: 1) одножильный | K20: 2) бумажная | L20: 4) от 200 до 250 квадратных мм включительно | M20: 4) четыре | N20: 2) 1 - 10 кВ | O20: =Титульный!$D$10-2 -> 2023 | P20: 1.74 | Q20: 7952751.91 | R20: 4570547.075 | S20: 19, 19.1 | T20: Инвестиционная программа
B21: X | C21: 9 | D21: 3.1.1.2.4.2 | E21: С 3.1.1.2.4.2, 1 - 10 кВ | F21: =IFERROR(LOWER("кабельные линии"&IF($I21="6) метод горизонтального наклонного бурения",VLOOKUP($I21,'1.1Назв. объ. эл. сетевого хоз.'!$D$2:$E$34,2,0)&" "&VLOOKUP($J21,'1.1Назв. объ. эл. сетевого хоз.'!$D$2:$E$34,2,0)&" c "&VLOOKUP($K21,'1.1Назв. объ. эл. сетевого хоз.'!$D$2:$E$34,2,0)&" изоляцией "&"сечением провода "&VLOOKUP($L21,'1.1Назв. объ. эл. сетевого хоз.'!$D$2:$E$34,2,0)&" "&IF($M21="5) более четырех","с количеством "&IF($I21="6) метод горизонтального наклонного бурения",VLOOKUP($M21,'1.1Назв. объ. эл. сетевого хоз.'!$D$2:$F$34,3,0),VLOOKUP($M21,'1.1Назв. объ. эл. сетевого хоз.'!$D$2:$E$34,2,0)),IF($I21="6) метод горизонтального наклонного бурения",VLOOKUP($M21,'1.1Назв. объ. эл. сетевого хоз.'!$D$2:$F$34,3,0),VLOOKUP($M21,'1.1Назв. объ. эл. сетевого хоз.'!$D$2:$E$34,2,0))),VLOOKUP($I21,'1.1Назв. объ. эл. сетевого хоз.'!$D$2:$E$34,2,0)&" "&VLOOKUP($J21,'1.1Назв. объ. эл. сетевого хоз.'!$D$2:$E$34,2,0)&" c "&VLOOKUP($K21,'1.1Назв. объ. эл. сетевого хоз.'!$D$2:$E$34,2,0)&" изоляцией "&"сечением провода "&VLOOKUP($L21,'1.1Назв. объ. эл. сетевого хоз.'!$D$2:$E$34,2,0)&" "&IF($M21="5) более четырех","с количеством "&IF($I21="6) метод горизонтального наклонного бурения",VLOOKUP($M21,'1.1Назв. объ. эл. сетевого хоз.'!$D$2:$F$34,3,0),VLOOKUP($M21,'1.1Назв. объ. эл. сетевого хоз.'!$D$2:$E$34,2,0)),IF($I21="6) метод горизонтального наклонного бурения",VLOOKUP($M21,'1.1Назв. объ. эл. сетевого хоз.'!$D$2:$F$34,3,0),VLOOKUP($M21,'1.1Назв. объ. эл. сетевого хоз.'!$D$2:$E$34,2,0)))&" "&VLOOKUP($I21,'1.1Назв. объ. эл. сетевого хоз.'!$D$2:$F$34,3,0))),"Заполните все столбцы") -> кабельные линии в траншеях одножильные c бумажной изоляцией сечением провода от 200 до 250 квадратных мм включительно с двумя кабелями в траншее | G21: Строительство КЛ-10 кВ от РП-155 до ТП-2х2500 кВА (стр. 55) мкр. 30 | H21: I ) Город | I21: 1) траншея | J21: 1) одножильный | K21: 2) бумажная | L21: 4) от 200 до 250 квадратных мм включительно | M21: 2) два | N21: 2) 1 - 10 кВ | O21: =Титульный!$D$10-2 -> 2023 | P21: 0.684 | Q21: 5266660.01 | R21: 7699795.336 | S21: 20 | T21: Инвестиционная программа
B22: X | C22: 10 | D22: 3.1.1.1.1.2 | E22: С 3.1.1.1.1.2, 0,4 кВ и ниже | F22: =IFERROR(LOWER("кабельные линии"&IF($I22="6) метод горизонтального наклонного бурения",VLOOKUP($I22,'1.1Назв. объ. эл. сетевого хоз.'!$D$2:$E$34,2,0)&" "&VLOOKUP($J22,'1.1Назв. объ. эл. сетевого хоз.'!$D$2:$E$34,2,0)&" c "&VLOOKUP($K22,'1.1Назв. объ. эл. сетевого хоз.'!$D$2:$E$34,2,0)&" изоляцией "&"сечением провода "&VLOOKUP($L22,'1.1Назв. объ. эл. сетевого хоз.'!$D$2:$E$34,2,0)&" "&IF($M22="5) более четырех","с количеством "&IF($I22="6) метод горизонтального наклонного бурения",VLOOKUP($M22,'1.1Назв. объ. эл. сетевого хоз.'!$D$2:$F$34,3,0),VLOOKUP($M22,'1.1Назв. объ. эл. сетевого хоз.'!$D$2:$E$34,2,0)),IF($I22="6) метод горизонтального наклонного бурения",VLOOKUP($M22,'1.1Назв. объ. эл. сетевого хоз.'!$D$2:$F$34,3,0),VLOOKUP($M22,'1.1Назв. объ. эл. сетевого хоз.'!$D$2:$E$34,2,0))),VLOOKUP($I22,'1.1Назв. объ. эл. сетевого хоз.'!$D$2:$E$34,2,0)&" "&VLOOKUP($J22,'1.1Назв. объ. эл. сетевого хоз.'!$D$2:$E$34,2,0)&" c "&VLOOKUP($K22,'1.1Назв. объ. эл. сетевого хоз.'!$D$2:$E$34,2,0)&" изоляцией "&"сечением провода "&VLOOKUP($L22,'1.1Назв. объ. эл. сетевого хоз.'!$D$2:$E$34,2,0)&" "&IF($M22="5) более четырех","с количеством "&IF($I22="6) метод горизонтального наклонного бурения",VLOOKUP($M22,'1.1Назв. объ. эл. сетевого хоз.'!$D$2:$F$34,3,0),VLOOKUP($M22,'1.1Назв. объ. эл. сетевого хоз.'!$D$2:$E$34,2,0)),IF($I22="6) метод горизонтального наклонного бурения",VLOOKUP($M22,'1.1Назв. объ. эл. сетевого хоз.'!$D$2:$F$34,3,0),VLOOKUP($M22,'1.1Назв. объ. эл. сетевого хоз.'!$D$2:$E$34,2,0)))&" "&VLOOKUP($I22,'1.1Назв. объ. эл. сетевого хоз.'!$D$2:$F$34,3,0))),"Заполните все столбцы") -> кабельные линии в траншеях одножильные c резиновой или пластмассовой изоляцией сечением провода до 50 квадратных мм включительно с двумя кабелями в траншее | G22: Строительство КЛ-0,4 кВ от ТП-265 до нежилого помещения ОАО "Сургутбытсервис" | H22: I ) Город | I22: 1) траншея | J22: 1) одножильный | K22: 1) резиновая или пластмассовая | L22: 1) до 50 квадратных мм включительно | M22: 2) два | N22: 1) 0,4 кВ и ниже | O22: =Титульный!$D$10-2 -> 2023 | P22: 0.352 | Q22: 2887683 | R22: 8203644.886 | S22: 21 | T22: Инвестиционная программа
B23: X | C23: 11 | D23: 3.1.1.1.1.1 | E23: С 3.1.1.1.1.1, 0,4 кВ и ниже | F23: =IFERROR(LOWER("кабельные линии"&IF($I23="6) метод горизонтального наклонного бурения",VLOOKUP($I23,'1.1Назв. объ. эл. сетевого хоз.'!$D$2:$E$34,2,0)&" "&VLOOKUP($J23,'1.1Назв. объ. эл. сетевого хоз.'!$D$2:$E$34,2,0)&" c "&VLOOKUP($K23,'1.1Назв. объ. эл. сетевого хоз.'!$D$2:$E$34,2,0)&" изоляцией "&"сечением провода "&VLOOKUP($L23,'1.1Назв. объ. эл. сетевого хоз.'!$D$2:$E$34,2,0)&" "&IF($M23="5) более четырех","с количеством "&IF($I23="6) метод горизонтального наклонного бурения",VLOOKUP($M23,'1.1Назв. объ. эл. сетевого хоз.'!$D$2:$F$34,3,0),VLOOKUP($M23,'1.1Назв. объ. эл. сетевого хоз.'!$D$2:$E$34,2,0)),IF($I23="6) метод горизонтального наклонного бурения",VLOOKUP($M23,'1.1Назв. объ. эл. сетевого хоз.'!$D$2:$F$34,3,0),VLOOKUP($M23,'1.1Назв. объ. эл. сетевого хоз.'!$D$2:$E$34,2,0))),VLOOKUP($I23,'1.1Назв. объ. эл. сетевого хоз.'!$D$2:$E$34,2,0)&" "&VLOOKUP($J23,'1.1Назв. объ. эл. сетевого хоз.'!$D$2:$E$34,2,0)&" c "&VLOOKUP($K23,'1.1Назв. объ. эл. сетевого хоз.'!$D$2:$E$34,2,0)&" изоляцией "&"сечением провода "&VLOOKUP($L23,'1.1Назв. объ. эл. сетевого хоз.'!$D$2:$E$34,2,0)&" "&IF($M23="5) более четырех","с количеством "&IF($I23="6) метод горизонтального наклонного бурения",VLOOKUP($M23,'1.1Назв. объ. эл. сетевого хоз.'!$D$2:$F$34,3,0),VLOOKUP($M23,'1.1Назв. объ. эл. сетевого хоз.'!$D$2:$E$34,2,0)),IF($I23="6) метод горизонтального наклонного бурения",VLOOKUP($M23,'1.1Назв. объ. эл. сетевого хоз.'!$D$2:$F$34,3,0),VLOOKUP($M23,'1.1Назв. объ. эл. сетевого хоз.'!$D$2:$E$34,2,0)))&" "&VLOOKUP($I23,'1.1Назв. объ. эл. сетевого хоз.'!$D$2:$F$34,3,0))),"Заполните все столбцы") -> кабельные линии в траншеях одножильные c резиновой или пластмассовой изоляцией сечением провода до 50 квадратных мм включительно с одним кабелем в траншее | G23: Строительство КЛ-0,4 кВ от ТП-265 до потребительского гаражного кооператива "Газон" | H23: I ) Город | I23: 1) траншея | J23: 1) одножильный | K23: 1) резиновая или пластмассовая | L23: 1) до 50 квадратных мм включительно | M23: 1) один | N23: 1) 0,4 кВ и ниже | O23: =Титульный!$D$10-2 -> 2023 | P23: 0.69 | Q23: 137012.28 | R23: Значение расходов вне возможного диапазона | S23: 21 | T23: Инвестиционная программа
B24: X | C24: 12 | D24: 3.1.1.1.1.1 | E24: С 3.1.1.1.1.1, 0,4 кВ и ниже | F24: =IFERROR(LOWER("кабельные линии"&IF($I24="6) метод горизонтального наклонного бурения",VLOOKUP($I24,'1.1Назв. объ. эл. сетевого хоз.'!$D$2:$E$34,2,0)&" "&VLOOKUP($J24,'1.1Назв. объ. эл. сетевого хоз.'!$D$2:$E$34,2,0)&" c "&VLOOKUP($K24,'1.1Назв. объ. эл. сетевого хоз.'!$D$2:$E$34,2,0)&" изоляцией "&"сечением провода "&VLOOKUP($L24,'1.1Назв. объ. эл. сетевого хоз.'!$D$2:$E$34,2,0)&" "&IF($M24="5) более четырех","с количеством "&IF($I24="6) метод горизонтального наклонного бурения",VLOOKUP($M24,'1.1Назв. объ. эл. сетевого хоз.'!$D$2:$F$34,3,0),VLOOKUP($M24,'1.1Назв. объ. эл. сетевого хоз.'!$D$2:$E$34,2,0)),IF($I24="6) метод горизонтального наклонного бурения",VLOOKUP($M24,'1.1Назв. объ. эл. сетевого хоз.'!$D$2:$F$34,3,0),VLOOKUP($M24,'1.1Назв. объ. эл. сетевого хоз.'!$D$2:$E$34,2,0))),VLOOKUP($I24,'1.1Назв. объ. эл. сетевого хоз.'!$D$2:$E$34,2,0)&" "&VLOOKUP($J24,'1.1Назв. объ. эл. сетевого хоз.'!$D$2:$E$34,2,0)&" c "&VLOOKUP($K24,'1.1Назв. объ. эл. сетевого хоз.'!$D$2:$E$34,2,0)&" изоляцией "&"сечением провода "&VLOOKUP($L24,'1.1Назв. объ. эл. сетевого хоз.'!$D$2:$E$34,2,0)&" "&IF($M24="5) более четырех","с количеством "&IF($I24="6) метод горизонтального наклонного бурения",VLOOKUP($M24,'1.1Назв. объ. эл. сетевого хоз.'!$D$2:$F$34,3,0),VLOOKUP($M24,'1.1Назв. объ. эл. сетевого хоз.'!$D$2:$E$34,2,0)),IF($I24="6) метод горизонтального наклонного бурения",VLOOKUP($M24,'1.1Назв. объ. эл. сетевого хоз.'!$D$2:$F$34,3,0),VLOOKUP($M24,'1.1Назв. объ. эл. сетевого хоз.'!$D$2:$E$34,2,0)))&" "&VLOOKUP($I24,'1.1Назв. объ. эл. сетевого хоз.'!$D$2:$F$34,3,0))),"Заполните все столбцы") -> кабельные линии в траншеях одножильные c резиновой или пластмассовой изоляцией сечением провода до 50 квадратных мм включительно с одним кабелем в траншее | G24: Строительство КЛ-0,4 кВ от ВРУ Майская 14 до остановочного комплекса | H24: I ) Город | I24: 1) траншея | J24: 1) одножильный | K24: 1) резиновая или пластмассовая | L24: 1) до 50 квадратных мм включительно | M24: 1) один | N24: 1) 0,4 кВ и ниже | O24: =Титульный!$D$10-2 -> 2023 | P24: 0.85 | Q24: 238756 | R24: Значение расходов вне возможного диапазона | S24: 22 | T24: Инвестиционная программа
B25: X | C25: 13 | D25: 3.1.1.1.3.2 | E25: С 3.1.1.1.3.2, 0,4 кВ и ниже | F25: =IFERROR(LOWER("кабельные линии"&IF($I25="6) метод горизонтального наклонного бурения",VLOOKUP($I25,'1.1Назв. объ. эл. сетевого хоз.'!$D$2:$E$34,2,0)&" "&VLOOKUP($J25,'1.1Назв. объ. эл. сетевого хоз.'!$D$2:$E$34,2,0)&" c "&VLOOKUP($K25,'1.1Назв. объ. эл. сетевого хоз.'!$D$2:$E$34,2,0)&" изоляцией "&"сечением провода "&VLOOKUP($L25,'1.1Назв. объ. эл. сетевого хоз.'!$D$2:$E$34,2,0)&" "&IF($M25="5) более четырех","с количеством "&IF($I25="6) метод горизонтального наклонного бурения",VLOOKUP($M25,'1.1Назв. объ. эл. сетевого хоз.'!$D$2:$F$34,3,0),VLOOKUP($M25,'1.1Назв. объ. эл. сетевого хоз.'!$D$2:$E$34,2,0)),IF($I25="6) метод горизонтального наклонного бурения",VLOOKUP($M25,'1.1Назв. объ. эл. сетевого хоз.'!$D$2:$F$34,3,0),VLOOKUP($M25,'1.1Назв. объ. эл. сетевого хоз.'!$D$2:$E$34,2,0))),VLOOKUP($I25,'1.1Назв. объ. эл. сетевого хоз.'!$D$2:$E$34,2,0)&" "&VLOOKUP($J25,'1.1Назв. объ. эл. сетевого хоз.'!$D$2:$E$34,2,0)&" c "&VLOOKUP($K25,'1.1Назв. объ. эл. сетевого хоз.'!$D$2:$E$34,2,0)&" изоляцией "&"сечением провода "&VLOOKUP($L25,'1.1Назв. объ. эл. сетевого хоз.'!$D$2:$E$34,2,0)&" "&IF($M25="5) более четырех","с количеством "&IF($I25="6) метод горизонтального наклонного бурения",VLOOKUP($M25,'1.1Назв. объ. эл. сетевого хоз.'!$D$2:$F$34,3,0),VLOOKUP($M25,'1.1Назв. объ. эл. сетевого хоз.'!$D$2:$E$34,2,0)),IF($I25="6) метод горизонтального наклонного бурения",VLOOKUP($M25,'1.1Назв. объ. эл. сетевого хоз.'!$D$2:$F$34,3,0),VLOOKUP($M25,'1.1Назв. объ. эл. сетевого хоз.'!$D$2:$E$34,2,0)))&" "&VLOOKUP($I25,'1.1Назв. объ. эл. сетевого хоз.'!$D$2:$F$34,3,0))),"Заполните все столбцы") -> кабельные линии в траншеях одножильные c резиновой или пластмассовой изоляцией сечением провода от 100 до 200 квадратных мм включительно с двумя кабелями в траншее | G25: Строительство КЛ-0,4 кВ ТП-267 ул. Майская 6/2 | H25: I ) Город | I25: 1) траншея | J25: 1) одножильный | K25: 1) резиновая или пластмассовая | L25: 3) от 100 до 200 квадратных мм включительно | M25: 2) два | N25: 1) 0,4 кВ и ниже | O25: =Титульный!$D$10-2 -> 2023 | P25: 0.77 | Q25: 5165376 | R25: 6708280.519 | S25: 22 | T25: Инвестиционная программа
B26: X | C26: 14 | D26: 3.1.1.1.3.2 | E26: С 3.1.1.1.3.2, 0,4 кВ и ниже | F26: =IFERROR(LOWER("кабельные линии"&IF($I26="6) метод горизонтального наклонного бурения",VLOOKUP($I26,'1.1Назв. объ. эл. сетевого хоз.'!$D$2:$E$34,2,0)&" "&VLOOKUP($J26,'1.1Назв. объ. эл. сетевого хоз.'!$D$2:$E$34,2,0)&" c "&VLOOKUP($K26,'1.1Назв. объ. эл. сетевого хоз.'!$D$2:$E$34,2,0)&" изоляцией "&"сечением провода "&VLOOKUP($L26,'1.1Назв. объ. эл. сетевого хоз.'!$D$2:$E$34,2,0)&" "&IF($M26="5) более четырех","с количеством "&IF($I26="6) метод горизонтального наклонного бурения",VLOOKUP($M26,'1.1Назв. объ. эл. сетевого хоз.'!$D$2:$F$34,3,0),VLOOKUP($M26,'1.1Назв. объ. эл. сетевого хоз.'!$D$2:$E$34,2,0)),IF($I26="6) метод горизонтального наклонного бурения",VLOOKUP($M26,'1.1Назв. объ. эл. сетевого хоз.'!$D$2:$F$34,3,0),VLOOKUP($M26,'1.1Назв. объ. эл. сетевого хоз.'!$D$2:$E$34,2,0))),VLOOKUP($I26,'1.1Назв. объ. эл. сетевого хоз.'!$D$2:$E$34,2,0)&" "&VLOOKUP($J26,'1.1Назв. объ. эл. сетевого хоз.'!$D$2:$E$34,2,0)&" c "&VLOOKUP($K26,'1.1Назв. объ. эл. сетевого хоз.'!$D$2:$E$34,2,0)&" изоляцией "&"сечением провода "&VLOOKUP($L26,'1.1Назв. объ. эл. сетевого хоз.'!$D$2:$E$34,2,0)&" "&IF($M26="5) более четырех","с количеством "&IF($I26="6) метод горизонтального наклонного бурения",VLOOKUP($M26,'1.1Назв. объ. эл. сетевого хоз.'!$D$2:$F$34,3,0),VLOOKUP($M26,'1.1Назв. объ. эл. сетевого хоз.'!$D$2:$E$34,2,0)),IF($I26="6) метод горизонтального наклонного бурения",VLOOKUP($M26,'1.1Назв. объ. эл. сетевого хоз.'!$D$2:$F$34,3,0),VLOOKUP($M26,'1.1Назв. объ. эл. сетевого хоз.'!$D$2:$E$34,2,0)))&" "&VLOOKUP($I26,'1.1Назв. объ. эл. сетевого хоз.'!$D$2:$F$34,3,0))),"Заполните все столбцы") -> кабельные линии в траншеях одножильные c резиновой или пластмассовой изоляцией сечением провода от 100 до 200 квадратных мм включительно с двумя кабелями в траншее | G26: Строительство КЛ-0,4 кВ от ТП-333 до д/с "Крепыш" | H26: I ) Город | I26: 1) траншея | J26: 1) одножильный | K26: 1) резиновая или пластмассовая | L26: 3) от 100 до 200 квадратных мм включительно | M26: 2) два | N26: 1) 0,4 кВ и ниже | O26: =Титульный!$D$10-2 -> 2023 | P26: 0.442 | Q26: 1707402.64 | R26: 3862901.9 | S26: 22 | T26: Инвестиционная программа
B27: X | C27: 15 | D27: 3.1.1.1.4.4 | E27: С 3.1.1.1.4.4, 0,4 кВ и ниже | F27: =IFERROR(LOWER("кабельные линии"&IF($I27="6) метод горизонтального наклонного бурения",VLOOKUP($I27,'1.1Назв. объ. эл. сетевого хоз.'!$D$2:$E$34,2,0)&" "&VLOOKUP($J27,'1.1Назв. объ. эл. сетевого хоз.'!$D$2:$E$34,2,0)&" c "&VLOOKUP($K27,'1.1Назв. объ. эл. сетевого хоз.'!$D$2:$E$34,2,0)&" изоляцией "&"сечением провода "&VLOOKUP($L27,'1.1Назв. объ. эл. сетевого хоз.'!$D$2:$E$34,2,0)&" "&IF($M27="5) более четырех","с количеством "&IF($I27="6) метод горизонтального наклонного бурения",VLOOKUP($M27,'1.1Назв. объ. эл. сетевого хоз.'!$D$2:$F$34,3,0),VLOOKUP($M27,'1.1Назв. объ. эл. сетевого хоз.'!$D$2:$E$34,2,0)),IF($I27="6) метод горизонтального наклонного бурения",VLOOKUP($M27,'1.1Назв. объ. эл. сетевого хоз.'!$D$2:$F$34,3,0),VLOOKUP($M27,'1.1Назв. объ. эл. сетевого хоз.'!$D$2:$E$34,2,0))),VLOOKUP($I27,'1.1Назв. объ. эл. сетевого хоз.'!$D$2:$E$34,2,0)&" "&VLOOKUP($J27,'1.1Назв. объ. эл. сетевого хоз.'!$D$2:$E$34,2,0)&" c "&VLOOKUP($K27,'1.1Назв. объ. эл. сетевого хоз.'!$D$2:$E$34,2,0)&" изоляцией "&"сечением провода "&VLOOKUP($L27,'1.1Назв. объ. эл. сетевого хоз.'!$D$2:$E$34,2,0)&" "&IF($M27="5) более четырех","с количеством "&IF($I27="6) метод горизонтального наклонного бурения",VLOOKUP($M27,'1.1Назв. объ. эл. сетевого хоз.'!$D$2:$F$34,3,0),VLOOKUP($M27,'1.1Назв. объ. эл. сетевого хоз.'!$D$2:$E$34,2,0)),IF($I27="6) метод горизонтального наклонного бурения",VLOOKUP($M27,'1.1Назв. объ. эл. сетевого хоз.'!$D$2:$F$34,3,0),VLOOKUP($M27,'1.1Назв. объ. эл. сетевого хоз.'!$D$2:$E$34,2,0)))&" "&VLOOKUP($I27,'1.1Назв. объ. эл. сетевого хоз.'!$D$2:$F$34,3,0))),"Заполните все столбцы") -> кабельные линии в траншеях одножильные c резиновой или пластмассовой изоляцией сечением провода от 200 до 250 квадратных мм включительно с четырьмя кабелями в траншее | G27: Строительство КЛ-0,4 кВ от ТП-265 до Бизнес центр | H27: I ) Город | I27: 1) траншея | J27: 1) одножильный | K27: 1) резиновая или пластмассовая | L27: 4) от 200 до 250 квадратных мм включительно | M27: 4) четыре | N27: 1) 0,4 кВ и ниже | O27: =Титульный!$D$10-2 -> 2023 | P27: 1.148 | Q27: 10905257 | R27: 9499352.787 | S27: 23 | T27: Инвестиционная программа
B28: X | C28: 16 | D28: 3.1.1.1.3.2 | E28: С 3.1.1.1.3.2, 0,4 кВ и ниже | F28: =IFERROR(LOWER("кабельные линии"&IF($I28="6) метод горизонтального наклонного бурения",VLOOKUP($I28,'1.1Назв. объ. эл. сетевого хоз.'!$D$2:$E$34,2,0)&" "&VLOOKUP($J28,'1.1Назв. объ. эл. сетевого хоз.'!$D$2:$E$34,2,0)&" c "&VLOOKUP($K28,'1.1Назв. объ. эл. сетевого хоз.'!$D$2:$E$34,2,0)&" изоляцией "&"сечением провода "&VLOOKUP($L28,'1.1Назв. объ. эл. сетевого хоз.'!$D$2:$E$34,2,0)&" "&IF($M28="5) более четырех","с количеством "&IF($I28="6) метод горизонтального наклонного бурения",VLOOKUP($M28,'1.1Назв. объ. эл. сетевого хоз.'!$D$2:$F$34,3,0),VLOOKUP($M28,'1.1Назв. объ. эл. сетевого хоз.'!$D$2:$E$34,2,0)),IF($I28="6) метод горизонтального наклонного бурения",VLOOKUP($M28,'1.1Назв. объ. эл. сетевого хоз.'!$D$2:$F$34,3,0),VLOOKUP($M28,'1.1Назв. объ. эл. сетевого хоз.'!$D$2:$E$34,2,0))),VLOOKUP($I28,'1.1Назв. объ. эл. сетевого хоз.'!$D$2:$E$34,2,0)&" "&VLOOKUP($J28,'1.1Назв. объ. эл. сетевого хоз.'!$D$2:$E$34,2,0)&" c "&VLOOKUP($K28,'1.1Назв. объ. эл. сетевого хоз.'!$D$2:$E$34,2,0)&" изоляцией "&"сечением провода "&VLOOKUP($L28,'1.1Назв. объ. эл. сетевого хоз.'!$D$2:$E$34,2,0)&" "&IF($M28="5) более четырех","с количеством "&IF($I28="6) метод горизонтального наклонного бурения",VLOOKUP($M28,'1.1Назв. объ. эл. сетевого хоз.'!$D$2:$F$34,3,0),VLOOKUP($M28,'1.1Назв. объ. эл. сетевого хоз.'!$D$2:$E$34,2,0)),IF($I28="6) метод горизонтального наклонного бурения",VLOOKUP($M28,'1.1Назв. объ. эл. сетевого хоз.'!$D$2:$F$34,3,0),VLOOKUP($M28,'1.1Назв. объ. эл. сетевого хоз.'!$D$2:$E$34,2,0)))&" "&VLOOKUP($I28,'1.1Назв. объ. эл. сетевого хоз.'!$D$2:$F$34,3,0))),"Заполните все столбцы") -> кабельные линии в траншеях одножильные c резиновой или пластмассовой изоляцией сечением провода от 100 до 200 квадратных мм включительно с двумя кабелями в траншее | G28: Строительство КЛ-0,4 кВ ТП-276 - Бахилова, 3 | H28: I ) Город | I28: 1) траншея | J28: 1) одножильный | K28: 1) резиновая или пластмассовая | L28: 3) от 100 до 200 квадратных мм включительно | M28: 2) два | N28: 1) 0,4 кВ и ниже | O28: =Титульный!$D$10-2 -> 2023 | P28: 1.68 | Q28: 423122 | R28: Значение расходов вне возможного диапазона | S28: 24 | T28: Инвестиционная программа
B29: X | C29: 17 | D29: 3.1.1.1.3.2 | E29: С 3.1.1.1.3.2, 0,4 кВ и ниже | F29: =IFERROR(LOWER("кабельные линии"&IF($I29="6) метод горизонтального наклонного бурения",VLOOKUP($I29,'1.1Назв. объ. эл. сетевого хоз.'!$D$2:$E$34,2,0)&" "&VLOOKUP($J29,'1.1Назв. объ. эл. сетевого хоз.'!$D$2:$E$34,2,0)&" c "&VLOOKUP($K29,'1.1Назв. объ. эл. сетевого хоз.'!$D$2:$E$34,2,0)&" изоляцией "&"сечением провода "&VLOOKUP($L29,'1.1Назв. объ. эл. сетевого хоз.'!$D$2:$E$34,2,0)&" "&IF($M29="5) более четырех","с количеством "&IF($I29="6) метод горизонтального наклонного бурения",VLOOKUP($M29,'1.1Назв. объ. эл. сетевого хоз.'!$D$2:$F$34,3,0),VLOOKUP($M29,'1.1Назв. объ. эл. сетевого хоз.'!$D$2:$E$34,2,0)),IF($I29="6) метод горизонтального наклонного бурения",VLOOKUP($M29,'1.1Назв. объ. эл. сетевого хоз.'!$D$2:$F$34,3,0),VLOOKUP($M29,'1.1Назв. объ. эл. сетевого хоз.'!$D$2:$E$34,2,0))),VLOOKUP($I29,'1.1Назв. объ. эл. сетевого хоз.'!$D$2:$E$34,2,0)&" "&VLOOKUP($J29,'1.1Назв. объ. эл. сетевого хоз.'!$D$2:$E$34,2,0)&" c "&VLOOKUP($K29,'1.1Назв. объ. эл. сетевого хоз.'!$D$2:$E$34,2,0)&" изоляцией "&"сечением провода "&VLOOKUP($L29,'1.1Назв. объ. эл. сетевого хоз.'!$D$2:$E$34,2,0)&" "&IF($M29="5) более четырех","с количеством "&IF($I29="6) метод горизонтального наклонного бурения",VLOOKUP($M29,'1.1Назв. объ. эл. сетевого хоз.'!$D$2:$F$34,3,0),VLOOKUP($M29,'1.1Назв. объ. эл. сетевого хоз.'!$D$2:$E$34,2,0)),IF($I29="6) метод горизонтального наклонного бурения",VLOOKUP($M29,'1.1Назв. объ. эл. сетевого хоз.'!$D$2:$F$34,3,0),VLOOKUP($M29,'1.1Назв. объ. эл. сетевого хоз.'!$D$2:$E$34,2,0)))&" "&VLOOKUP($I29,'1.1Назв. объ. эл. сетевого хоз.'!$D$2:$F$34,3,0))),"Заполните все столбцы") -> кабельные линии в траншеях одножильные c резиновой или пластмассовой изоляцией сечением провода от 100 до 200 квадратных мм включительно с двумя кабелями в траншее | G29: Строительство КЛ-0,4 кВ ТП-243 - ж/д Дзержинского, 10 | H29: I ) Город | I29: 1) траншея | J29: 1) одножильный | K29: 1) резиновая или пластмассовая | L29: 3) от 100 до 200 квадратных мм включительно | M29: 2) два | N29: 1) 0,4 кВ и ниже | O29: =Титульный!$D$10-2 -> 2023 | P29: 0.494 | Q29: 1846988 | R29: 3738842.105 | S29: 24 | T29: Инвестиционная программа
B30: X | C30: 18 | D30: 3.1.1.1.3.2 | E30: С 3.1.1.1.3.2, 0,4 кВ и ниже | F30: =IFERROR(LOWER("кабельные линии"&IF($I30="6) метод горизонтального наклонного бурения",VLOOKUP($I30,'1.1Назв. объ. эл. сетевого хоз.'!$D$2:$E$34,2,0)&" "&VLOOKUP($J30,'1.1Назв. объ. эл. сетевого хоз.'!$D$2:$E$34,2,0)&" c "&VLOOKUP($K30,'1.1Назв. объ. эл. сетевого хоз.'!$D$2:$E$34,2,0)&" изоляцией "&"сечением провода "&VLOOKUP($L30,'1.1Назв. объ. эл. сетевого хоз.'!$D$2:$E$34,2,0)&" "&IF($M30="5) более четырех","с количеством "&IF($I30="6) метод горизонтального наклонного бурения",VLOOKUP($M30,'1.1Назв. объ. эл. сетевого хоз.'!$D$2:$F$34,3,0),VLOOKUP($M30,'1.1Назв. объ. эл. сетевого хоз.'!$D$2:$E$34,2,0)),IF($I30="6) метод горизонтального наклонного бурения",VLOOKUP($M30,'1.1Назв. объ. эл. сетевого хоз.'!$D$2:$F$34,3,0),VLOOKUP($M30,'1.1Назв. объ. эл. сетевого хоз.'!$D$2:$E$34,2,0))),VLOOKUP($I30,'1.1Назв. объ. эл. сетевого хоз.'!$D$2:$E$34,2,0)&" "&VLOOKUP($J30,'1.1Назв. объ. эл. сетевого хоз.'!$D$2:$E$34,2,0)&" c "&VLOOKUP($K30,'1.1Назв. объ. эл. сетевого хоз.'!$D$2:$E$34,2,0)&" изоляцией "&"сечением провода "&VLOOKUP($L30,'1.1Назв. объ. эл. сетевого хоз.'!$D$2:$E$34,2,0)&" "&IF($M30="5) более четырех","с количеством "&IF($I30="6) метод горизонтального наклонного бурения",VLOOKUP($M30,'1.1Назв. объ. эл. сетевого хоз.'!$D$2:$F$34,3,0),VLOOKUP($M30,'1.1Назв. объ. эл. сетевого хоз.'!$D$2:$E$34,2,0)),IF($I30="6) метод горизонтального наклонного бурения",VLOOKUP($M30,'1.1Назв. объ. эл. сетевого хоз.'!$D$2:$F$34,3,0),VLOOKUP($M30,'1.1Назв. объ. эл. сетевого хоз.'!$D$2:$E$34,2,0)))&" "&VLOOKUP($I30,'1.1Назв. объ. эл. сетевого хоз.'!$D$2:$F$34,3,0))),"Заполните все столбцы") -> кабельные линии в траншеях одножильные c резиновой или пластмассовой изоляцией сечением провода от 100 до 200 квадратных мм включительно с двумя кабелями в траншее | G30: Строительство КЛ-0,4 кВ ТП-243 - ж/д Дзержинского, 12 | H30: I ) Город | I30: 1) траншея | J30: 1) одножильный | K30: 1) резиновая или пластмассовая | L30: 3) от 100 до 200 квадратных мм включительно | M30: 2) два | N30: 1) 0,4 кВ и ниже | O30: =Титульный!$D$10-2 -> 2023 | P30: 0.27 | Q30: 995859.1 | R30: 3688367.037 | S30: 24 | T30: Инвестиционная программа
B31: X | C31: 19 | D31: 3.1.1.2.2.2 | E31: С 3.1.1.2.2.2, 1 - 10 кВ | F31: =IFERROR(LOWER("кабельные линии"&IF($I31="6) метод горизонтального наклонного бурения",VLOOKUP($I31,'1.1Назв. объ. эл. сетевого хоз.'!$D$2:$E$34,2,0)&" "&VLOOKUP($J31,'1.1Назв. объ. эл. сетевого хоз.'!$D$2:$E$34,2,0)&" c "&VLOOKUP($K31,'1.1Назв. объ. эл. сетевого хоз.'!$D$2:$E$34,2,0)&" изоляцией "&"сечением провода "&VLOOKUP($L31,'1.1Назв. объ. эл. сетевого хоз.'!$D$2:$E$34,2,0)&" "&IF($M31="5) более четырех","с количеством "&IF($I31="6) метод горизонтального наклонного бурения",VLOOKUP($M31,'1.1Назв. объ. эл. сетевого хоз.'!$D$2:$F$34,3,0),VLOOKUP($M31,'1.1Назв. объ. эл. сетевого хоз.'!$D$2:$E$34,2,0)),IF($I31="6) метод горизонтального наклонного бурения",VLOOKUP($M31,'1.1Назв. объ. эл. сетевого хоз.'!$D$2:$F$34,3,0),VLOOKUP($M31,'1.1Назв. объ. эл. сетевого хоз.'!$D$2:$E$34,2,0))),VLOOKUP($I31,'1.1Назв. объ. эл. сетевого хоз.'!$D$2:$E$34,2,0)&" "&VLOOKUP($J31,'1.1Назв. объ. эл. сетевого хоз.'!$D$2:$E$34,2,0)&" c "&VLOOKUP($K31,'1.1Назв. объ. эл. сетевого хоз.'!$D$2:$E$34,2,0)&" изоляцией "&"сечением провода "&VLOOKUP($L31,'1.1Назв. объ. эл. сетевого хоз.'!$D$2:$E$34,2,0)&" "&IF($M31="5) более четырех","с количеством "&IF($I31="6) метод горизонтального наклонного бурения",VLOOKUP($M31,'1.1Назв. объ. эл. сетевого хоз.'!$D$2:$F$34,3,0),VLOOKUP($M31,'1.1Назв. объ. эл. сетевого хоз.'!$D$2:$E$34,2,0)),IF($I31="6) метод горизонтального наклонного бурения",VLOOKUP($M31,'1.1Назв. объ. эл. сетевого хоз.'!$D$2:$F$34,3,0),VLOOKUP($M31,'1.1Назв. объ. эл. сетевого хоз.'!$D$2:$E$34,2,0)))&" "&VLOOKUP($I31,'1.1Назв. объ. эл. сетевого хоз.'!$D$2:$F$34,3,0))),"Заполните все столбцы") -> кабельные линии в траншеях одножильные c бумажной изоляцией сечением провода от 50 до 100 квадратных мм включительно с двумя кабелями в траншее | G31: Строительство КЛ-6 кВ от опоры №27 ВЛ-6кВ фидер 68-08 до КТПН-772 | H31: I ) Город | I31: 1) траншея | J31: 1) одножильный | K31: 2) бумажная | L31: 2) от 50 до 100 квадратных мм включительно | M31: 2) два | N31: 2) 1 - 10 кВ | O31: =Титульный!$D$10-2 -> 2023 | P31: 0.234 | Q31: 787985 | R31: 3367457.265 | S31: 25 | T31: Инвестиционная программа
B32: X | C32: 20 | D32: 3.1.1.2.3.2 | E32: С 3.1.1.2.3.2, 1 - 10 кВ | F32: =IFERROR(LOWER("кабельные линии"&IF($I32="6) метод горизонтального наклонного бурения",VLOOKUP($I32,'1.1Назв. объ. эл. сетевого хоз.'!$D$2:$E$34,2,0)&" "&VLOOKUP($J32,'1.1Назв. объ. эл. сетевого хоз.'!$D$2:$E$34,2,0)&" c "&VLOOKUP($K32,'1.1Назв. объ. эл. сетевого хоз.'!$D$2:$E$34,2,0)&" изоляцией "&"сечением провода "&VLOOKUP($L32,'1.1Назв. объ. эл. сетевого хоз.'!$D$2:$E$34,2,0)&" "&IF($M32="5) более четырех","с количеством "&IF($I32="6) метод горизонтального наклонного бурения",VLOOKUP($M32,'1.1Назв. объ. эл. сетевого хоз.'!$D$2:$F$34,3,0),VLOOKUP($M32,'1.1Назв. объ. эл. сетевого хоз.'!$D$2:$E$34,2,0)),IF($I32="6) метод горизонтального наклонного бурения",VLOOKUP($M32,'1.1Назв. объ. эл. сетевого хоз.'!$D$2:$F$34,3,0),VLOOKUP($M32,'1.1Назв. объ. эл. сетевого хоз.'!$D$2:$E$34,2,0))),VLOOKUP($I32,'1.1Назв. объ. эл. сетевого хоз.'!$D$2:$E$34,2,0)&" "&VLOOKUP($J32,'1.1Назв. объ. эл. сетевого хоз.'!$D$2:$E$34,2,0)&" c "&VLOOKUP($K32,'1.1Назв. объ. эл. сетевого хоз.'!$D$2:$E$34,2,0)&" изоляцией "&"сечением провода "&VLOOKUP($L32,'1.1Назв. объ. эл. сетевого хоз.'!$D$2:$E$34,2,0)&" "&IF($M32="5) более четырех","с количеством "&IF($I32="6) метод горизонтального наклонного бурения",VLOOKUP($M32,'1.1Назв. объ. эл. сетевого хоз.'!$D$2:$F$34,3,0),VLOOKUP($M32,'1.1Назв. объ. эл. сетевого хоз.'!$D$2:$E$34,2,0)),IF($I32="6) метод горизонтального наклонного бурения",VLOOKUP($M32,'1.1Назв. объ. эл. сетевого хоз.'!$D$2:$F$34,3,0),VLOOKUP($M32,'1.1Назв. объ. эл. сетевого хоз.'!$D$2:$E$34,2,0)))&" "&VLOOKUP($I32,'1.1Назв. объ. эл. сетевого хоз.'!$D$2:$F$34,3,0))),"Заполните все столбцы") -> кабельные линии в траншеях одножильные c бумажной изоляцией сечением провода от 100 до 200 квадратных мм включительно с двумя кабелями в траншее | G32: Строительство КЛ-6 кВ от КТПН №1-630 кВА СТСН "Север-1" до КТПН №1 400 кВА СПК "Север" | H32: I ) Город | I32: 1) траншея | J32: 1) одножильный | K32: 2) бумажная | L32: 3) от 100 до 200 квадратных мм включительно | M32: 2) два | N32: 2) 1 - 10 кВ | O32: =Титульный!$D$10-2 -> 2023 | P32: 1.084 | Q32: 6824672 | R32: 6295822.878 | S32: 26 | T32: Инвестиционная программа
B33: X | C33: 21 | D33: 3.1.1.2.3.2 | E33: С 3.1.1.2.3.2, 1 - 10 кВ | F33: =IFERROR(LOWER("кабельные линии"&IF($I33="6) метод горизонтального наклонного бурения",VLOOKUP($I33,'1.1Назв. объ. эл. сетевого хоз.'!$D$2:$E$34,2,0)&" "&VLOOKUP($J33,'1.1Назв. объ. эл. сетевого хоз.'!$D$2:$E$34,2,0)&" c "&VLOOKUP($K33,'1.1Назв. объ. эл. сетевого хоз.'!$D$2:$E$34,2,0)&" изоляцией "&"сечением провода "&VLOOKUP($L33,'1.1Назв. объ. эл. сетевого хоз.'!$D$2:$E$34,2,0)&" "&IF($M33="5) более четырех","с количеством "&IF($I33="6) метод горизонтального наклонного бурения",VLOOKUP($M33,'1.1Назв. объ. эл. сетевого хоз.'!$D$2:$F$34,3,0),VLOOKUP($M33,'1.1Назв. объ. эл. сетевого хоз.'!$D$2:$E$34,2,0)),IF($I33="6) метод горизонтального наклонного бурения",VLOOKUP($M33,'1.1Назв. объ. эл. сетевого хоз.'!$D$2:$F$34,3,0),VLOOKUP($M33,'1.1Назв. объ. эл. сетевого хоз.'!$D$2:$E$34,2,0))),VLOOKUP($I33,'1.1Назв. объ. эл. сетевого хоз.'!$D$2:$E$34,2,0)&" "&VLOOKUP($J33,'1.1Назв. объ. эл. сетевого хоз.'!$D$2:$E$34,2,0)&" c "&VLOOKUP($K33,'1.1Назв. объ. эл. сетевого хоз.'!$D$2:$E$34,2,0)&" изоляцией "&"сечением провода "&VLOOKUP($L33,'1.1Назв. объ. эл. сетевого хоз.'!$D$2:$E$34,2,0)&" "&IF($M33="5) более четырех","с количеством "&IF($I33="6) метод горизонтального наклонного бурения",VLOOKUP($M33,'1.1Назв. объ. эл. сетевого хоз.'!$D$2:$F$34,3,0),VLOOKUP($M33,'1.1Назв. объ. эл. сетевого хоз.'!$D$2:$E$34,2,0)),IF($I33="6) метод горизонтального наклонного бурения",VLOOKUP($M33,'1.1Назв. объ. эл. сетевого хоз.'!$D$2:$F$34,3,0),VLOOKUP($M33,'1.1Назв. объ. эл. сетевого хоз.'!$D$2:$E$34,2,0)))&" "&VLOOKUP($I33,'1.1Назв. объ. эл. сетевого хоз.'!$D$2:$F$34,3,0))),"Заполните все столбцы") -> кабельные линии в траншеях одножильные c бумажной изоляцией сечением провода от 100 до 200 квадратных мм включительно с двумя кабелями в траншее | G33: Строительство КЛ-6 кВ от КТПН №1-400 кВА СПК "Север" до КТПН №2 1000 кВА СПК "Север" | H33: I ) Город | I33: 1) траншея | J33: 1) одножильный | K33: 2) бумажная | L33: 3) от 100 до 200 квадратных мм включительно | M33: 2) два | N33: 2) 1 - 10 кВ | O33: =Титульный!$D$10-2 -> 2023 | P33: 0.8 | Q33: 4407785 | R33: 5509731.25 | S33: 26 | T33: Инвестиционная программа
B34: X | C34: 22 | D34: 3.1.1.2.4.2 | E34: С 3.1.1.2.4.2, 1 - 10 кВ | F34: =IFERROR(LOWER("кабельные линии"&IF($I34="6) метод горизонтального наклонного бурения",VLOOKUP($I34,'1.1Назв. объ. эл. сетевого хоз.'!$D$2:$E$34,2,0)&" "&VLOOKUP($J34,'1.1Назв. объ. эл. сетевого хоз.'!$D$2:$E$34,2,0)&" c "&VLOOKUP($K34,'1.1Назв. объ. эл. сетевого хоз.'!$D$2:$E$34,2,0)&" изоляцией "&"сечением провода "&VLOOKUP($L34,'1.1Назв. объ. эл. сетевого хоз.'!$D$2:$E$34,2,0)&" "&IF($M34="5) более четырех","с количеством "&IF($I34="6) метод горизонтального наклонного бурения",VLOOKUP($M34,'1.1Назв. объ. эл. сетевого хоз.'!$D$2:$F$34,3,0),VLOOKUP($M34,'1.1Назв. объ. эл. сетевого хоз.'!$D$2:$E$34,2,0)),IF($I34="6) метод горизонтального наклонного бурения",VLOOKUP($M34,'1.1Назв. объ. эл. сетевого хоз.'!$D$2:$F$34,3,0),VLOOKUP($M34,'1.1Назв. объ. эл. сетевого хоз.'!$D$2:$E$34,2,0))),VLOOKUP($I34,'1.1Назв. объ. эл. сетевого хоз.'!$D$2:$E$34,2,0)&" "&VLOOKUP($J34,'1.1Назв. объ. эл. сетевого хоз.'!$D$2:$E$34,2,0)&" c "&VLOOKUP($K34,'1.1Назв. объ. эл. сетевого хоз.'!$D$2:$E$34,2,0)&" изоляцией "&"сечением провода "&VLOOKUP($L34,'1.1Назв. объ. эл. сетевого хоз.'!$D$2:$E$34,2,0)&" "&IF($M34="5) более четырех","с количеством "&IF($I34="6) метод горизонтального наклонного бурения",VLOOKUP($M34,'1.1Назв. объ. эл. сетевого хоз.'!$D$2:$F$34,3,0),VLOOKUP($M34,'1.1Назв. объ. эл. сетевого хоз.'!$D$2:$E$34,2,0)),IF($I34="6) метод горизонтального наклонного бурения",VLOOKUP($M34,'1.1Назв. объ. эл. сетевого хоз.'!$D$2:$F$34,3,0),VLOOKUP($M34,'1.1Назв. объ. эл. сетевого хоз.'!$D$2:$E$34,2,0)))&" "&VLOOKUP($I34,'1.1Назв. объ. эл. сетевого хоз.'!$D$2:$F$34,3,0))),"Заполните все столбцы") -> кабельные линии в траншеях одножильные c бумажной изоляцией сечением провода от 200 до 250 квадратных мм включительно с двумя кабелями в траншее | G34: Строительство КЛ-10 кВ от ТП-475 до БКТП-465 | H34: I ) Город | I34: 1) траншея | J34: 1) одножильный | K34: 2) бумажная | L34: 4) от 200 до 250 квадратных мм включительно | M34: 2) два | N34: 2) 1 - 10 кВ | O34: =Титульный!$D$10-2 -> 2023 | P34: 0.768 | Q34: 6533000 | R34: 8506510.417 | S34: 27, 27.1 | T34: Инвестиционная программа
B35: X | C35: 23 | D35: 3.1.1.1.3.4 | E35: С 3.1.1.1.3.4, 0,4 кВ и ниже | F35: =IFERROR(LOWER("кабельные линии"&IF($I35="6) метод горизонтального наклонного бурения",VLOOKUP($I35,'1.1Назв. объ. эл. сетевого хоз.'!$D$2:$E$34,2,0)&" "&VLOOKUP($J35,'1.1Назв. объ. эл. сетевого хоз.'!$D$2:$E$34,2,0)&" c "&VLOOKUP($K35,'1.1Назв. объ. эл. сетевого хоз.'!$D$2:$E$34,2,0)&" изоляцией "&"сечением провода "&VLOOKUP($L35,'1.1Назв. объ. эл. сетевого хоз.'!$D$2:$E$34,2,0)&" "&IF($M35="5) более четырех","с количеством "&IF($I35="6) метод горизонтального наклонного бурения",VLOOKUP($M35,'1.1Назв. объ. эл. сетевого хоз.'!$D$2:$F$34,3,0),VLOOKUP($M35,'1.1Назв. объ. эл. сетевого хоз.'!$D$2:$E$34,2,0)),IF($I35="6) метод горизонтального наклонного бурения",VLOOKUP($M35,'1.1Назв. объ. эл. сетевого хоз.'!$D$2:$F$34,3,0),VLOOKUP($M35,'1.1Назв. объ. эл. сетевого хоз.'!$D$2:$E$34,2,0))),VLOOKUP($I35,'1.1Назв. объ. эл. сетевого хоз.'!$D$2:$E$34,2,0)&" "&VLOOKUP($J35,'1.1Назв. объ. эл. сетевого хоз.'!$D$2:$E$34,2,0)&" c "&VLOOKUP($K35,'1.1Назв. объ. эл. сетевого хоз.'!$D$2:$E$34,2,0)&" изоляцией "&"сечением провода "&VLOOKUP($L35,'1.1Назв. объ. эл. сетевого хоз.'!$D$2:$E$34,2,0)&" "&IF($M35="5) более четырех","с количеством "&IF($I35="6) метод горизонтального наклонного бурения",VLOOKUP($M35,'1.1Назв. объ. эл. сетевого хоз.'!$D$2:$F$34,3,0),VLOOKUP($M35,'1.1Назв. объ. эл. сетевого хоз.'!$D$2:$E$34,2,0)),IF($I35="6) метод горизонтального наклонного бурения",VLOOKUP($M35,'1.1Назв. объ. эл. сетевого хоз.'!$D$2:$F$34,3,0),VLOOKUP($M35,'1.1Назв. объ. эл. сетевого хоз.'!$D$2:$E$34,2,0)))&" "&VLOOKUP($I35,'1.1Назв. объ. эл. сетевого хоз.'!$D$2:$F$34,3,0))),"Заполните все столбцы") -> кабельные линии в траншеях одножильные c резиновой или пластмассовой изоляцией сечением провода от 100 до 200 квадратных мм включительно с четырьмя кабелями в траншее | G35: Строительство КЛ-0,4 кВ ТП-3 2х2500 кВА мкр. Марьина гора до ж/д №22 ВРУ-1 | H35: I ) Город | I35: 1) траншея | J35: 1) одножильный | K35: 1) резиновая или пластмассовая | L35: 3) от 100 до 200 квадратных мм включительно | M35: 4) четыре | N35: 1) 0,4 кВ и ниже | O35: =Титульный!$D$10-2 -> 2023 | P35: 0.428 | Q35: 712388 | R35: 1664457.944 | S35: 28 | T35: Инвестиционная программа
B36: X | C36: 24 | D36: 3.1.1.1.3.2 | E36: С 3.1.1.1.3.2, 0,4 кВ и ниже | F36: =IFERROR(LOWER("кабельные линии"&IF($I36="6) метод горизонтального наклонного бурения",VLOOKUP($I36,'1.1Назв. объ. эл. сетевого хоз.'!$D$2:$E$34,2,0)&" "&VLOOKUP($J36,'1.1Назв. объ. эл. сетевого хоз.'!$D$2:$E$34,2,0)&" c "&VLOOKUP($K36,'1.1Назв. объ. эл. сетевого хоз.'!$D$2:$E$34,2,0)&" изоляцией "&"сечением провода "&VLOOKUP($L36,'1.1Назв. объ. эл. сетевого хоз.'!$D$2:$E$34,2,0)&" "&IF($M36="5) более четырех","с количеством "&IF($I36="6) метод горизонтального наклонного бурения",VLOOKUP($M36,'1.1Назв. объ. эл. сетевого хоз.'!$D$2:$F$34,3,0),VLOOKUP($M36,'1.1Назв. объ. эл. сетевого хоз.'!$D$2:$E$34,2,0)),IF($I36="6) метод горизонтального наклонного бурения",VLOOKUP($M36,'1.1Назв. объ. эл. сетевого хоз.'!$D$2:$F$34,3,0),VLOOKUP($M36,'1.1Назв. объ. эл. сетевого хоз.'!$D$2:$E$34,2,0))),VLOOKUP($I36,'1.1Назв. объ. эл. сетевого хоз.'!$D$2:$E$34,2,0)&" "&VLOOKUP($J36,'1.1Назв. объ. эл. сетевого хоз.'!$D$2:$E$34,2,0)&" c "&VLOOKUP($K36,'1.1Назв. объ. эл. сетевого хоз.'!$D$2:$E$34,2,0)&" изоляцией "&"сечением провода "&VLOOKUP($L36,'1.1Назв. объ. эл. сетевого хоз.'!$D$2:$E$34,2,0)&" "&IF($M36="5) более четырех","с количеством "&IF($I36="6) метод горизонтального наклонного бурения",VLOOKUP($M36,'1.1Назв. объ. эл. сетевого хоз.'!$D$2:$F$34,3,0),VLOOKUP($M36,'1.1Назв. объ. эл. сетевого хоз.'!$D$2:$E$34,2,0)),IF($I36="6) метод горизонтального наклонного бурения",VLOOKUP($M36,'1.1Назв. объ. эл. сетевого хоз.'!$D$2:$F$34,3,0),VLOOKUP($M36,'1.1Назв. объ. эл. сетевого хоз.'!$D$2:$E$34,2,0)))&" "&VLOOKUP($I36,'1.1Назв. объ. эл. сетевого хоз.'!$D$2:$F$34,3,0))),"Заполните все столбцы") -> кабельные линии в траншеях одножильные c резиновой или пластмассовой изоляцией сечением провода от 100 до 200 квадратных мм включительно с двумя кабелями в траншее | G36: Строительство КЛ-0,4 кВ ТП-3 2х2500 кВА мкр. Марьина гора до ж/д №22 ВРУ-2 | H36: I ) Город | I36: 1) траншея | J36: 1) одножильный | K36: 1) резиновая или пластмассовая | L36: 3) от 100 до 200 квадратных мм включительно | M36: 2) два | N36: 1) 0,4 кВ и ниже | O36: =Титульный!$D$10-2 -> 2023 | P36: 0.214 | Q36: 323283 | R36: 1510668.224 | S36: 28 | T36: Инвестиционная программа
B37: X | C37: 25 | D37: 3.1.1.1.2.4 | E37: С 3.1.1.1.2.4, 0,4 кВ и ниже | F37: =IFERROR(LOWER("кабельные линии"&IF($I37="6) метод горизонтального наклонного бурения",VLOOKUP($I37,'1.1Назв. объ. эл. сетевого хоз.'!$D$2:$E$34,2,0)&" "&VLOOKUP($J37,'1.1Назв. объ. эл. сетевого хоз.'!$D$2:$E$34,2,0)&" c "&VLOOKUP($K37,'1.1Назв. объ. эл. сетевого хоз.'!$D$2:$E$34,2,0)&" изоляцией "&"сечением провода "&VLOOKUP($L37,'1.1Назв. объ. эл. сетевого хоз.'!$D$2:$E$34,2,0)&" "&IF($M37="5) более четырех","с количеством "&IF($I37="6) метод горизонтального наклонного бурения",VLOOKUP($M37,'1.1Назв. объ. эл. сетевого хоз.'!$D$2:$F$34,3,0),VLOOKUP($M37,'1.1Назв. объ. эл. сетевого хоз.'!$D$2:$E$34,2,0)),IF($I37="6) метод горизонтального наклонного бурения",VLOOKUP($M37,'1.1Назв. объ. эл. сетевого хоз.'!$D$2:$F$34,3,0),VLOOKUP($M37,'1.1Назв. объ. эл. сетевого хоз.'!$D$2:$E$34,2,0))),VLOOKUP($I37,'1.1Назв. объ. эл. сетевого хоз.'!$D$2:$E$34,2,0)&" "&VLOOKUP($J37,'1.1Назв. объ. эл. сетевого хоз.'!$D$2:$E$34,2,0)&" c "&VLOOKUP($K37,'1.1Назв. объ. эл. сетевого хоз.'!$D$2:$E$34,2,0)&" изоляцией "&"сечением провода "&VLOOKUP($L37,'1.1Назв. объ. эл. сетевого хоз.'!$D$2:$E$34,2,0)&" "&IF($M37="5) более четырех","с количеством "&IF($I37="6) метод горизонтального наклонного бурения",VLOOKUP($M37,'1.1Назв. объ. эл. сетевого хоз.'!$D$2:$F$34,3,0),VLOOKUP($M37,'1.1Назв. объ. эл. сетевого хоз.'!$D$2:$E$34,2,0)),IF($I37="6) метод горизонтального наклонного бурения",VLOOKUP($M37,'1.1Назв. объ. эл. сетевого хоз.'!$D$2:$F$34,3,0),VLOOKUP($M37,'1.1Назв. объ. эл. сетевого хоз.'!$D$2:$E$34,2,0)))&" "&VLOOKUP($I37,'1.1Назв. объ. эл. сетевого хоз.'!$D$2:$F$34,3,0))),"Заполните все столбцы") -> кабельные линии в траншеях одножильные c резиновой или пластмассовой изоляцией сечением провода от 50 до 100 квадратных мм включительно с четырьмя кабелями в траншее | G37: Строительство КЛ-0,4 кВ РП(ТП)-2х1600 кВА мкр. 39 до ж/д № 3.1 ВРУ-1 | H37: I ) Город | I37: 1) траншея | J37: 1) одножильный | K37: 1) резиновая или пластмассовая | L37: 2) от 50 до 100 квадратных мм включительно | M37: 4) четыре | N37: 1) 0,4 кВ и ниже | O37: =Титульный!$D$10-2 -> 2023 | P37: 0.66 | Q37: 938936.68 | R37: 1422631.333 | S37: 29 | T37: Инвестиционная программа
B38: X | C38: 26 | D38: 3.1.1.1.3.2 | E38: С 3.1.1.1.3.2, 0,4 кВ и ниже | F38: =IFERROR(LOWER("кабельные линии"&IF($I38="6) метод горизонтального наклонного бурения",VLOOKUP($I38,'1.1Назв. объ. эл. сетевого хоз.'!$D$2:$E$34,2,0)&" "&VLOOKUP($J38,'1.1Назв. объ. эл. сетевого хоз.'!$D$2:$E$34,2,0)&" c "&VLOOKUP($K38,'1.1Назв. объ. эл. сетевого хоз.'!$D$2:$E$34,2,0)&" изоляцией "&"сечением провода "&VLOOKUP($L38,'1.1Назв. объ. эл. сетевого хоз.'!$D$2:$E$34,2,0)&" "&IF($M38="5) более четырех","с количеством "&IF($I38="6) метод горизонтального наклонного бурения",VLOOKUP($M38,'1.1Назв. объ. эл. сетевого хоз.'!$D$2:$F$34,3,0),VLOOKUP($M38,'1.1Назв. объ. эл. сетевого хоз.'!$D$2:$E$34,2,0)),IF($I38="6) метод горизонтального наклонного бурения",VLOOKUP($M38,'1.1Назв. объ. эл. сетевого хоз.'!$D$2:$F$34,3,0),VLOOKUP($M38,'1.1Назв. объ. эл. сетевого хоз.'!$D$2:$E$34,2,0))),VLOOKUP($I38,'1.1Назв. объ. эл. сетевого хоз.'!$D$2:$E$34,2,0)&" "&VLOOKUP($J38,'1.1Назв. объ. эл. сетевого хоз.'!$D$2:$E$34,2,0)&" c "&VLOOKUP($K38,'1.1Назв. объ. эл. сетевого хоз.'!$D$2:$E$34,2,0)&" изоляцией "&"сечением провода "&VLOOKUP($L38,'1.1Назв. объ. эл. сетевого хоз.'!$D$2:$E$34,2,0)&" "&IF($M38="5) более четырех","с количеством "&IF($I38="6) метод горизонтального наклонного бурения",VLOOKUP($M38,'1.1Назв. объ. эл. сетевого хоз.'!$D$2:$F$34,3,0),VLOOKUP($M38,'1.1Назв. объ. эл. сетевого хоз.'!$D$2:$E$34,2,0)),IF($I38="6) метод горизонтального наклонного бурения",VLOOKUP($M38,'1.1Назв. объ. эл. сетевого хоз.'!$D$2:$F$34,3,0),VLOOKUP($M38,'1.1Назв. объ. эл. сетевого хоз.'!$D$2:$E$34,2,0)))&" "&VLOOKUP($I38,'1.1Назв. объ. эл. сетевого хоз.'!$D$2:$F$34,3,0))),"Заполните все столбцы") -> кабельные линии в траншеях одножильные c резиновой или пластмассовой изоляцией сечением провода от 100 до 200 квадратных мм включительно с двумя кабелями в траншее | G38: Строительство КЛ-0,4 кВ РП(ТП)-2х1600 кВА мкр. 39 до ж/д № 3.1 ВРУ-2 | H38: I ) Город | I38: 1) траншея | J38: 1) одножильный | K38: 1) резиновая или пластмассовая | L38: 3) от 100 до 200 квадратных мм включительно | M38: 2) два | N38: 1) 0,4 кВ и ниже | O38: =Титульный!$D$10-2 -> 2023 | P38: 0.402 | Q38: 621630.79 | R38: 1546345.249 | S38: 29 | T38: Инвестиционная программа
B39: X | C39: 27 | D39: 3.1.1.1.2.4 | E39: С 3.1.1.1.2.4, 0,4 кВ и ниже | F39: =IFERROR(LOWER("кабельные линии"&IF($I39="6) метод горизонтального наклонного бурения",VLOOKUP($I39,'1.1Назв. объ. эл. сетевого хоз.'!$D$2:$E$34,2,0)&" "&VLOOKUP($J39,'1.1Назв. объ. эл. сетевого хоз.'!$D$2:$E$34,2,0)&" c "&VLOOKUP($K39,'1.1Назв. объ. эл. сетевого хоз.'!$D$2:$E$34,2,0)&" изоляцией "&"сечением провода "&VLOOKUP($L39,'1.1Назв. объ. эл. сетевого хоз.'!$D$2:$E$34,2,0)&" "&IF($M39="5) более четырех","с количеством "&IF($I39="6) метод горизонтального наклонного бурения",VLOOKUP($M39,'1.1Назв. объ. эл. сетевого хоз.'!$D$2:$F$34,3,0),VLOOKUP($M39,'1.1Назв. объ. эл. сетевого хоз.'!$D$2:$E$34,2,0)),IF($I39="6) метод горизонтального наклонного бурения",VLOOKUP($M39,'1.1Назв. объ. эл. сетевого хоз.'!$D$2:$F$34,3,0),VLOOKUP($M39,'1.1Назв. объ. эл. сетевого хоз.'!$D$2:$E$34,2,0))),VLOOKUP($I39,'1.1Назв. объ. эл. сетевого хоз.'!$D$2:$E$34,2,0)&" "&VLOOKUP($J39,'1.1Назв. объ. эл. сетевого хоз.'!$D$2:$E$34,2,0)&" c "&VLOOKUP($K39,'1.1Назв. объ. эл. сетевого хоз.'!$D$2:$E$34,2,0)&" изоляцией "&"сечением провода "&VLOOKUP($L39,'1.1Назв. объ. эл. сетевого хоз.'!$D$2:$E$34,2,0)&" "&IF($M39="5) более четырех","с количеством "&IF($I39="6) метод горизонтального наклонного бурения",VLOOKUP($M39,'1.1Назв. объ. эл. сетевого хоз.'!$D$2:$F$34,3,0),VLOOKUP($M39,'1.1Назв. объ. эл. сетевого хоз.'!$D$2:$E$34,2,0)),IF($I39="6) метод горизонтального наклонного бурения",VLOOKUP($M39,'1.1Назв. объ. эл. сетевого хоз.'!$D$2:$F$34,3,0),VLOOKUP($M39,'1.1Назв. объ. эл. сетевого хоз.'!$D$2:$E$34,2,0)))&" "&VLOOKUP($I39,'1.1Назв. объ. эл. сетевого хоз.'!$D$2:$F$34,3,0))),"Заполните все столбцы") -> кабельные линии в траншеях одножильные c резиновой или пластмассовой изоляцией сечением провода от 50 до 100 квадратных мм включительно с четырьмя кабелями в траншее | G39: Строительство КЛ-0,4 кВ РП(ТП)-2х1600 кВА мкр. 39 до ж/д № 3.2 ВРУ-1 | H39: I ) Город | I39: 1) траншея | J39: 1) одножильный | K39: 1) резиновая или пластмассовая | L39: 2) от 50 до 100 квадратных мм включительно | M39: 4) четыре | N39: 1) 0,4 кВ и ниже | O39: =Титульный!$D$10-2 -> 2023 | P39: 1.048 | Q39: 1677218.88 | R39: 1600399.695 | S39: 29 | T39: Инвестиционная программа
B40: X | C40: 28 | D40: 3.1.1.1.2.2 | E40: С 3.1.1.1.2.2, 0,4 кВ и ниже | F40: =IFERROR(LOWER("кабельные линии"&IF($I40="6) метод горизонтального наклонного бурения",VLOOKUP($I40,'1.1Назв. объ. эл. сетевого хоз.'!$D$2:$E$34,2,0)&" "&VLOOKUP($J40,'1.1Назв. объ. эл. сетевого хоз.'!$D$2:$E$34,2,0)&" c "&VLOOKUP($K40,'1.1Назв. объ. эл. сетевого хоз.'!$D$2:$E$34,2,0)&" изоляцией "&"сечением провода "&VLOOKUP($L40,'1.1Назв. объ. эл. сетевого хоз.'!$D$2:$E$34,2,0)&" "&IF($M40="5) более четырех","с количеством "&IF($I40="6) метод горизонтального наклонного бурения",VLOOKUP($M40,'1.1Назв. объ. эл. сетевого хоз.'!$D$2:$F$34,3,0),VLOOKUP($M40,'1.1Назв. объ. эл. сетевого хоз.'!$D$2:$E$34,2,0)),IF($I40="6) метод горизонтального наклонного бурения",VLOOKUP($M40,'1.1Назв. объ. эл. сетевого хоз.'!$D$2:$F$34,3,0),VLOOKUP($M40,'1.1Назв. объ. эл. сетевого хоз.'!$D$2:$E$34,2,0))),VLOOKUP($I40,'1.1Назв. объ. эл. сетевого хоз.'!$D$2:$E$34,2,0)&" "&VLOOKUP($J40,'1.1Назв. объ. эл. сетевого хоз.'!$D$2:$E$34,2,0)&" c "&VLOOKUP($K40,'1.1Назв. объ. эл. сетевого хоз.'!$D$2:$E$34,2,0)&" изоляцией "&"сечением провода "&VLOOKUP($L40,'1.1Назв. объ. эл. сетевого хоз.'!$D$2:$E$34,2,0)&" "&IF($M40="5) более четырех","с количеством "&IF($I40="6) метод горизонтального наклонного бурения",VLOOKUP($M40,'1.1Назв. объ. эл. сетевого хоз.'!$D$2:$F$34,3,0),VLOOKUP($M40,'1.1Назв. объ. эл. сетевого хоз.'!$D$2:$E$34,2,0)),IF($I40="6) метод горизонтального наклонного бурения",VLOOKUP($M40,'1.1Назв. объ. эл. сетевого хоз.'!$D$2:$F$34,3,0),VLOOKUP($M40,'1.1Назв. объ. эл. сетевого хоз.'!$D$2:$E$34,2,0)))&" "&VLOOKUP($I40,'1.1Назв. объ. эл. сетевого хоз.'!$D$2:$F$34,3,0))),"Заполните все столбцы") -> кабельные линии в траншеях одножильные c резиновой или пластмассовой изоляцией сечением провода от 50 до 100 квадратных мм включительно с двумя кабелями в траншее | G40: Строительство КЛ-0,4 кВ РП(ТП)-2х1600 кВА мкр. 39 до ж/д № 3.2 ВРУ-2 | H40: I ) Город | I40: 1) траншея | J40: 1) одножильный | K40: 1) резиновая или пластмассовая | L40: 2) от 50 до 100 квадратных мм включительно | M40: 2) два | N40: 1) 0,4 кВ и ниже | O40: =Титульный!$D$10-2 -> 2023 | P40: 0.614 | Q40: 1004752.32 | R40: 1636404.43 | S40: 29 | T40: Инвестиционная программа
B41: X | C41: 29 | D41: 3.1.1.2.2.2 | E41: С 3.1.1.2.2.2, 1 - 10 кВ | F41: =IFERROR(LOWER("кабельные линии"&IF($I41="6) метод горизонтального наклонного бурения",VLOOKUP($I41,'1.1Назв. объ. эл. сетевого хоз.'!$D$2:$E$34,2,0)&" "&VLOOKUP($J41,'1.1Назв. объ. эл. сетевого хоз.'!$D$2:$E$34,2,0)&" c "&VLOOKUP($K41,'1.1Назв. объ. эл. сетевого хоз.'!$D$2:$E$34,2,0)&" изоляцией "&"сечением провода "&VLOOKUP($L41,'1.1Назв. объ. эл. сетевого хоз.'!$D$2:$E$34,2,0)&" "&IF($M41="5) более четырех","с количеством "&IF($I41="6) метод горизонтального наклонного бурения",VLOOKUP($M41,'1.1Назв. объ. эл. сетевого хоз.'!$D$2:$F$34,3,0),VLOOKUP($M41,'1.1Назв. объ. эл. сетевого хоз.'!$D$2:$E$34,2,0)),IF($I41="6) метод горизонтального наклонного бурения",VLOOKUP($M41,'1.1Назв. объ. эл. сетевого хоз.'!$D$2:$F$34,3,0),VLOOKUP($M41,'1.1Назв. объ. эл. сетевого хоз.'!$D$2:$E$34,2,0))),VLOOKUP($I41,'1.1Назв. объ. эл. сетевого хоз.'!$D$2:$E$34,2,0)&" "&VLOOKUP($J41,'1.1Назв. объ. эл. сетевого хоз.'!$D$2:$E$34,2,0)&" c "&VLOOKUP($K41,'1.1Назв. объ. эл. сетевого хоз.'!$D$2:$E$34,2,0)&" изоляцией "&"сечением провода "&VLOOKUP($L41,'1.1Назв. объ. эл. сетевого хоз.'!$D$2:$E$34,2,0)&" "&IF($M41="5) более четырех","с количеством "&IF($I41="6) метод горизонтального наклонного бурения",VLOOKUP($M41,'1.1Назв. объ. эл. сетевого хоз.'!$D$2:$F$34,3,0),VLOOKUP($M41,'1.1Назв. объ. эл. сетевого хоз.'!$D$2:$E$34,2,0)),IF($I41="6) метод горизонтального наклонного бурения",VLOOKUP($M41,'1.1Назв. объ. эл. сетевого хоз.'!$D$2:$F$34,3,0),VLOOKUP($M41,'1.1Назв. объ. эл. сетевого хоз.'!$D$2:$E$34,2,0)))&" "&VLOOKUP($I41,'1.1Назв. объ. эл. сетевого хоз.'!$D$2:$F$34,3,0))),"Заполните все столбцы") -> кабельные линии в траншеях одножильные c бумажной изоляцией сечением провода от 50 до 100 квадратных мм включительно с двумя кабелями в траншее | G41: Строительство КЛ-6 кВ от КТПН №1 2х1000 кВА ПСТ-30 "Дорожник" до КТПН №2 2х1000 кВА ПСТ-30 "Дорожник" | H41: I ) Город | I41: 1) траншея | J41: 1) одножильный | K41: 2) бумажная | L41: 2) от 50 до 100 квадратных мм включительно | M41: 2) два | N41: 2) 1 - 10 кВ | O41: =Титульный!$D$10-2 -> 2023 | P41: 0.962 | Q41: 4153922.31 | R41: 4318006.559 | S41: 30 | T41: Инвестиционная программа
B42: TAG | G42: Добавить строки

Sheet Ставка 4.1.-4.3.
C2: Расходы на строительство введенных в эксплуатацию объектов электросетевого хозяйства для целей технологического присоединения и для целей реализации иных мероприятий инвестиционной программы территориальной сетевой организации
C6: ДЛЯ НАСЕЛЕННЫХ ПУНКТОВ ВСЕХ ТЕРРИТОРИЙ
C8: N п/п | D8: Технический код ставки | E8: Обозначение ставки | F8: Наименование ставки | G8: Объект электросетевого хозяйства | H8: Территория | I8: Техническое исполнение | J8: Номинальный ток | K8: Напряжение | L8: Год ввода объекта | M8: Количество пунктов секционирования, шт. | N8: Общие расходы на строительство объекта, руб. (без НДС) | O8: Расходы на строительство единицы, руб./шт. | P8: Наименование папки | Q8: Источник финансирования
C9: 1 | D9: =C$9+1 -> 2 | E9: =D$9+1 -> 3 | F9: 4 | G9: 5 | H9: 6 | I9: 7 | J9: 8 | K9: 9 | L9: 10 | M9: 11 | N9: =M9+1 -> 12 | O9: 13 | P9: 14 | Q9: 15
C10: 4. | K10: Реклоузеры, линейные разъединители, выключатели нагрузки
B11: X | C11: =ROW($C11)-12 -> -1 | D11: =IF(OR($I11="",$J11="",$K11=""),"Заполните все столбцы","4."&LEFT($I11,1)&"."&LEFT($J11,1)) -> Заполните все столбцы | E11: =IFERROR("С "&(MID($D11,1,LEN($D11)))&","&(RIGHT($K11,LEN($K11)-2)),"Заполните все столбцы") -> Заполните все столбцы | F11: =IFERROR(VLOOKUP($I11,'1.1Назв. объ. эл. сетевого хоз.'!$H$2:$J$33,2,0)&" номинальным током "&VLOOKUP($J11,'1.1Назв. объ. эл. сетевого хоз.'!$H$2:$J$33,2,0),"Заполните все столбцы") -> Заполните все столбцы | G11: Название объекта | L11: =Титульный!$D$10-2 -> 2023 | O11: =IF(AND(N11<>0,M11<>0),N11/M11,0) -> 0
B12: TAG | G12: Добавить строки
C13: =ROW($C13)-12 -> 1 | D13: =IF(OR($I13="",$J13="",$K13=""),"Заполните все столбцы","4."&LEFT($I13,1)&"."&LEFT($J13,1)) -> Заполните все столбцы | E13: =IFERROR("С "&(MID($D13,1,LEN($D13)))&","&(RIGHT($K13,LEN($K13)-2)),"Заполните все столбцы") -> Заполните все столбцы | F13: =IFERROR(VLOOKUP($I13,'1.1Назв. объ. эл. сетевого хоз.'!$H$2:$J$33,2,0)&" номинальным током "&VLOOKUP($J13,'1.1Назв. объ. эл. сетевого хоз.'!$H$2:$J$33,2,0),"Заполните все столбцы") -> Заполните все столбцы | G13: Название объекта | L13: =Титульный!$D$10-2 -> 2023 | O13: =IF(AND(N13<>0,M13<>0),N13/M13,0) -> 0
C14: =ROW($C14)-12 -> 2 | D14: Заполните все столбцы | E14: Заполните все столбцы | F14: =IFERROR(VLOOKUP($I14,'1.1Назв. объ. эл. сетевого хоз.'!$H$2:$J$33,2,0)&" номинальным током "&VLOOKUP($J14,'1.1Назв. объ. эл. сетевого хоз.'!$H$2:$J$33,2,0),"Заполните все столбцы") -> Заполните все столбцы | G14: Название объекта | L14: =Титульный!$D$10-2 -> 2023 | O14: =IF(AND(N14<>0,M14<>0),N14/M14,0) -> 0
C15: =ROW($C15)-12 -> 3 | D15: Заполните все столбцы | E15: Заполните все столбцы | F15: =IFERROR(VLOOKUP($I15,'1.1Назв. объ. эл. сетевого хоз.'!$H$2:$J$33,2,0)&" номинальным током "&VLOOKUP($J15,'1.1Назв. объ. эл. сетевого хоз.'!$H$2:$J$33,2,0),"Заполните все столбцы") -> Заполните все столбцы | G15: Название объекта | L15: =Титульный!$D$10-2 -> 2023 | O15: =IF(AND(N15<>0,M15<>0),N15/M15,0) -> 0
C16: =ROW($C16)-12 -> 4 | D16: Заполните все столбцы | E16: Заполните все столбцы | F16: =IFERROR(VLOOKUP($I16,'1.1Назв. объ. эл. сетевого хоз.'!$H$2:$J$33,2,0)&" номинальным током "&VLOOKUP($J16,'1.1Назв. объ. эл. сетевого хоз.'!$H$2:$J$33,2,0),"Заполните все столбцы") -> Заполните все столбцы | G16: Название объекта | L16: =Титульный!$D$10-2 -> 2023 | O16: =IF(AND(N16<>0,M16<>0),N16/M16,0) -> 0
B17: TAG | G17: Добавить строки

Sheet Ставка 4.4.-4.6.
C2: Расходы на строительство введенных в эксплуатацию объектов электросетевого хозяйства для целей технологического присоединения и для целей реализации иных мероприятий инвестиционной программы территориальной сетевой организации
C6: ДЛЯ НАСЕЛЕННЫХ ПУНКТОВ ВСЕХ ТЕРРИТОРИЙ
C8: N п/п | D8: Технический код ставки | E8: Обозначение ставки | F8: Наименование ставки | G8: Объект электросетевого хозяйства | H8: Территория | I8: Техническое исполнение | J8: Номинальный ток | K8: Количество ячеек | L8: Напряжение | M8: Год ввода объекта | N8: Количество распределительных пунктов (РП, КРН, КРУН, ПП), шт. | O8: Общие расходы на строительство объекта, руб. (без НДС) | P8: Расходы на строительство единицы, руб./шт. | Q8: Наименование папки | R8: Источник финансирования
C9: 1 | D9: =C$9+1 -> 2 | E9: =D$9+1 -> 3 | F9: 4 | G9: 5 | H9: 6 | I9: 7 | J9: 8 | K9: 9 | L9: 10 | M9: 11 | N9: 12 | O9: 13 | P9: 14 | Q9: 15 | R9: 16
C10: 4. | G10: Распределительные пункты (РП), за исключением комплектных распределительных устройств наружной установки (КРН, КРУН), комплектные распределительные устройства наружной установки (КРН, КРУН) , переключательные пункты
B11: X | C11: =ROW($C11)-12 -> -1 | D11: =IF(OR($I11="",$J11="",$K11="",$L11=""),"Заполните все столбцы","4."&LEFT($I11,1)&"."&LEFT($J11,1)&"."&LEFT($K11,1)) -> Заполните все столбцы | E11: =IFERROR("С "&(MID($D11,1,LEN($D11)))&","&(RIGHT($L11,LEN($L11)-2)),"Заполните все столбцы") -> Заполните все столбцы | F11: =IFERROR(VLOOKUP($I11,'1.1Назв. объ. эл. сетевого хоз.'!$H$2:$J$33,2,0)&" номинальным током "&VLOOKUP($J11,'1.1Назв. объ. эл. сетевого хоз.'!$H$2:$J$33,2,0)&" с количеством ячеек "&VLOOKUP($K11,'1.1Назв. объ. эл. сетевого хоз.'!$H$2:$J$33,2,0),"Заполните все столбцы") -> Заполните все столбцы | G11: Название объекта | M11: =Титульный!$D$10-2 -> 2023 | P11: =IF(AND(O11<>0,N11<>0),O11/N11,0) -> 0
B12: TAG | G12: Добавить строки
C13: =ROW($C13)-12 -> 1 | D13: =IF(OR($I13="",$J13="",$K13="",$L13=""),"Заполните все столбцы","4."&LEFT($I13,1)&"."&LEFT($J13,1)&"."&LEFT($K13,1)) -> Заполните все столбцы | E13: =IFERROR("С "&(MID($D13,1,LEN($D13)))&","&(RIGHT($L13,LEN($L13)-2)),"Заполните все столбцы") -> Заполните все столбцы | F13: =IFERROR(VLOOKUP($I13,'1.1Назв. объ. эл. сетевого хоз.'!$H$2:$J$33,2,0)&" номинальным током "&VLOOKUP($J13,'1.1Назв. объ. эл. сетевого хоз.'!$H$2:$J$33,2,0)&" с количеством ячеек "&VLOOKUP($K13,'1.1Назв. объ. эл. сетевого хоз.'!$H$2:$J$33,2,0),"Заполните все столбцы") -> Заполните все столбцы | G13: Название объекта | M13: =Титульный!$D$10-2 -> 2023 | P13: =IF(AND(O13<>0,N13<>0),O13/N13,0) -> 0
C14: =ROW($C14)-12 -> 2 | D14: Заполните все столбцы | E14: Заполните все столбцы | F14: =IFERROR(VLOOKUP($I14,'1.1Назв. объ. эл. сетевого хоз.'!$H$2:$J$33,2,0)&" номинальным током "&VLOOKUP($J14,'1.1Назв. объ. эл. сетевого хоз.'!$H$2:$J$33,2,0)&" с количеством ячеек "&VLOOKUP($K14,'1.1Назв. объ. эл. сетевого хоз.'!$H$2:$J$33,2,0),"Заполните все столбцы") -> Заполните все столбцы | G14: Название объекта | M14: =Титульный!$D$10-2 -> 2023 | P14: 0
C15: =ROW($C15)-12 -> 3 | D15: Заполните все столбцы | E15: Заполните все столбцы | F15: =IFERROR(VLOOKUP($I15,'1.1Назв. объ. эл. сетевого хоз.'!$H$2:$J$33,2,0)&" номинальным током "&VLOOKUP($J15,'1.1Назв. объ. эл. сетевого хоз.'!$H$2:$J$33,2,0)&" с количеством ячеек "&VLOOKUP($K15,'1.1Назв. объ. эл. сетевого хоз.'!$H$2:$J$33,2,0),"Заполните все столбцы") -> Заполните все столбцы | G15: Название объекта | M15: =Титульный!$D$10-2 -> 2023 | P15: 0
C16: =ROW($C16)-12 -> 4 | D16: Заполните все столбцы | E16: Заполните все столбцы | F16: =IFERROR(VLOOKUP($I16,'1.1Назв. объ. эл. сетевого хоз.'!$H$2:$J$33,2,0)&" номинальным током "&VLOOKUP($J16,'1.1Назв. объ. эл. сетевого хоз.'!$H$2:$J$33,2,0)&" с количеством ячеек "&VLOOKUP($K16,'1.1Назв. объ. эл. сетевого хоз.'!$H$2:$J$33,2,0),"Заполните все столбцы") -> Заполните все столбцы | G16: Название объекта | M16: =Титульный!$D$10-2 -> 2023 | P16: 0
B17: TAG | G17: Добавить строки

Sheet Ставка 5. (ТП без РТП)
C2: Расходы на строительство введенных в эксплуатацию объектов электросетевого хозяйства для целей технологического присоединения и для целей реализации иных мероприятий инвестиционной программы территориальной сетевой организации
C6: ДЛЯ НАСЕЛЕННЫХ ПУНКТОВ ВСЕХ ТЕРРИТОРИЙ
C8: N п/п | D8: Технический код ставки | E8: Обозначение ставки | F8: Наименование ставки | G8: Объект электросетевого хозяйства | H8: Территория | I8: Количество трансформаторов | J8: Мощность трансформаторов | K8: Тип исполнения | L8: Напряжение | M8: Год ввода объекта | N8: Общая трансформаторная мощность, кВт | O8: Расходы на строительство объекта, руб. (без НДС) | P8: Расходы на строительство единицы, руб./кВт | Q8: Наименование папки | R8: Источник финансирования
C9: 1 | D9: =C$9+1 -> 2 | E9: =D$9+1 -> 3 | F9: 4 | G9: 5 | H9: 6 | I9: 7 | J9: 8 | K9: 9 | L9: 10 | M9: 11 | N9: 12 | O9: 13 | P9: 14 | Q9: 15 | R9: 16
C10: 5. | G10: Трансформаторные подстанции (ТП), за исключением распределительных трансформаторных подстанций (РТП), с уровнем напряжения до 35 кВ
B11: X | C11: =ROW($C11)-12 -> -1 | D11: =IF(OR($I11="",$J11="",$K11="",$L11=""),"Заполните все столбцы","5."&LEFT($I11,1)&"."&LEFT($J11,2)&"."&LEFT($K11,1)) -> Заполните все столбцы | E11: =IFERROR("С "&(MID($D11,1,LEN($D11)))&","&(RIGHT($L11,LEN($L11)-2)),"Заполните все столбцы") -> Заполните все столбцы | F11: =IFERROR(VLOOKUP($I11,'1.1Назв. объ. эл. сетевого хоз.'!$K$2:$L$35,2,0)&" "&VLOOKUP($J11,'1.1Назв. объ. эл. сетевого хоз.'!$K$2:$L$26,2,0)&" "&VLOOKUP($K11,'1.1Назв. объ. эл. сетевого хоз.'!$K$2:$L$26,2,0),"Заполните все столбцы") -> Заполните все столбцы | M11: =Титульный!$D$10-2 -> 2023 | P11: =IF(AND(O11<>0,N11<>0),O11/N11,0) -> 0
B12: TAG | G12: Добавить строки
C13: =ROW($C13)-12 -> 1 | D13: =IF(OR($I13="",$J13="",$K13="",$L13=""),"Заполните все столбцы","5."&LEFT($I13,1)&"."&LEFT($J13,2)&"."&LEFT($K13,1)) -> 5.2.3..2 | E13: =IFERROR("С "&(MID($D13,1,LEN($D13)))&","&(RIGHT($L13,LEN($L13)-2)),"Заполните все столбцы") -> С 5.2.3..2, 10/0,4 кВ | F13: =IFERROR(VLOOKUP($I13,'1.1Назв. объ. эл. сетевого хоз.'!$K$2:$L$35,2,0)&" "&VLOOKUP($J13,'1.1Назв. объ. эл. сетевого хоз.'!$K$2:$L$26,2,0)&" "&VLOOKUP($K13,'1.1Назв. объ. эл. сетевого хоз.'!$K$2:$L$26,2,0),"Заполните все столбцы") -> двухтрансформаторные и более подстанции (за исключением РТП) мощностью от 100 до 250 кВА включительно шкафного или киоскового типа | G13: Строительство КТПН-2х160 кВА мкр. Черный Мыс | H13: I ) Город | I13: 2) два | J13: 3.) от 100 до 250 кВА включительно | K13: 2) шкафного или киоскового | L13: 2) 10/0,4 кВ | M13: =Титульный!$D$10-2 -> 2023 | N13: 128 | O13: 4683057.53 | P13: =IF(AND(O13<>0,N13<>0),O13/N13,0) -> 36586.38695 | Q13: 1 | R13: Инвестиционная программа
C14: 2 | D14: 5.1.5..2 | E14: С 5.1.5..2, 10/0,4 кВ | F14: =IFERROR(VLOOKUP($I14,'1.1Назв. объ. эл. сетевого хоз.'!$K$2:$L$35,2,0)&" "&VLOOKUP($J14,'1.1Назв. объ. эл. сетевого хоз.'!$K$2:$L$26,2,0)&" "&VLOOKUP($K14,'1.1Назв. объ. эл. сетевого хоз.'!$K$2:$L$26,2,0),"Заполните все столбцы") -> однотрансформаторные подстанции (за исключением РТП) мощностью от 400 до 630 кВА включительно шкафного или киоскового типа | G14: Строительство КТПН-630 кВА Рынок ул. Инженерная | H14: I ) Город | I14: 1) один | J14: 5.) от 400 до 630 кВА включительно | K14: 2) шкафного или киоскового | L14: 2) 10/0,4 кВ | M14: =Титульный!$D$10-2 -> 2023 | N14: 504 | O14: 4445393.14 | P14: 8820.224484 | Q14: 1 | R14: Инвестиционная программа
C15: 3 | D15: 5.1.3..2 | E15: С 5.1.3..2, 10/0,4 кВ | F15: =IFERROR(VLOOKUP($I15,'1.1Назв. объ. эл. сетевого хоз.'!$K$2:$L$35,2,0)&" "&VLOOKUP($J15,'1.1Назв. объ. эл. сетевого хоз.'!$K$2:$L$26,2,0)&" "&VLOOKUP($K15,'1.1Назв. объ. эл. сетевого хоз.'!$K$2:$L$26,2,0),"Заполните все столбцы") -> однотрансформаторные подстанции (за исключением РТП) мощностью от 100 до 250 кВА включительно шкафного или киоскового типа | G15: Строительство КТПН № 2 250 кВА 8ПУ Восточная группа скважин | H15: I ) Город | I15: 1) один | J15: 3.) от 100 до 250 кВА включительно | K15: 2) шкафного или киоскового | L15: 2) 10/0,4 кВ | M15: =Титульный!$D$10-2 -> 2023 | N15: 200 | O15: 2074733.5 | P15: 10373.6675 | Q15: 8 | R15: Инвестиционная программа
C16: 4 | D16: 5.1.3..2 | E16: С 5.1.3..2, 10/0,4 кВ | F16: =IFERROR(VLOOKUP($I16,'1.1Назв. объ. эл. сетевого хоз.'!$K$2:$L$35,2,0)&" "&VLOOKUP($J16,'1.1Назв. объ. эл. сетевого хоз.'!$K$2:$L$26,2,0)&" "&VLOOKUP($K16,'1.1Назв. объ. эл. сетевого хоз.'!$K$2:$L$26,2,0),"Заполните все столбцы") -> однотрансформаторные подстанции (за исключением РТП) мощностью от 100 до 250 кВА включительно шкафного или киоскового типа | G16: Строительство КТПН № 3 250 кВА 8ПУ Восточная группа скважин | H16: I ) Город | I16: 1) один | J16: 3.) от 100 до 250 кВА включительно | K16: 2) шкафного или киоскового | L16: 2) 10/0,4 кВ | M16: =Титульный!$D$10-2 -> 2023 | N16: 200 | O16: 2074733.5 | P16: 10373.6675 | Q16: 8 | R16: Инвестиционная программа
B17: X | C17: 5 | D17: =IF(OR($I17="",$J17="",$K17="",$L17=""),"Заполните все столбцы","5."&LEFT($I17,1)&"."&LEFT($J17,2)&"."&LEFT($K17,1)) -> 5.1.3..2 | E17: =IFERROR("С "&(MID($D17,1,LEN($D17)))&","&(RIGHT($L17,LEN($L17)-2)),"Заполните все столбцы") -> С 5.1.3..2, 10/0,4 кВ | F17: =IFERROR(VLOOKUP($I17,'1.1Назв. объ. эл. сетевого хоз.'!$K$2:$L$35,2,0)&" "&VLOOKUP($J17,'1.1Назв. объ. эл. сетевого хоз.'!$K$2:$L$26,2,0)&" "&VLOOKUP($K17,'1.1Назв. объ. эл. сетевого хоз.'!$K$2:$L$26,2,0),"Заполните все столбцы") -> однотрансформаторные подстанции (за исключением РТП) мощностью от 100 до 250 кВА включительно шкафного или киоскового типа | G17: Строительство КТПН № 1 250 кВА 8ПУ Восточная группа скважин | H17: I ) Город | I17: 1) один | J17: 3.) от 100 до 250 кВА включительно | K17: 2) шкафного или киоскового | L17: 2) 10/0,4 кВ | M17: =Титульный!$D$10-2 -> 2023 | N17: 200 | O17: 2074733.5 | P17: =IF(AND(O17<>0,N17<>0),O17/N17,0) -> 10373.6675 | Q17: 8 | R17: Инвестиционная программа
B18: X | C18: 6 | D18: 5.1.5..2 | E18: С 5.1.5..2, 10/0,4 кВ | F18: =IFERROR(VLOOKUP($I18,'1.1Назв. объ. эл. сетевого хоз.'!$K$2:$L$35,2,0)&" "&VLOOKUP($J18,'1.1Назв. объ. эл. сетевого хоз.'!$K$2:$L$26,2,0)&" "&VLOOKUP($K18,'1.1Назв. объ. эл. сетевого хоз.'!$K$2:$L$26,2,0),"Заполните все столбцы") -> однотрансформаторные подстанции (за исключением РТП) мощностью от 400 до 630 кВА включительно шкафного или киоскового типа | G18: Строительство КТПН -630 кВА пос. Медвежий угол | H18: I ) Город | I18: 1) один | J18: 5.) от 400 до 630 кВА включительно | K18: 2) шкафного или киоскового | L18: 2) 10/0,4 кВ | M18: =Титульный!$D$10-2 -> 2023 | N18: 504 | O18: 4445393.58 | P18: =IF(AND(O18<>0,N18<>0),O18/N18,0) -> 8820.225357 | Q18: 8, 8.1 | R18: Инвестиционная программа
B19: X | C19: 7 | D19: 5.1.5..2 | E19: С 5.1.5..2, 10/0,4 кВ | F19: =IFERROR(VLOOKUP($I19,'1.1Назв. объ. эл. сетевого хоз.'!$K$2:$L$35,2,0)&" "&VLOOKUP($J19,'1.1Назв. объ. эл. сетевого хоз.'!$K$2:$L$26,2,0)&" "&VLOOKUP($K19,'1.1Назв. объ. эл. сетевого хоз.'!$K$2:$L$26,2,0),"Заполните все столбцы") -> однотрансформаторные подстанции (за исключением РТП) мощностью от 400 до 630 кВА включительно шкафного или киоскового типа | G19: Строительство КТПН № 1 630 кВА ДНТ Белые росы | H19: I ) Город | I19: 1) один | J19: 5.) от 400 до 630 кВА включительно | K19: 2) шкафного или киоскового | L19: 2) 10/0,4 кВ | M19: =Титульный!$D$10-2 -> 2023 | N19: 504 | O19: 4435350.55 | P19: =IF(AND(O19<>0,N19<>0),O19/N19,0) -> 8800.29871 | Q19: 2 | R19: Инвестиционная программа
B20: X | C20: 8 | D20: 5.1.5..2 | E20: С 5.1.5..2, 10/0,4 кВ | F20: =IFERROR(VLOOKUP($I20,'1.1Назв. объ. эл. сетевого хоз.'!$K$2:$L$35,2,0)&" "&VLOOKUP($J20,'1.1Назв. объ. эл. сетевого хоз.'!$K$2:$L$26,2,0)&" "&VLOOKUP($K20,'1.1Назв. объ. эл. сетевого хоз.'!$K$2:$L$26,2,0),"Заполните все столбцы") -> однотрансформаторные подстанции (за исключением РТП) мощностью от 400 до 630 кВА включительно шкафного или киоскового типа | G20: Строительство КТПН № 2 630 кВА ДНТ Белые росы | H20: I ) Город | I20: 1) один | J20: 5.) от 400 до 630 кВА включительно | K20: 2) шкафного или киоскового | L20: 2) 10/0,4 кВ | M20: =Титульный!$D$10-2 -> 2023 | N20: 504 | O20: 4435350.55 | P20: =IF(AND(O20<>0,N20<>0),O20/N20,0) -> 8800.29871 | Q20: 2 | R20: Инвестиционная программа
B21: X | C21: 9 | D21: 5.1.4..2 | E21: С 5.1.4..2, 10/0,4 кВ | F21: =IFERROR(VLOOKUP($I21,'1.1Назв. объ. эл. сетевого хоз.'!$K$2:$L$35,2,0)&" "&VLOOKUP($J21,'1.1Назв. объ. эл. сетевого хоз.'!$K$2:$L$26,2,0)&" "&VLOOKUP($K21,'1.1Назв. объ. эл. сетевого хоз.'!$K$2:$L$26,2,0),"Заполните все столбцы") -> однотрансформаторные подстанции (за исключением РТП) мощностью от 250 до 400 кВА включительно шкафного или киоскового типа | G21: Строительство КТПН №1 - 400 кВА СПК "Север" | H21: I ) Город | I21: 1) один | J21: 4.) от 250 до 400 кВА включительно | K21: 2) шкафного или киоскового | L21: 2) 10/0,4 кВ | M21: =Титульный!$D$10-2 -> 2023 | N21: 320 | O21: 2532505.58 | P21: =IF(AND(O21<>0,N21<>0),O21/N21,0) -> 7914.079938 | Q21: 3, 3.1 | R21: Инвестиционная программа
B22: X | C22: 10 | D22: 5.1.6..2 | E22: С 5.1.6..2, 10/0,4 кВ | F22: =IFERROR(VLOOKUP($I22,'1.1Назв. объ. эл. сетевого хоз.'!$K$2:$L$35,2,0)&" "&VLOOKUP($J22,'1.1Назв. объ. эл. сетевого хоз.'!$K$2:$L$26,2,0)&" "&VLOOKUP($K22,'1.1Назв. объ. эл. сетевого хоз.'!$K$2:$L$26,2,0),"Заполните все столбцы") -> однотрансформаторные подстанции (за исключением РТП) мощностью от 630 кВА до 1000 кВА шкафного или киоскового типа | G22: Строительство КТПН №2 - 1000 кВА СПК "Север" | H22: I ) Город | I22: 1) один | J22: 6.) от 630 кВА до 1000 кВА | K22: 2) шкафного или киоскового | L22: 2) 10/0,4 кВ | M22: =Титульный!$D$10-2 -> 2023 | N22: 800 | O22: 5184455.09 | P22: =IF(AND(O22<>0,N22<>0),O22/N22,0) -> 6480.568863 | Q22: 3 | R22: Инвестиционная программа
B23: X | C23: 11 | D23: 5.1.5..2 | E23: С 5.1.5..2, 10/0,4 кВ | F23: =IFERROR(VLOOKUP($I23,'1.1Назв. объ. эл. сетевого хоз.'!$K$2:$L$35,2,0)&" "&VLOOKUP($J23,'1.1Назв. объ. эл. сетевого хоз.'!$K$2:$L$26,2,0)&" "&VLOOKUP($K23,'1.1Назв. объ. эл. сетевого хоз.'!$K$2:$L$26,2,0),"Заполните все столбцы") -> однотрансформаторные подстанции (за исключением РТП) мощностью от 400 до 630 кВА включительно шкафного или киоскового типа | G23: Строительство КТПН №1 - 630 кВА СТСН "Север-1" | H23: I ) Город | I23: 1) один | J23: 5.) от 400 до 630 кВА включительно | K23: 2) шкафного или киоскового | L23: 2) 10/0,4 кВ | M23: =Титульный!$D$10-2 -> 2023 | N23: 504 | O23: 4435350.8 | P23: =IF(AND(O23<>0,N23<>0),O23/N23,0) -> 8800.299206 | Q23: 3, 3.1 | R23: Инвестиционная программа
B24: X | C24: 12 | D24: 5.1.4..2 | E24: С 5.1.4..2, 10/0,4 кВ | F24: =IFERROR(VLOOKUP($I24,'1.1Назв. объ. эл. сетевого хоз.'!$K$2:$L$35,2,0)&" "&VLOOKUP($J24,'1.1Назв. объ. эл. сетевого хоз.'!$K$2:$L$26,2,0)&" "&VLOOKUP($K24,'1.1Назв. объ. эл. сетевого хоз.'!$K$2:$L$26,2,0),"Заполните все столбцы") -> однотрансформаторные подстанции (за исключением РТП) мощностью от 250 до 400 кВА включительно шкафного или киоскового типа | G24: Строительство КТПН №2 - 400 кВА СТСН "Север-1" | H24: I ) Город | I24: 1) один | J24: 4.) от 250 до 400 кВА включительно | K24: 2) шкафного или киоскового | L24: 2) 10/0,4 кВ | M24: =Титульный!$D$10-2 -> 2023 | N24: 320 | O24: 2532505.58 | P24: =IF(AND(O24<>0,N24<>0),O24/N24,0) -> 7914.079938 | Q24: 3, 3.1 | R24: Инвестиционная программа
B25: X | C25: 13 | D25: 5.1.6..2 | E25: С 5.1.6..2, 10/0,4 кВ | F25: =IFERROR(VLOOKUP($I25,'1.1Назв. объ. эл. сетевого хоз.'!$K$2:$L$35,2,0)&" "&VLOOKUP($J25,'1.1Назв. объ. эл. сетевого хоз.'!$K$2:$L$26,2,0)&" "&VLOOKUP($K25,'1.1Назв. объ. эл. сетевого хоз.'!$K$2:$L$26,2,0),"Заполните все столбцы") -> однотрансформаторные подстанции (за исключением РТП) мощностью от 630 кВА до 1000 кВА шкафного или киоскового типа | G25: Строительство КТПН №1 - 1000 кВА СПК "Победит-1" | H25: I ) Город | I25: 1) один | J25: 6.) от 630 кВА до 1000 кВА | K25: 2) шкафного или киоскового | L25: 2) 10/0,4 кВ | M25: =Титульный!$D$10-2 -> 2023 | N25: 800 | O25: 5184455.09 | P25: =IF(AND(O25<>0,N25<>0),O25/N25,0) -> 6480.568863 | Q25: 4 | R25: Инвестиционная программа
B26: X | C26: 14 | D26: 5.1.6..2 | E26: С 5.1.6..2, 10/0,4 кВ | F26: =IFERROR(VLOOKUP($I26,'1.1Назв. объ. эл. сетевого хоз.'!$K$2:$L$35,2,0)&" "&VLOOKUP($J26,'1.1Назв. объ. эл. сетевого хоз.'!$K$2:$L$26,2,0)&" "&VLOOKUP($K26,'1.1Назв. объ. эл. сетевого хоз.'!$K$2:$L$26,2,0),"Заполните все столбцы") -> однотрансформаторные подстанции (за исключением РТП) мощностью от 630 кВА до 1000 кВА шкафного или киоскового типа | G26: Строительство КТПН №3 - 1000 кВА СПК "Победит-1" | H26: I ) Город | I26: 1) один | J26: 6.) от 630 кВА до 1000 кВА | K26: 2) шкафного или киоскового | L26: 2) 10/0,4 кВ | M26: =Титульный!$D$10-2 -> 2023 | N26: 800 | O26: 5184455.09 | P26: =IF(AND(O26<>0,N26<>0),O26/N26,0) -> 6480.568863 | Q26: 4 | R26: Инвестиционная программа
B27: X | C27: 15 | D27: 5.1.6..2 | E27: С 5.1.6..2, 10/0,4 кВ | F27: =IFERROR(VLOOKUP($I27,'1.1Назв. объ. эл. сетевого хоз.'!$K$2:$L$35,2,0)&" "&VLOOKUP($J27,'1.1Назв. объ. эл. сетевого хоз.'!$K$2:$L$26,2,0)&" "&VLOOKUP($K27,'1.1Назв. объ. эл. сетевого хоз.'!$K$2:$L$26,2,0),"Заполните все столбцы") -> однотрансформаторные подстанции (за исключением РТП) мощностью от 630 кВА до 1000 кВА шкафного или киоскового типа | G27: Строительство КТПН №5 - 1000 кВА СПК "Победит-1" | H27: I ) Город | I27: 1) один | J27: 6.) от 630 кВА до 1000 кВА | K27: 2) шкафного или киоскового | L27: 2) 10/0,4 кВ | M27: =Титульный!$D$10-2 -> 2023 | N27: 800 | O27: 5184455.09 | P27: =IF(AND(O27<>0,N27<>0),O27/N27,0) -> 6480.568863 | Q27: 4 | R27: Инвестиционная программа
B28: X | C28: 16 | D28: 5.1.6..2 | E28: С 5.1.6..2, 10/0,4 кВ | F28: =IFERROR(VLOOKUP($I28,'1.1Назв. объ. эл. сетевого хоз.'!$K$2:$L$35,2,0)&" "&VLOOKUP($J28,'1.1Назв. объ. эл. сетевого хоз.'!$K$2:$L$26,2,0)&" "&VLOOKUP($K28,'1.1Назв. объ. эл. сетевого хоз.'!$K$2:$L$26,2,0),"Заполните все столбцы") -> однотрансформаторные подстанции (за исключением РТП) мощностью от 630 кВА до 1000 кВА шкафного или киоскового типа | G28: Строительство КТПН - 1000 кВА ТСН "Крылья Сургута" | H28: I ) Город | I28: 1) один | J28: 6.) от 630 кВА до 1000 кВА | K28: 2) шкафного или киоскового | L28: 2) 10/0,4 кВ | M28: =Титульный!$D$10-2 -> 2023 | N28: 800 | O28: 5184455.09 | P28: =IF(AND(O28<>0,N28<>0),O28/N28,0) -> 6480.568863 | Q28: 5 | R28: Инвестиционная программа
B29: X | C29: 17 | D29: 5.1.6..2 | E29: С 5.1.6..2, 10/0,4 кВ | F29: =IFERROR(VLOOKUP($I29,'1.1Назв. объ. эл. сетевого хоз.'!$K$2:$L$35,2,0)&" "&VLOOKUP($J29,'1.1Назв. объ. эл. сетевого хоз.'!$K$2:$L$26,2,0)&" "&VLOOKUP($K29,'1.1Назв. объ. эл. сетевого хоз.'!$K$2:$L$26,2,0),"Заполните все столбцы") -> однотрансформаторные подстанции (за исключением РТП) мощностью от 630 кВА до 1000 кВА шкафного или киоскового типа | G29: Строительство КТПН - 1000 кВА СТСН № 20 "Магистраль" | H29: I ) Город | I29: 1) один | J29: 6.) от 630 кВА до 1000 кВА | K29: 2) шкафного или киоскового | L29: 2) 10/0,4 кВ | M29: =Титульный!$D$10-2 -> 2023 | N29: 800 | O29: 5184455.09 | P29: =IF(AND(O29<>0,N29<>0),O29/N29,0) -> 6480.568863 | Q29: 5 | R29: Инвестиционная программа
B30: X | C30: 18 | D30: 5.1.5..2 | E30: С 5.1.5..2, 10/0,4 кВ | F30: =IFERROR(VLOOKUP($I30,'1.1Назв. объ. эл. сетевого хоз.'!$K$2:$L$35,2,0)&" "&VLOOKUP($J30,'1.1Назв. объ. эл. сетевого хоз.'!$K$2:$L$26,2,0)&" "&VLOOKUP($K30,'1.1Назв. объ. эл. сетевого хоз.'!$K$2:$L$26,2,0),"Заполните все столбцы") -> однотрансформаторные подстанции (за исключением РТП) мощностью от 400 до 630 кВА включительно шкафного или киоскового типа | G30: Строительство КТПН №2- 630 кВА ПСК "Ветеран-2" | H30: I ) Город | I30: 1) один | J30: 5.) от 400 до 630 кВА включительно | K30: 2) шкафного или киоскового | L30: 2) 10/0,4 кВ | M30: =Титульный!$D$10-2 -> 2023 | N30: 504 | O30: 4435350.8 | P30: =IF(AND(O30<>0,N30<>0),O30/N30,0) -> 8800.299206 | Q30: 6 | R30: Инвестиционная программа
B31: X | C31: 19 | D31: 5.1.5..2 | E31: С 5.1.5..2, 10/0,4 кВ | F31: =IFERROR(VLOOKUP($I31,'1.1Назв. объ. эл. сетевого хоз.'!$K$2:$L$35,2,0)&" "&VLOOKUP($J31,'1.1Назв. объ. эл. сетевого хоз.'!$K$2:$L$26,2,0)&" "&VLOOKUP($K31,'1.1Назв. объ. эл. сетевого хоз.'!$K$2:$L$26,2,0),"Заполните все столбцы") -> однотрансформаторные подстанции (за исключением РТП) мощностью от 400 до 630 кВА включительно шкафного или киоскового типа | G31: Строительство КТПН №1- 630 кВА СТ№38 "Берендей" | H31: I ) Город | I31: 1) один | J31: 5.) от 400 до 630 кВА включительно | K31: 2) шкафного или киоскового | L31: 2) 10/0,4 кВ | M31: =Титульный!$D$10-2 -> 2023 | N31: 504 | O31: 4435350.8 | P31: =IF(AND(O31<>0,N31<>0),O31/N31,0) -> 8800.299206 | Q31: 6 | R31: Инвестиционная программа
B32: X | C32: 20 | D32: 5.1.6..2 | E32: С 5.1.6..2, 10/0,4 кВ | F32: =IFERROR(VLOOKUP($I32,'1.1Назв. объ. эл. сетевого хоз.'!$K$2:$L$35,2,0)&" "&VLOOKUP($J32,'1.1Назв. объ. эл. сетевого хоз.'!$K$2:$L$26,2,0)&" "&VLOOKUP($K32,'1.1Назв. объ. эл. сетевого хоз.'!$K$2:$L$26,2,0),"Заполните все столбцы") -> однотрансформаторные подстанции (за исключением РТП) мощностью от 630 кВА до 1000 кВА шкафного или киоскового типа | G32: Строительство КТПН №2- 1000 кВА СТ№38 "Берендей" | H32: I ) Город | I32: 1) один | J32: 6.) от 630 кВА до 1000 кВА | K32: 2) шкафного или киоскового | L32: 2) 10/0,4 кВ | M32: =Титульный!$D$10-2 -> 2023 | N32: 800 | O32: 5184455.09 | P32: =IF(AND(O32<>0,N32<>0),O32/N32,0) -> 6480.568863 | Q32: 6 | R32: Инвестиционная программа
B33: X | C33: 21 | D33: 5.1.4..2 | E33: С 5.1.4..2, 10/0,4 кВ | F33: =IFERROR(VLOOKUP($I33,'1.1Назв. объ. эл. сетевого хоз.'!$K$2:$L$35,2,0)&" "&VLOOKUP($J33,'1.1Назв. объ. эл. сетевого хоз.'!$K$2:$L$26,2,0)&" "&VLOOKUP($K33,'1.1Назв. объ. эл. сетевого хоз.'!$K$2:$L$26,2,0),"Заполните все столбцы") -> однотрансформаторные подстанции (за исключением РТП) мощностью от 250 до 400 кВА включительно шкафного или киоскового типа | G33: Строительство КТПН- 400 кВА СНТСТ №28 "Буровик" | H33: I ) Город | I33: 1) один | J33: 4.) от 250 до 400 кВА включительно | K33: 2) шкафного или киоскового | L33: 2) 10/0,4 кВ | M33: =Титульный!$D$10-2 -> 2023 | N33: 320 | O33: 2532505.58 | P33: =IF(AND(O33<>0,N33<>0),O33/N33,0) -> 7914.079938 | Q33: 7 | R33: Инвестиционная программа
B34: X | C34: 22 | D34: 5.1.4..2 | E34: С 5.1.4..2, 10/0,4 кВ | F34: =IFERROR(VLOOKUP($I34,'1.1Назв. объ. эл. сетевого хоз.'!$K$2:$L$35,2,0)&" "&VLOOKUP($J34,'1.1Назв. объ. эл. сетевого хоз.'!$K$2:$L$26,2,0)&" "&VLOOKUP($K34,'1.1Назв. объ. эл. сетевого хоз.'!$K$2:$L$26,2,0),"Заполните все столбцы") -> однотрансформаторные подстанции (за исключением РТП) мощностью от 250 до 400 кВА включительно шкафного или киоскового типа | G34: Строительство КТПН- 400 кВА СТСН "Тюльпан" | H34: I ) Город | I34: 1) один | J34: 4.) от 250 до 400 кВА включительно | K34: 2) шкафного или киоскового | L34: 2) 10/0,4 кВ | M34: =Титульный!$D$10-2 -> 2023 | N34: 320 | O34: 2532505.58 | P34: =IF(AND(O34<>0,N34<>0),O34/N34,0) -> 7914.079938 | Q34: 7 | R34: Инвестиционная программа
B35: X | C35: 23 | D35: 5.1.5..2 | E35: С 5.1.5..2, 10/0,4 кВ | F35: =IFERROR(VLOOKUP($I35,'1.1Назв. объ. эл. сетевого хоз.'!$K$2:$L$35,2,0)&" "&VLOOKUP($J35,'1.1Назв. объ. эл. сетевого хоз.'!$K$2:$L$26,2,0)&" "&VLOOKUP($K35,'1.1Назв. объ. эл. сетевого хоз.'!$K$2:$L$26,2,0),"Заполните все столбцы") -> однотрансформаторные подстанции (за исключением РТП) мощностью от 400 до 630 кВА включительно шкафного или киоскового типа | G35: Строительство КТПН- 630 кВА СТ №47 "Лайнер" | H35: I ) Город | I35: 1) один | J35: 5.) от 400 до 630 кВА включительно | K35: 2) шкафного или киоскового | L35: 2) 10/0,4 кВ | M35: =Титульный!$D$10-2 -> 2023 | N35: 504 | O35: 4435350.8 | P35: =IF(AND(O35<>0,N35<>0),O35/N35,0) -> 8800.299206 | Q35: 7 | R35: Инвестиционная программа
B36: X | C36: 24 | D36: 5.1.5..2 | E36: С 5.1.5..2, 10/0,4 кВ | F36: =IFERROR(VLOOKUP($I36,'1.1Назв. объ. эл. сетевого хоз.'!$K$2:$L$35,2,0)&" "&VLOOKUP($J36,'1.1Назв. объ. эл. сетевого хоз.'!$K$2:$L$26,2,0)&" "&VLOOKUP($K36,'1.1Назв. объ. эл. сетевого хоз.'!$K$2:$L$26,2,0),"Заполните все столбцы") -> однотрансформаторные подстанции (за исключением РТП) мощностью от 400 до 630 кВА включительно шкафного или киоскового типа | G36: Строительство КТПН- 630 кВА ТСН №43 "Полимер" | H36: I ) Город | I36: 1) один | J36: 5.) от 400 до 630 кВА включительно | K36: 2) шкафного или киоскового | L36: 2) 10/0,4 кВ | M36: =Титульный!$D$10-2 -> 2023 | N36: 504 | O36: 4435350.8 | P36: =IF(AND(O36<>0,N36<>0),O36/N36,0) -> 8800.299206 | Q36: 7 | R36: Инвестиционная программа
B37: X | C37: 25 | D37: 5.1.3..2 | E37: С 5.1.3..2, 10/0,4 кВ | F37: =IFERROR(VLOOKUP($I37,'1.1Назв. объ. эл. сетевого хоз.'!$K$2:$L$35,2,0)&" "&VLOOKUP($J37,'1.1Назв. объ. эл. сетевого хоз.'!$K$2:$L$26,2,0)&" "&VLOOKUP($K37,'1.1Назв. объ. эл. сетевого хоз.'!$K$2:$L$26,2,0),"Заполните все столбцы") -> однотрансформаторные подстанции (за исключением РТП) мощностью от 100 до 250 кВА включительно шкафного или киоскового типа | G37: Строительство КТПН-250 кВА ТСН №44 "Локомотив" | H37: I ) Город | I37: 1) один | J37: 3.) от 100 до 250 кВА включительно | K37: 2) шкафного или киоскового | L37: 2) 10/0,4 кВ | M37: =Титульный!$D$10-2 -> 2023 | N37: 200 | O37: 2064691.43 | P37: =IF(AND(O37<>0,N37<>0),O37/N37,0) -> 10323.45715 | Q37: 7 | R37: Инвестиционная программа
B38: X | C38: =ROW($C38)-12 -> 26 | D38: =IF(OR($I38="",$J38="",$K38="",$L38=""),"Заполните все столбцы","5."&LEFT($I38,1)&"."&LEFT($J38,2)&"."&LEFT($K38,1)) -> 5.2.6..2 | E38: =IFERROR("С "&(MID($D38,1,LEN($D38)))&","&(RIGHT($L38,LEN($L38)-2)),"Заполните все столбцы") -> С 5.2.6..2, 10/0,4 кВ | F38: =IFERROR(VLOOKUP($I38,'1.1Назв. объ. эл. сетевого хоз.'!$K$2:$L$35,2,0)&" "&VLOOKUP($J38,'1.1Назв. объ. эл. сетевого хоз.'!$K$2:$L$26,2,0)&" "&VLOOKUP($K38,'1.1Назв. объ. эл. сетевого хоз.'!$K$2:$L$26,2,0),"Заполните все столбцы") -> двухтрансформаторные и более подстанции (за исключением РТП) мощностью от 630 кВА до 1000 кВА шкафного или киоскового типа | G38: Строительство КТПН №1 2х1000 кВА ПСТ-30 "Дорожник" | H38: I ) Город | I38: 2) два | J38: 6.) от 630 кВА до 1000 кВА | K38: 2) шкафного или киоскового | L38: 2) 10/0,4 кВ | M38: =Титульный!$D$10-2 -> 2023 | N38: 1600 | O38: 8061397.44 | P38: =IF(AND(O38<>0,N38<>0),O38/N38,0) -> 5038.3734 | Q38: 9 | R38: Инвестиционная программа
B39: X | C39: 27 | D39: 5.2.6..2 | E39: С 5.2.6..2, 10/0,4 кВ | F39: =IFERROR(VLOOKUP($I39,'1.1Назв. объ. эл. сетевого хоз.'!$K$2:$L$35,2,0)&" "&VLOOKUP($J39,'1.1Назв. объ. эл. сетевого хоз.'!$K$2:$L$26,2,0)&" "&VLOOKUP($K39,'1.1Назв. объ. эл. сетевого хоз.'!$K$2:$L$26,2,0),"Заполните все столбцы") -> двухтрансформаторные и более подстанции (за исключением РТП) мощностью от 630 кВА до 1000 кВА шкафного или киоскового типа | G39: Строительство КТПН №2 2х1000 кВА ПСТ-30 "Дорожник" | H39: I ) Город | I39: 2) два | J39: 6.) от 630 кВА до 1000 кВА | K39: 2) шкафного или киоскового | L39: 2) 10/0,4 кВ | M39: =Титульный!$D$10-2 -> 2023 | N39: 1600 | O39: 8194681.32 | P39: =IF(AND(O39<>0,N39<>0),O39/N39,0) -> 5121.675825 | Q39: 9 | R39: Инвестиционная программа
B40: X | C40: 28 | D40: 5.2.10.3 | E40: С 5.2.10.3, 10/0,4 кВ | F40: =IFERROR(VLOOKUP($I40,'1.1Назв. объ. эл. сетевого хоз.'!$K$2:$L$35,2,0)&" "&VLOOKUP($J40,'1.1Назв. объ. эл. сетевого хоз.'!$K$2:$L$26,2,0)&" "&VLOOKUP($K40,'1.1Назв. объ. эл. сетевого хоз.'!$K$2:$L$26,2,0),"Заполните все столбцы") -> двухтрансформаторные и более подстанции (за исключением РТП) мощностью от 2000 кВА до 2500 кВА включительно блочного типа | G40: Строительство ТП- 2х2500 кВА мкр. 7 | H40: I ) Город | I40: 2) два | J40: 10) от 2000 кВА до 2500 кВА включительно | K40: 3) блочного | L40: 2) 10/0,4 кВ | M40: =Титульный!$D$10-2 -> 2023 | N40: 4000 | O40: 30780580.02 | P40: =IF(AND(O40<>0,N40<>0),O40/N40,0) -> 7695.145005 | Q40: 10 | R40: Инвестиционная программа
B41: X | C41: 29 | D41: 5.2.10.3 | E41: С 5.2.10.3, 10/0,4 кВ | F41: =IFERROR(VLOOKUP($I41,'1.1Назв. объ. эл. сетевого хоз.'!$K$2:$L$35,2,0)&" "&VLOOKUP($J41,'1.1Назв. объ. эл. сетевого хоз.'!$K$2:$L$26,2,0)&" "&VLOOKUP($K41,'1.1Назв. объ. эл. сетевого хоз.'!$K$2:$L$26,2,0),"Заполните все столбцы") -> двухтрансформаторные и более подстанции (за исключением РТП) мощностью от 2000 кВА до 2500 кВА включительно блочного типа | G41: Строительство ТП- 2х2500 мкр. Пойма-5 | H41: I ) Город | I41: 2) два | J41: 10) от 2000 кВА до 2500 кВА включительно | K41: 3) блочного | L41: 2) 10/0,4 кВ | M41: =Титульный!$D$10-2 -> 2023 | N41: 4000 | O41: 33695098 | P41: =IF(AND(O41<>0,N41<>0),O41/N41,0) -> 8423.7745 | Q41: 11 | R41: Инвестиционная программа
B42: X | C42: 30 | D42: 5.2.6..3 | E42: С 5.2.6..3, 10/0,4 кВ | F42: =IFERROR(VLOOKUP($I42,'1.1Назв. объ. эл. сетевого хоз.'!$K$2:$L$35,2,0)&" "&VLOOKUP($J42,'1.1Назв. объ. эл. сетевого хоз.'!$K$2:$L$26,2,0)&" "&VLOOKUP($K42,'1.1Назв. объ. эл. сетевого хоз.'!$K$2:$L$26,2,0),"Заполните все столбцы") -> двухтрансформаторные и более подстанции (за исключением РТП) мощностью от 630 кВА до 1000 кВА блочного типа | G42: Строительство ТП 2х1000 кВА Пойма-5 д/с | H42: I ) Город | I42: 2) два | J42: 6.) от 630 кВА до 1000 кВА | K42: 3) блочного | L42: 2) 10/0,4 кВ | M42: =Титульный!$D$10-2 -> 2023 | N42: 1600 | O42: 8020114 | P42: =IF(AND(O42<>0,N42<>0),O42/N42,0) -> 5012.57125 | Q42: 12 | R42: Инвестиционная программа
B43: X | C43: 31 | D43: 5.2.8..3 | E43: С 5.2.8..3, 10/0,4 кВ | F43: =IFERROR(VLOOKUP($I43,'1.1Назв. объ. эл. сетевого хоз.'!$K$2:$L$35,2,0)&" "&VLOOKUP($J43,'1.1Назв. объ. эл. сетевого хоз.'!$K$2:$L$26,2,0)&" "&VLOOKUP($K43,'1.1Назв. объ. эл. сетевого хоз.'!$K$2:$L$26,2,0),"Заполните все столбцы") -> двухтрансформаторные и более подстанции (за исключением РТП) мощностью от 1250 кВА до 1600 кВА включительно блочного типа | G43: Строительство ТП 2х1600 кВА Восточный пром район | H43: I ) Город | I43: 2) два | J43: 8.) от 1250 кВА до 1600 кВА включительно | K43: 3) блочного | L43: 2) 10/0,4 кВ | M43: =Титульный!$D$10-2 -> 2023 | N43: 2560 | O43: 22202919.97 | P43: =IF(AND(O43<>0,N43<>0),O43/N43,0) -> 8673.015613 | Q43: 31, 31.1 | R43: Инвестиционная программа
B44: X | C44: 32 | D44: 5.2.6..3 | E44: С 5.2.6..3, 10/0,4 кВ | F44: =IFERROR(VLOOKUP($I44,'1.1Назв. объ. эл. сетевого хоз.'!$K$2:$L$35,2,0)&" "&VLOOKUP($J44,'1.1Назв. объ. эл. сетевого хоз.'!$K$2:$L$26,2,0)&" "&VLOOKUP($K44,'1.1Назв. объ. эл. сетевого хоз.'!$K$2:$L$26,2,0),"Заполните все столбцы") -> двухтрансформаторные и более подстанции (за исключением РТП) мощностью от 630 кВА до 1000 кВА блочного типа | G44: Строительство здания ТП-2х1000 кВА мкр. 31А Станция переливания крови | H44: I ) Город | I44: 2) два | J44: 6.) от 630 кВА до 1000 кВА | K44: 3) блочного | L44: 2) 10/0,4 кВ | M44: =Титульный!$D$10-2 -> 2023 | N44: 1600 | O44: 5591749.11 | P44: =IF(AND(O44<>0,N44<>0),O44/N44,0) -> 3494.843194 | Q44: 32 | R44: Инвестиционная программа
B45: X | C45: 33 | D45: Заполните все столбцы | E45: Заполните все столбцы | F45: =IFERROR(VLOOKUP($I45,'1.1Назв. объ. эл. сетевого хоз.'!$K$2:$L$35,2,0)&" "&VLOOKUP($J45,'1.1Назв. объ. эл. сетевого хоз.'!$K$2:$L$26,2,0)&" "&VLOOKUP($K45,'1.1Назв. объ. эл. сетевого хоз.'!$K$2:$L$26,2,0),"Заполните все столбцы") -> Заполните все столбцы | M45: =Титульный!$D$10-2 -> 2023 | P45: =IF(AND(O45<>0,N45<>0),O45/N45,0) -> 0
B46: X | C46: 34 | D46: Заполните все столбцы | E46: Заполните все столбцы | F46: =IFERROR(VLOOKUP($I46,'1.1Назв. объ. эл. сетевого хоз.'!$K$2:$L$35,2,0)&" "&VLOOKUP($J46,'1.1Назв. объ. эл. сетевого хоз.'!$K$2:$L$26,2,0)&" "&VLOOKUP($K46,'1.1Назв. объ. эл. сетевого хоз.'!$K$2:$L$26,2,0),"Заполните все столбцы") -> Заполните все столбцы | M46: =Титульный!$D$10-2 -> 2023 | P46: =IF(AND(O46<>0,N46<>0),O46/N46,0) -> 0
B47: TAG | G47: Добавить строки

Sheet Ставка 6. (РТП)
C2: Расходы на строительство введенных в эксплуатацию объектов электросетевого хозяйства для целей технологического присоединения и для целей реализации иных мероприятий инвестиционной программы территориальной сетевой организации
C6: ДЛЯ НАСЕЛЕННЫХ ПУНКТОВ ВСЕХ ТЕРРИТОРИЙ
C8: N п/п | D8: Технический код ставки | E8: Обозначение ставки | F8: Наименование ставки | G8: Объект электросетевого хозяйства | H8: Территория | I8: Количество трансформаторов | J8: Мощность трансформаторов | K8: Тип исполнения | L8: Напряжение | M8: Год ввода объекта | N8: Общая трансформаторная мощность, кВт | O8: Расходы на строительство объекта, руб. (без НДС) | P8: Расходы на строительство единицы, руб./кВт | Q8: Наименование папки | R8: Источник финансирования
C9: 1 | D9: =C$9+1 -> 2 | E9: =D$9+1 -> 3 | F9: 4 | G9: 5 | H9: 6 | I9: 7 | J9: 8 | K9: =J$9+1 -> 9 | L9: =K$9+1 -> 10 | M9: 11 | N9: 12 | O9: 13 | P9: 14 | Q9: 15 | R9: 16
C10: 6. | G10: Распределительные трансформаторные подстанции (РТП) с уровнем напряжения до 35 кВ
B11: X | C11: =ROW($C11)-12 -> -1 | D11: =IF(OR($I11="",$J11="",$K11="",$L11=""),"Заполните все столбцы","6."&LEFT($I11,1)&"."&LEFT($J11,2)&"."&LEFT($K11,1)&".") -> Заполните все столбцы | E11: =IFERROR("С "&(MID($D11,1,LEN($D11)))&","&(RIGHT($L11,LEN($L11)-2)),"Заполните все столбцы") -> Заполните все столбцы | F11: =IFERROR(VLOOKUP($I11,'1.1Назв. объ. эл. сетевого хоз.'!$N$2:$O$36,2,0)&" мощностью"&VLOOKUP($J11,'1.1Назв. объ. эл. сетевого хоз.'!$N$2:$O$27,2,0)&VLOOKUP($K11,'1.1Назв. объ. эл. сетевого хоз.'!$N$2:$O$27,2,0),"Заполните все столбцы") -> Заполните все столбцы | G11: Название объекта | M11: =Титульный!$D$10-2 -> 2023 | P11: =IF(AND(O11<>0,N11<>0),O11/N11,0) -> 0
B12: TAG | G12: Добавить строки
C13: =ROW($C13)-12 -> 1 | D13: =IF(OR($H13="",$I13="",$J13="",$K13="",$L13=""),"Заполните все столбцы",LEFT($H13,2)&"."&"6."&LEFT($I13,1)&"."&LEFT($J13,2)&"."&LEFT($K13,1)&".") -> I .6.2.10.2. | E13: =IFERROR("С "&(MID($D13,4,LEN($D13)))&" "&(RIGHT($H13,LEN($H13)-3))&","&(RIGHT($L13,LEN($L13)-2)),"Заполните все столбцы") -> С 6.2.10.2. Город, 6(10)/0,4 кВ | F13: =IFERROR(VLOOKUP($I13,'1.1Назв. объ. эл. сетевого хоз.'!$N$2:$O$36,2,0)&" мощностью"&VLOOKUP($J13,'1.1Назв. объ. эл. сетевого хоз.'!$N$2:$O$27,2,0)&VLOOKUP($K13,'1.1Назв. объ. эл. сетевого хоз.'!$N$2:$O$27,2,0),"Заполните все столбцы") -> распределительные двухтрансформаторные подстанции мощностью от 2000 кВА до 2500 кВА включительно закрытого типа | G13: Строительство РП(ТП) -1 2х2500 кВА Пойма-5 | H13: I ) Город | I13: 2) два | J13: 10) от 2000 кВА до 2500 кВА включительно | K13: 2) закрытого | L13: 1) 6(10)/0,4 кВ | M13: =Титульный!$D$10-2 -> 2023 | N13: 4000 | O13: 42076594 | P13: =IF(AND(O13<>0,N13<>0),O13/N13,0) -> 10519.1485 | Q13: 12 | R13: Инвестиционная программа
C14: =ROW($C14)-12 -> 2 | D14: =IF(OR($H14="",$I14="",$J14="",$K14="",$L14=""),"Заполните все столбцы",LEFT($H14,2)&"."&"6."&LEFT($I14,1)&"."&LEFT($J14,2)&"."&LEFT($K14,1)&".") -> I .6.2.8..2. | E14: =IFERROR("С "&(MID($D14,4,LEN($D14)))&" "&(RIGHT($H14,LEN($H14)-3))&","&(RIGHT($L14,LEN($L14)-2)),"Заполните все столбцы") -> С 6.2.8..2. Город, 6(10)/0,4 кВ | F14: =IFERROR(VLOOKUP($I14,'1.1Назв. объ. эл. сетевого хоз.'!$N$2:$O$36,2,0)&" мощностью"&VLOOKUP($J14,'1.1Назв. объ. эл. сетевого хоз.'!$N$2:$O$27,2,0)&VLOOKUP($K14,'1.1Назв. объ. эл. сетевого хоз.'!$N$2:$O$27,2,0),"Заполните все столбцы") -> распределительные двухтрансформаторные подстанции мощностью от 1250 кВА до 1600 кВА включительно закрытого типа | G14: Строительство РП(ТП) - 2х1600 кВА мкр. 39 | H14: I ) Город | I14: 2) два | J14: 8.) от 1250 кВА до 1600 кВА включительно | K14: 2) закрытого | L14: 1) 6(10)/0,4 кВ | M14: =Титульный!$D$10-2 -> 2023 | N14: 2560 | O14: 34006748.02 | P14: 13283.88595 | Q14: 13.33 | R14: Инвестиционная программа
C15: =ROW($C15)-12 -> 3 | D15: =IF(OR($H15="",$I15="",$J15="",$K15="",$L15=""),"Заполните все столбцы",LEFT($H15,2)&"."&"6."&LEFT($I15,1)&"."&LEFT($J15,2)&"."&LEFT($K15,1)&".") -> I .6.2.6..2. | E15: =IFERROR("С "&(MID($D15,4,LEN($D15)))&" "&(RIGHT($H15,LEN($H15)-3))&","&(RIGHT($L15,LEN($L15)-2)),"Заполните все столбцы") -> С 6.2.6..2. Город, 6(10)/0,4 кВ | F15: =IFERROR(VLOOKUP($I15,'1.1Назв. объ. эл. сетевого хоз.'!$N$2:$O$36,2,0)&" мощностью"&VLOOKUP($J15,'1.1Назв. объ. эл. сетевого хоз.'!$N$2:$O$27,2,0)&VLOOKUP($K15,'1.1Назв. объ. эл. сетевого хоз.'!$N$2:$O$27,2,0),"Заполните все столбцы") -> распределительные двухтрансформаторные подстанции мощностью от 630 кВА до 1000 кВА закрытого типа | G15: Строительство РП(ТП) - 2х1000 кВА мкр. 5А | H15: I ) Город | I15: 2) два | J15: 6.) от 630 кВА до 1000 кВА | K15: 2) закрытого | L15: 1) 6(10)/0,4 кВ | M15: =Титульный!$D$10-2 -> 2023 | N15: 1600 | O15: 28284858.02 | P15: 17678.03626 | Q15: 14, 14.1 | R15: Инвестиционная программа
C16: =ROW($C16)-12 -> 4 | D16: =IF(OR($H16="",$I16="",$J16="",$K16="",$L16=""),"Заполните все столбцы",LEFT($H16,2)&"."&"6."&LEFT($I16,1)&"."&LEFT($J16,2)&"."&LEFT($K16,1)&".") -> I .6.2.6..2. | E16: =IFERROR("С "&(MID($D16,4,LEN($D16)))&" "&(RIGHT($H16,LEN($H16)-3))&","&(RIGHT($L16,LEN($L16)-2)),"Заполните все столбцы") -> С 6.2.6..2. Город, 6(10)/0,4 кВ | F16: =IFERROR(VLOOKUP($I16,'1.1Назв. объ. эл. сетевого хоз.'!$N$2:$O$36,2,0)&" мощностью"&VLOOKUP($J16,'1.1Назв. объ. эл. сетевого хоз.'!$N$2:$O$27,2,0)&VLOOKUP($K16,'1.1Назв. объ. эл. сетевого хоз.'!$N$2:$O$27,2,0),"Заполните все столбцы") -> распределительные двухтрансформаторные подстанции мощностью от 630 кВА до 1000 кВА закрытого типа | G16: Строительство здания РП(ТП)-2х1000 кВА мкр. 31А Станция скорой медицинской помощи | H16: I ) Город | I16: 2) два | J16: 6.) от 630 кВА до 1000 кВА | K16: 2) закрытого | L16: 1) 6(10)/0,4 кВ | M16: =Титульный!$D$10-2 -> 2023 | N16: 1600 | O16: 7192183.93 | P16: 4495.114956 | Q16: 32 | R16: Инвестиционная программа
B17: TAG | G17: Добавить строки

Sheet Ставка 7. (ТП>35)
C2: Расходы на строительство введенных в эксплуатацию объектов электросетевого хозяйства для целей технологического присоединения и для целей реализации иных мероприятий инвестиционной программы территориальной сетевой организации
C6: ДЛЯ НАСЕЛЕННЫХ ПУНКТОВ ВСЕХ ТЕРРИТОРИЙ
C8: N п/п | D8: Технический код ставки | E8: Обозначение ставки | F8: Наименование ставки | G8: Объект электросетевого хозяйства | H8: Территория | I8: Количество трансформаторов | J8: Мощность трансформаторов | K8: Тип исполнения | L8: Напряжение | M8: Год ввода объекта | N8: Общая трансформаторная мощность, кВт | O8: Расходы на строительство объекта, руб. (без НДС) | P8: Расходы на строительство единицы, руб./кВт | Q8: Наименование папки | R8: Источник финансирования
C9: 1 | D9: =C$9+1 -> 2 | E9: =D$9+1 -> 3 | F9: 4 | G9: 5 | H9: 6 | I9: 7 | J9: 8 | K9: =J$9+1 -> 9 | L9: =K$9+1 -> 10 | M9: 11 | N9: 12 | O9: 13 | P9: 14 | Q9: 15 | R9: 16
C10: 7. | I10: Подстанции уровнем напряжения 35 кВ и выше
B11: X | C11: =ROW($C11)-12 -> -1 | D11: =IF(OR($I11="",$J11="",$K11="",$L11=""),"Заполните все столбцы","7."&LEFT($I11,1)&"."&LEFT($J11,2)&"."&LEFT($K11,1)) -> Заполните все столбцы | E11: =IFERROR("С "&(MID($D11,1,LEN($D11)))&","&(RIGHT($L11,LEN($L11)-2)),"Заполните все столбцы") -> Заполните все столбцы | F11: =IFERROR(VLOOKUP($I11,'1.1Назв. объ. эл. сетевого хоз.'!$Q$2:$R$33,2,0)&" мощностью "&VLOOKUP($J11,'1.1Назв. объ. эл. сетевого хоз.'!$Q$2:$R$33,2,0)&VLOOKUP($K11,'1.1Назв. объ. эл. сетевого хоз.'!$Q$2:$R$33,2,0),"Заполните все столбцы") -> Заполните все столбцы | G11: Название объекта | M11: =Титульный!$D$10-2 -> 2023 | P11: =IF(AND(O11<>0,N11<>0),O11/N11,0) -> 0
B12: TAG | G12: Добавить строки
C13: =ROW($C13)-12 -> 1 | D13: =IF(OR($H13="",$I13="",$J13="",$K13="",$L13=""),"Заполните все столбцы",LEFT($H13,2)&"."&"7."&LEFT($I13,1)&"."&LEFT($J13,2)&"."&LEFT($K13,1)) -> Заполните все столбцы | E13: =IFERROR("С "&(MID($D13,1,LEN($D13)))&","&(RIGHT($L13,LEN($L13)-2)),"Заполните все столбцы") -> Заполните все столбцы | F13: =IFERROR(VLOOKUP($I13,'1.1Назв. объ. эл. сетевого хоз.'!$Q$2:$R$33,2,0)&" мощностью "&VLOOKUP($J13,'1.1Назв. объ. эл. сетевого хоз.'!$Q$2:$R$33,2,0)&VLOOKUP($K13,'1.1Назв. объ. эл. сетевого хоз.'!$Q$2:$R$33,2,0),"Заполните все столбцы") -> Заполните все столбцы | G13: Название объекта | M13: =Титульный!$D$10-2 -> 2023 | P13: =IF(AND(O13<>0,N13<>0),O13/N13,0) -> 0
C14: =ROW($C14)-12 -> 2 | D14: =IF(OR($H14="",$I14="",$J14="",$K14="",$L14=""),"Заполните все столбцы",LEFT($H14,2)&"."&"7."&LEFT($I14,1)&"."&LEFT($J14,2)&"."&LEFT($K14,1)) -> Заполните все столбцы | E14: Заполните все столбцы | F14: =IFERROR(VLOOKUP($I14,'1.1Назв. объ. эл. сетевого хоз.'!$Q$2:$R$33,2,0)&" мощностью "&VLOOKUP($J14,'1.1Назв. объ. эл. сетевого хоз.'!$Q$2:$R$33,2,0)&VLOOKUP($K14,'1.1Назв. объ. эл. сетевого хоз.'!$Q$2:$R$33,2,0),"Заполните все столбцы") -> Заполните все столбцы | G14: Название объекта | M14: =Титульный!$D$10-2 -> 2023 | P14: 0
C15: =ROW($C15)-12 -> 3 | D15: =IF(OR($H15="",$I15="",$J15="",$K15="",$L15=""),"Заполните все столбцы",LEFT($H15,2)&"."&"7."&LEFT($I15,1)&"."&LEFT($J15,2)&"."&LEFT($K15,1)) -> Заполните все столбцы | E15: Заполните все столбцы | F15: =IFERROR(VLOOKUP($I15,'1.1Назв. объ. эл. сетевого хоз.'!$Q$2:$R$33,2,0)&" мощностью "&VLOOKUP($J15,'1.1Назв. объ. эл. сетевого хоз.'!$Q$2:$R$33,2,0)&VLOOKUP($K15,'1.1Назв. объ. эл. сетевого хоз.'!$Q$2:$R$33,2,0),"Заполните все столбцы") -> Заполните все столбцы | G15: Название объекта | M15: =Титульный!$D$10-2 -> 2023 | P15: 0
C16: =ROW($C16)-12 -> 4 | D16: =IF(OR($H16="",$I16="",$J16="",$K16="",$L16=""),"Заполните все столбцы",LEFT($H16,2)&"."&"7."&LEFT($I16,1)&"."&LEFT($J16,2)&"."&LEFT($K16,1)) -> Заполните все столбцы | E16: Заполните все столбцы | F16: =IFERROR(VLOOKUP($I16,'1.1Назв. объ. эл. сетевого хоз.'!$Q$2:$R$33,2,0)&" мощностью "&VLOOKUP($J16,'1.1Назв. объ. эл. сетевого хоз.'!$Q$2:$R$33,2,0)&VLOOKUP($K16,'1.1Назв. объ. эл. сетевого хоз.'!$Q$2:$R$33,2,0),"Заполните все столбцы") -> Заполните все столбцы | G16: Название объекта | M16: =Титульный!$D$10-2 -> 2023 | P16: =IF(AND(O16<>0,N16<>0),O16/N16,0) -> 0
B17: TAG | G17: Добавить строки

Sheet Ставка 8. (ПУ)
C2: Расходы на строительство введенных в эксплуатацию объектов электросетевого хозяйства для целей технологического присоединения и для целей реализации иных мероприятий инвестиционной программы территориальной сетевой организации
C6: ДЛЯ НАСЕЛЕННЫХ ПУНКТОВ ВСЕХ ТЕРРИТОРИЙ
C8: N п/п | D8: Технический код ставки | E8: Обозначение ставки | F8: Наименование ставки | G8: Объект электросетевого хозяйства | H8: Территория | I8: Количество фаз | J8: Способ подключения | K8: Напряжение | L8: Год ввода объекта | M8: Количество точек учета, шт. | N8: Общие расходы на обеспечение средствами коммерческого учета электрической энергии (мощности), руб. (без НДС) | O8: Расходы на обеспечение средствами коммерческого учета электрической энергии (мощности), руб./шт. | P8: Наименование папки | Q8: Источник финансирования
C9: 1 | D9: =C$9+1 -> 2 | E9: =D$9+1 -> 3 | F9: 4 | G9: 5 | H9: 6 | I9: 7 | J9: 8 | K9: 9 | L9: 10 | M9: 11 | N9: =M9+1 -> 12 | O9: 13 | P9: 14 | Q9: 15
C10: 8. | G10: Обеспечение средствами коммерческого учета электрической энергии (мощности)
B11: X | C11: =ROW($C11)-12 -> -1 | D11: =IF(OR($I11="",$J11="",$K11=""),"Заполните все столбцы","8."&LEFT($I11,1)&"."&LEFT($J11,1)) -> Заполните все столбцы | E11: =IF(AND(OR(D11="8.1.1",D11="8.2.1"),OR(K11="4) 35 кВ",K11="5) 110 кВ и выше")),"Заполните все столбцы",IF(AND(OR(D11="8.1.3",D11="8.2.3"),OR(K11="1) 0,4 кВ и ниже")),"Заполните все столбцы",IF(AND(OR(D11="8.1.1",D11="8.1.2",D11="8.2.1",D11="8.2.2"),OR(K11="2) 1 -10 кВ",K11="3) 20 кВ")),IFERROR("С "&(MID($D11,1,LEN($D11)))&","&" 1-20 кВ","Заполните все столбцы"),IFERROR("С "&(MID($D11,1,LEN($D11)))&","&(RIGHT($K11,LEN($K11)-2)),"Заполните все столбцы")))) -> Заполните все столбцы | F11: =IFERROR("средства коммерческого учета электрической энергии (мощности) "&VLOOKUP($I11,'1.1Назв. объ. эл. сетевого хоз.'!$T$2:$U$33,2,0)&" "&VLOOKUP($J11,'1.1Назв. объ. эл. сетевого хоз.'!$T$2:$U$33,2,0),"Заполните все столбцы") -> Заполните все столбцы | G11: Название объекта и(или) адрес | L11: =Титульный!$D$10-2 -> 2023 | O11: =IF(AND(N11<>0,M11<>0),N11/M11,0) -> 0
B12: TAG | G12: Добавить строки
C13: =ROW($C13)-12 -> 1 | D13: =IF(OR($I13="",$J13="",$K13=""),"Заполните все столбцы","8."&LEFT($I13,1)&"."&LEFT($J13,1)) -> Заполните все столбцы | E13: =IF(AND(OR(D13="8.1.1",D13="8.2.1"),OR(K13="4) 35 кВ",K13="5) 110 кВ и выше")),"Заполните все столбцы",IF(AND(OR(D13="8.1.3",D13="8.2.3"),OR(K13="1) 0,4 кВ и ниже")),"Заполните все столбцы",IF(AND(OR(D13="8.1.1",D13="8.1.2",D13="8.2.1",D13="8.2.2"),OR(K13="2) 1 -10 кВ",K13="3) 20 кВ")),IFERROR("С "&(MID($D13,1,LEN($D13)))&","&" 1-20 кВ","Заполните все столбцы"),IFERROR("С "&(MID($D13,1,LEN($D13)))&","&(RIGHT($K13,LEN($K13)-2)),"Заполните все столбцы")))) -> Заполните все столбцы | F13: =IFERROR("средства коммерческого учета электрической энергии (мощности) "&VLOOKUP($I13,'1.1Назв. объ. эл. сетевого хоз.'!$T$2:$U$33,2,0)&" "&VLOOKUP($J13,'1.1Назв. объ. эл. сетевого хоз.'!$T$2:$U$33,2,0),"Заполните все столбцы") -> Заполните все столбцы | G13: Название объекта и(или) адрес | L13: =Титульный!$D$10-2 -> 2023 | O13: =IF(AND(N13<>0,M13<>0),N13/M13,0) -> 0
C14: 2 | D14: Заполните все столбцы | E14: =IF(AND(OR(D14="8.1.1",D14="8.2.1"),OR(K14="4) 35 кВ",K14="5) 110 кВ и выше")),"Заполните все столбцы",IF(AND(OR(D14="8.1.3",D14="8.2.3"),OR(K14="1) 0,4 кВ и ниже")),"Заполните все столбцы",IF(AND(OR(D14="8.1.1",D14="8.1.2",D14="8.2.1",D14="8.2.2"),OR(K14="2) 1 -10 кВ",K14="3) 20 кВ")),IFERROR("С "&(MID($D14,1,LEN($D14)))&","&" 1-20 кВ","Заполните все столбцы"),IFERROR("С "&(MID($D14,1,LEN($D14)))&","&(RIGHT($K14,LEN($K14)-2)),"Заполните все столбцы")))) -> Заполните все столбцы | F14: =IFERROR("средства коммерческого учета электрической энергии (мощности) "&VLOOKUP($I14,'1.1Назв. объ. эл. сетевого хоз.'!$T$2:$U$33,2,0)&" "&VLOOKUP($J14,'1.1Назв. объ. эл. сетевого хоз.'!$T$2:$U$33,2,0),"Заполните все столбцы") -> Заполните все столбцы | G14: Название объекта и(или) адрес | L14: =Титульный!$D$10-2 -> 2023 | O14: =IF(AND(N14<>0,M14<>0),N14/M14,0) -> 0
C15: 3 | D15: Заполните все столбцы | E15: Заполните все столбцы | F15: =IFERROR("средства коммерческого учета электрической энергии (мощности) "&VLOOKUP($I15,'1.1Назв. объ. эл. сетевого хоз.'!$T$2:$U$33,2,0)&" "&VLOOKUP($J15,'1.1Назв. объ. эл. сетевого хоз.'!$T$2:$U$33,2,0),"Заполните все столбцы") -> Заполните все столбцы | G15: Название объекта и(или) адрес | L15: =Титульный!$D$10-2 -> 2023 | O15: =IF(AND(N15<>0,M15<>0),N15/M15,0) -> 0
C16: 4 | D16: Заполните все столбцы | E16: Заполните все столбцы | F16: =IFERROR("средства коммерческого учета электрической энергии (мощности) "&VLOOKUP($I16,'1.1Назв. объ. эл. сетевого хоз.'!$T$2:$U$33,2,0)&" "&VLOOKUP($J16,'1.1Назв. объ. эл. сетевого хоз.'!$T$2:$U$33,2,0),"Заполните все столбцы") -> Заполните все столбцы | G16: Название объекта и(или) адрес | L16: =Титульный!$D$10-2 -> 2023 | O16: =IF(AND(N16<>0,M16<>0),N16/M16,0) -> 0
B17: TAG | G17: Добавить строки

Sheet Названия ТСО+Ист. фин. тех.лист (hidden)
A1: Наименование сетевой организации, к которой непосредственно присоединен потребитель | B1: Источник финансирования
A2: Филиал ОАО "РЖД" Трансэнерго Свердловская дирекция по энергообеспечению (по сетям Ишимской, Егоршинской, Серовской, Тюменской дистанций электроснабжения) | B2: Инвестиционная программа
A3: АО "Сибирско-Уральская энергетическая компания" | B3: Технологическое присоединение
A4: Филиал "Уральский" АО "Оборонэнерго"
A5: ООО "Агенство Интеллект-Сервис"
A6: ООО СК "Восток"
A7: ООО "Дорстрой"
A8: ООО "Региональная энергетическая компания"
A9: ООО "Элеконт"
A10: АО "Горэлектросеть"
A11: АО "Ханты-Мансийские городские электрические сети"
A12: АО "Россети Тюмень"
A13: АО "Варьеганэнергонефть"
A14: Филиал ОАО «РЖД» Трансэнерго Свердловская дирекция по энергообеспечению (по сетям Сургутской дистанции электроснабжения)
A15: ПАО «Сургутнефтегаз»
A16: МУП «Сургутские районные электрические сети» муниципального образования Сургутский район
A17: ООО «РН-Юганскнефтегаз»
A18: ООО «Газпром энерго»
A19: ООО «Газпромнефть-Хантос»
A20: АО "Югорская территориальная энергетическая компания - Региональные сети"
A21: АО "ЮРЭСК"
A22: ООО "Сургутские городские электрические сети"
A23: АО "Черногорэнерго"
A24: ООО "Энергонефть Томск"
A25: ООО «Газпромнефть Энергосистемы»
A26: АО «Энерго-Газ-Ноябрьск»
A27: АО «Губкинские городские электрические сети»
A28: МУП «Надымские городские электрические сети»
A29: АО "Уренгойская электросетевая компания
A30: ООО "СеверСетьРазвитие"

Sheet Приложение
B1: ="Расчет фактических расходов на выполнение мероприятий по технологическому присоединению, предусмотренных подпунктами 'а' и 'в' пункта 16 Методических указаний, за " & Титульный!D10-2 & " г."& "(выполняется отдельно по мероприятиям, предусмотренным подпунктами 'а' и 'в' пункта 16 Методических указаний)" -> Расчет фактических расходов на выполнение мероприятий по технологическому присоединению, предусмотренных подпунктами 'а' и 'в' пункта 16 Методических указаний, за 2023 г.(выполняется отдельно по мероприятиям, предусмотренным подпунктами 'а' и 'в' пункта 16 Методических указаний)
D5: руб.
B6: N п/п | C6: Показатели | D6: ="Данные за предыдущий период регулирования (n-2) "& Титульный!D10-2 & " год" -> Данные за предыдущий период регулирования (n-2) 2023 год | E6: ="Данные за год (n-3), предшествующий предыдущему периоду регулирования " & Титульный!D10-3 & " год" -> Данные за год (n-3), предшествующий предыдущему периоду регулирования 2022 год | F6: ="Данные за год (n-4), предшествующий году (n-3) " & Титульный!D10-4 &" год" -> Данные за год (n-4), предшествующий году (n-3) 2021 год
B7: 1 | C7: 2 | D7: 3 | E7: 4 | F7: 5
B8: 1. | C8: Расходы по выполнению мероприятий по технологическому присоединению, всего | D8: =SUM(D9:D13)+D22 -> 7028.87387 | E8: =SUM(E9:E13) -> 0 | F8: =SUM(F9:F13) -> 0
B9: 1.1. | C9: Вспомогательные материалы | D9: 6241
B10: 1.2. | C10: Энергия на хозяйственные нужды
B11: 1.3. | C11: Оплата труда ППП | D11: 535.38599
B12: 1.4. | C12: Отчисления на страховые взносы | D12: 152.08614
B13: 1.5. | C13: Прочие расходы, всего, в том числе: | D13: =SUM(D14:D16) -> 100.40174
B14: 1.5.1. | C14: - работы и услуги производственного характера
B15: 1.5.2. | C15: - налоги и сборы, уменьшающие налогооблагаемую базу на прибыль организаций, всего
B16: 1.5.3. | C16: - работы и услуги непроизводственного характера, в том числе: | D16: =SUM(D17:D21) -> 100.40174
B17: 1.5.3.1. | C17: услуги связи | D17: =+([1]Лист_1!$D$61+[1]Лист_1!$D$62+[1]Лист_1!$D$63+[1]Лист_1!$D$64+[1]Лист_1!$D$65)/1000 -> 1.45817
B18: 1.5.3.2. | C18: расходы на охрану и пожарную безопасность | D18: =+([1]Лист_1!$D$67+[1]Лист_1!$D$68)/1000 -> 1.1571
B19: 1.5.3.3. | C19: расходы на информационное обслуживание, иные услуги, связанные с деятельностью по технологическому присоединению | D19: 8.08238
B20: 1.5.3.4. | C20: плата за аренду имущества | D20: 2.02667
B21: 1.5.3.5. | C21: другие прочие расходы, связанные с производством и реализацией | D21: 87.67742
B22: 1.6. | C22: Внереализационные расходы, всего | D22: =SUM(D23:D26) -> 0
B23: 1.6.1. | C23: - расходы на услуги банков
B24: 1.6.2. | C24: - % за пользование кредитом
B25: 1.6.3. | C25: - прочие обоснованные расходы
B26: 1.6.4. | C26: - денежные выплаты социального характера (по Коллективному договору)

Sheet Наименования ставок (hidden)
C2: 2. воздушные линии | L2: 3. кабельные линии | T2: 4. пункты секционирования (реклоузеры, распределительные пункты, переключательные пункты) | Z2: 5. трансформаторные подстанции (ТП), за исключением распределительных трансформаторных подстанций (РТП), с уровнем напряжения до 35 кВ | AF2: 6. распределительные трансформаторные подстанции (РТП) с уровнем напряжения до 35 кВ | AK2: 7. подстанции уровнем напряжения 35 кВ и выше | AP2: 8. обеспечение средствами коммерческого учета электрической энергии (мощности)
A3: Ст | C3: территория | D3: опоры | E3: изоляция | F3: материал | G3: сечение | H3: количество цепей | I3: напряжение | L3: территория | M3: способ прокладки | N3: вид жилы | O3: изоляция | P3: сечение | Q3: количество кабелей | R3: напряжение | T3: территория | U3: техническое исполнение | V3: номинальный ток | W3: Количество ячеек | X3: напряжение | Z3: территория | AA3: количество трансформаторов | AB3: мощность трансформаторов | AC3: тип исполнения | AD3: напряжение | AF3: территория | AG3: количество трансформаторов | AH3: мощность трансформаторов | AI3: напряжение | AK3: территория | AL3: количество трансформаторов | AM3: мощность трансформаторов | AN3: напряжение | AP3: территория | AQ3: количество фаз | AR3: способ подключения | AS3: напряжение
A4: 1 | C4: Городское | D4: деревянных | E4: изолированым | F4: медным | G4: до 50 квадратных мм включительно | H4: 1. Одноцепные | I4: 1. 0,4 кВ и ниже | L4: город | M4: траншея | N4: одножильный | O4: резиновая или пластмассовая | P4: до 50 квадратных мм включительно | Q4: 1 | R4: 0,4 кВ и ниже | T4: город | U4: реклоузер | V4: до 100 А | W4: от 5 до 10 включительно | X4: 0,4 кВ и ниже | Z4: город | AA4: один | AB4: до 25 кВА включительно | AC4: столбового/мачтового | AD4: 6/0,4 кВ | AF4: город | AG4: один | AH4: до 25 кВА включительно | AI4: 6(10)/0,4 кВ | AK4: город | AL4: один | AM4: до 6,3 МВА включительно | AN4: 35/6(10) кВ | AP4: город | AQ4: однофазные | AR4: прямого включения | AS4: 0,4 кВ и ниже
A5: 2 | C5: Не городское | D5: металлических | E5: неизолированным | F5: стальным | G5: от 50 до 100 квадратных мм включительно | H5: 2. Двухцепные | I5: 2. 1 - 20 кВ | L5: не город | M5: блоки | N5: многожильный | O5: бумажная | P5: от 50 до 100 квадратных мм включительно | Q5: 2 | R5: 1 - 10 кВ | T5: не город | U5: линейные разъединители | V5: от 100 до 250 А включительно | W5: от 10 до 15 включительно | X5: 1 - 20 кВ | Z5: не город | AA5: два | AB5: от 25 до 100 кВА включительно | AC5: шкафного или киоскового | AD5: 10/0,4 кВ | AF5: не город | AG5: два | AH5: от 25 до 100 кВА включительно | AI5: 20/0,4 кВ | AK5: не город | AL5: два | AM5: от 6,3 МВА до 10 МВА включительно | AN5: 35/0,4 кВ | AP5: не город | AQ5: трехфазные | AR5: полукосвенного включения | AS5: 1 - 20 кВ
A6: 3 | D6: металлических, за исключением многогранных | F6: сталеалюминиевым | G6: от 100 до 200 квадратных мм включительно | I6: 3. 27,5 - 60 кВ | M6: каналы | P6: от 100 до 200 квадратных мм включительно | Q6: 3 | R6: 15 - 20 кВ | U6: выключатели нагрузки, устанавливаемые вне трансформаторных подстанций и распределительных и переключательных пунктов, | V6: от 250 до 500 А включительно | W6: свыше 15 | X6: 35 кВ | AB6: от 100 до 250 кВА включительно | AC6: блочного | AD6: 20/0,4 кВ | AH6: от 100 до 250 кВА включительно | AM6: от 10 МВА до 16 МВА включительно | AN6: 110/35 кВ | AR6: косвенного включения | AS6: 35 кВ
A7: 4 | D7: металлических многогранных | F7: алюминиевым | G7: от 200 до 500 квадратных мм включительно | I7: 4. 110 кВ и выше | M7: туннели и коллекторы | P7: от 200 до 250 квадратных мм включительно | Q7: 4 | R7: 27,5 - 60 кВ | U7: распределительные пункты (РП), за исключением комплектных распределительных устройств наружной установки (КРН, КРУН), | V7: от 500 до 1000 А включительно | X7: 110 кВ и выше | AB7: от 250 до 400 кВА включительно | AD7: 6/10 (10/6) кВ | AH7: от 250 до 400 кВА включительно | AM7: от 16 МВА до 25 МВА включительно | AN7: 110/6(10) кВ | AS7: 110 кВ и выше
A8: 5 | D8: железобетонных | G8: от 500 до 800 квадратных мм включительно | M8: галереи и эстакады | P8: от 250 до 300 квадратных мм включительно | Q8: более 4 | R8: 110 кВ и выше | U8: комплектные распределительные устройства наружной установки (КРН, КРУН) | V8: свыше 1000 А | AB8: от 400 до 1000 кВА включительно | AD8: 10/20 (20/10) кВ | AH8: от 400 до 1000 кВА включительно | AM8: от 25 МВА до 32 МВА включительно | AN8: 110/35/6(10) кВ
A9: 6 | G9: свыше 800 квадратных мм | M9: метод горизонтального наклонного бурения | P9: от 300 до 400 квадратных мм включительно | U9: переключательные пункты | AB9: от 1000 кВА до 1250 кВА | AD9: 6/20 (20/6) кВ | AH9: от 1000 кВА до 1250 кВА | AM9: от 32 МВА до 40 МВА включительно
M10: подводная прокладка | P10: от 400 до 500 квадратных мм включительно | AB10: от 1250 кВА до 1600 кВА включительно | AH10: от 1250 кВА до 1600 кВА включительно | AM10: от 40 МВА до 63 МВА включительно
C11: территория | D11: опоры | E11: изоляция | F11: материал | G11: сечение | H11: количество цепей | I11: напряжение | P11: от 500 до 800 квадратных мм включительно | AB11: от 1600 кВА до 2000 кВА включительно | AH11: от 1600 кВА до 2000 кВА включительно | AM11: от 63 МВА до 80 МВА включительно
C12: город | D12: деревянные | E12: изолированый | F12: медный | G12: до 50 квадратных мм включительно | H12: одноцепные | I12: 0,4 кВ и ниже | P12: свыше 800 квадратных мм | AB12: от 2000 кВА до 2500 кВА включительно | AH12: от 2000 кВА до 2500 кВА включительно | AM12: от 80 МВА до 100 МВА включительно
C13: не город | D13: металлические | E13: неизолированный | F13: стальной | G13: от 50 до 100 квадратных мм включительно | H13: двухцепные | I13: 1 - 20 кВ | AB13: от 2500 кВА до 3150 кВА включительно | AH13: от 2500 кВА до 3150 кВА включительно | AM13: свыше 100 МВА
D14: металлические, за исключением многогранных | F14: сталеалюминиевый | G14: от 100 до 200 квадратных мм включительно | I14: 27,5 - 60 кВ | AB14: от 3150 кВА до 4000 кВА включительно | AH14: от 3150 кВА до 4000 кВА включительно
D15: металлические многогранные | F15: алюминиевый | G15: от 200 до 500 квадратных мм включительно | I15: 110 кВ и выше | AB15: свыше 4000 кВА | AH15: свыше 4000 кВА
D16: железобетонные | G16: от 500 до 800 квадратных мм включительно
G17: свыше 800 квадратных мм

Sheet Teh_Sheet (hidden)
C2: 2. воздушные линии | M2: 3. кабельные линии | U2: 4. пункты секционирования (реклоузеры, распределительные пункты, переключательные пункты) | AA2: 5. трансформаторные подстанции (ТП), за исключением распределительных трансформаторных подстанций (РТП), с уровнем напряжения до 35 кВ | AG2: 6. распределительные трансформаторные подстанции (РТП) с уровнем напряжения до 35 кВ | AM2: 7. подстанции уровнем напряжения 35 кВ и выше | AS2: 8. обеспечение средствами коммерческого учета электрической энергии (мощности)
A3: Ст | C3: территория | D3: опоры | E3: изоляция | F3: материал | G3: сечение | H3: количество цепей | I3: напряжение | J3: напряжение 2) | K3: напряжение 2.) | M3: территория | N3: способ прокладки | O3: вид жилы | P3: изоляция | Q3: сечение | R3: количество кабелей | S3: напряжение | U3: территория | V3: техническое исполнение | W3: номинальный ток | X3: Количество ячеек | Y3: напряжение | AA3: Территория | AB3: Количество трансформаторов | AC3: Мощность трансформаторов | AD3: Тип исполнения | AE3: Напряжение | AG3: Территория | AH3: Количество трансформаторов | AI3: Мощность трансформаторов | AJ3: Тип исполнения | AK3: Напряжение | AM3: территория | AN3: количество трансформаторов | AO3: Мощность трансформаторов | AP3: Тип исполнения | AQ3: Напряжение | AS3: территория | AT3: Количество фаз | AU3: Способ подключения | AV3: Напряжение
A4: 1) | C4: I ) Город | D4: 1) Деревянные | E4: 1) Изолированый | F4: 1) Медный | G4: 1) до 50 квадратных мм включительно | H4: 1) Одноцепные | I4: 1) 0,4 кВ и ниже | J4: 1) 0,4 кВ и ниже | K4: 3) 27,5 - 60 кВ | M4: I ) Город | N4: 1) траншея | O4: 1) одножильный | P4: 1) резиновая или пластмассовая | Q4: 1) до 50 квадратных мм включительно | R4: 1) один | S4: 1) 0,4 кВ и ниже | U4: I ) Город | V4: 1) реклоузер | W4: 1) до 100 А | X4: 1) до 5 включительно | Y4: 1) 0,4 кВ и ниже | AA4: I ) Город | AB4: 1) один | AC4: 1.) до 25 кВА включительно | AD4: 1) столбового/мачтового | AE4: 1) 6/0,4 кВ | AG4: I ) Город | AH4: 1) один | AI4: 1.) до 25 кВА включительно | AJ4: 1) открытого | AK4: 1) 6(10)/0,4 кВ | AM4: I ) Город | AN4: 1) один | AO4: 1.) до 6,3 МВА включительно | AP4: 1) открытого | AQ4: 1) 35/6(10) кВ | AS4: I ) Город | AT4: 1) однофазные | AU4: 1) прямого включения | AV4: 1) 0,4 кВ и ниже
A5: 2) | C5: II) Не город | D5: 2) Металлические | E5: 2) Неизолированный | F5: 2) Стальной | G5: 2) от 50 до 100 квадратных мм включительно | H5: 2) Двухцепные | I5: 2) 1 - 20 кВ | J5: 2) 1 - 20 кВ | K5: 4) 110 кВ и выше | M5: II) Не город | N5: 2) блоки | O5: 2) многожильный | P5: 2) бумажная | Q5: 2) от 50 до 100 квадратных мм включительно | R5: 2) два | S5: 2) 1 - 10 кВ | U5: II) Не город | V5: 2) линейные разъединители | W5: 2) от 100 до 250 А включительно | X5: 2) от 5 до 10 включительно | Y5: 2) 1 - 20 кВ | AA5: II) Не город | AB5: 2) два | AC5: 2.) от 25 до 100 кВА включительно | AD5: 2) шкафного или киоскового | AE5: 2) 10/0,4 кВ | AG5: II) Не город | AH5: 1) два | AI5: 2.) от 25 до 100 кВА включительно | AJ5: 2) закрытого | AK5: 2) 20/0,4 кВ | AM5: II) Не город | AN5: 2) два | AO5: 2.) от 6,3 МВА до 10 МВА включительно | AP5: 2) закрытого | AQ5: 2) 35/0,4 кВ | AS5: II) Не город | AT5: 2) трехфазные | AU5: 2) полукосвенного включения | AV5: 2) 1 -10 кВ
A6: 3) | D6: 2.1) Металлические, за исключением многогранных | F6: 3) Сталеалюминиевый | G6: 3) от 100 до 200 квадратных мм включительно | I6: 3) 27,5 - 60 кВ | N6: 3) каналы | Q6: 3) от 100 до 200 квадратных мм включительно | R6: 3) три | S6: 3) 15 - 20 кВ | V6: 3) выключатели нагрузки | W6: 3) от 250 до 500 А включительно | X6: 3) от 10 до 15 включительно | Y6: 3) 35 кВ | AC6: 3.) от 100 до 250 кВА включительно | AD6: 3) блочного | AE6: 3) 20/0,4 кВ | AI6: 3.) от 100 до 250 кВА включительно | AO6: 3.) от 10 МВА до 16 МВА включительно | AQ6: 3) 110/35 кВ | AU6: 3) косвенного включения | AV6: 3) 20 кВ
A7: 4) | D7: 2.2) Металлические многогранные | F7: 4) Алюминиевый | G7: 4) от 200 до 500 квадратных мм включительно | I7: 4) 110 кВ и выше | N7: 4) туннели и коллекторы | Q7: 4) от 200 до 250 квадратных мм включительно | R7: 4) четыре | S7: 4) 27,5 - 60 кВ | V7: 4) распределительные пункты, за исключением КРН, КРУН | W7: 4) от 500 до 1000 А включительно | X7: 4) свыше 15 | Y7: 4) 110 кВ и выше | AC7: 4.) от 250 до 400 кВА включительно | AD7: 4) встроенного | AE7: 4) 6/10 (10/6) кВ | AI7: 4.) от 250 до 400 кВА включительно | AO7: 4.) от 16 МВА до 25 МВА включительно | AQ7: 4) 110/6(10) кВ | AV7: 4) 35 кВ
A8: 5) | D8: 3) Железобетонные | G8: 5) от 500 до 800 квадратных мм включительно | N8: 5) галереи и эстакады | Q8: 5) от 250 до 300 квадратных мм включительно | R8: 5) более четырех | S8: 5) 110 кВ и выше | V8: 5) КРН, КРУН | W8: 5) свыше 1000 А | AC8: 5.) от 400 до 630 кВА включительно | AE8: 5) 10/20 (20/10) кВ | AI8: 5.) от 400 до 630 кВА включительно | AO8: 5.) от 25 МВА до 32 МВА включительно | AQ8: 5) 110/35/6(10) кВ | AV8: 5) 110 кВ и выше
A9: 6) | G9: 6) свыше 800 квадратных мм | N9: 6) метод горизонтального наклонного бурения | Q9: 6) от 300 до 400 квадратных мм включительно | V9: 6) переключательные пункты | AC9: 6.) от 630 кВА до 1000 кВА | AE9: 6) 6/20 (20/6) кВ | AI9: 6.) от 630 кВА до 1000 кВА | AO9: 6.) от 32 МВА до 40 МВА включительно
A10: 7) | N10: 7) подводная прокладка | Q10: 7) от 400 до 500 квадратных мм включительно | AC10: 7.) от 1000 кВА до 1250 кВА | AI10: 7.) от 1000 кВА до 1250 кВА | AO10: 7.) от 40 МВА до 63 МВА включительно
A11: 8) | Q11: 8) от 500 до 800 квадратных мм включительно | AC11: 8.) от 1250 кВА до 1600 кВА включительно | AI11: 8.) от 1250 кВА до 1600 кВА включительно | AO11: 8.) от 63 МВА до 80 МВА включительно
A12: 9) | Q12: 9) свыше 800 квадратных мм | AC12: 9.) от 1600 кВА до 2000 кВА включительно | AI12: 9.) от 1600 кВА до 2000 кВА включительно | AO12: 9.) от 80 МВА до 100 МВА включительно
A13: 10) | AC13: 10) от 2000 кВА до 2500 кВА включительно | AI13: 10) от 2000 кВА до 2500 кВА включительно | AO13: 10) свыше 100 МВА
A14: 11) | AC14: 11) от 2500 кВА до 3150 кВА включительно | AI14: 11) от 2500 кВА до 3150 кВА включительно
A15: 12) | AC15: 12) от 3150 кВА до 4000 кВА включительно | AI15: 12) свыше 3150 кВА
A16: 13) | AC16: 13) свыше 4000 кВА

Sheet 1.1Назв. объ. эл. сетевого хоз. (hidden)
A1: 2. ВЛ | D1: 3. КЛ | H1: 4. Реклоузеры, линейные разъединители, выключатели нагрузки + распределительные пункты (РП), за исключением комплектных распределительных устройств наружной установки (КРН, КРУН), комплектные распределительные устройства наружной установки (КРН, КРУН) , переключательные пункты | K1: 5. трансформаторные подстанции (ТП), за исключением распределительных трансформаторных подстанций (РТП), с уровнем напряжения до 35 кВ | N1: 6. распределительные трансформаторные подстанции (РТП) с уровнем напряжения до 35 кВ | Q1: 7. подстанции уровнем напряжения 35 кВ и выше | T1: 8. обеспечение средствами коммерческого учета электрической энергии (мощности)
A2: 1) Деревянные | B2: деревянных опорах | D2: 1) траншея | E2: в траншеях | F2: в траншее | H2: 1) реклоузер | I2: реклоузеры | K2: 1) один | L2: однотрансформаторные подстанции (за исключением РТП) | N2: 1) один | O2: распределительные однотрансформаторные подстанции | Q2: 1.) до 6,3 МВА включительно | R2: до 6,3 МВА включительно | T2: 1) однофазные | U2: однофазные
A3: 2) Металлические | B3: металлических опорах | D3: 2) блоки | E3: в блоках | F3: в блоке | H3: 2) линейные разъединители | I3: линейные разъединители | K3: 2) два | L3: двухтрансформаторные и более подстанции (за исключением РТП) | N3: 2) два | O3: распределительные двухтрансформаторные подстанции | Q3: 2.) от 6,3 МВА до 10 МВА включительно | R3: от 6,3 МВА до 10 МВА включительно | T3: 2) трехфазные | U3: трехфазные
A4: 2.1) Металлические, за исключением многогранных | B4: металлических опорах, за исключением многогранных | D4: 3) каналы | E4: в каналах | F4: в канале | H4: 3) выключатели нагрузки | I4: выключатели нагрузки, устанавливаемые вне трансформаторных подстанций и распределительных и переключательных пунктов, | K4: 1.) до 25 кВА включительно | L4: мощностью до 25 кВА включительно | N4: 1.) до 25 кВА включительно | O4: до 25 кВА включительно | Q4: 3.) от 10 МВА до 16 МВА включительно | R4: от 10 МВА до 16 МВА включительно | T4: 1) прямого включения | U4: прямого включения
A5: 2.2) Металлические многогранные | B5: многогранных металлических опорах | D5: 4) туннели и коллекторы | E5: в туннелях и коллекторах | F5: в туннеле или коллекторе | H5: 4) распределительные пункты, за исключением КРН, КРУН | I5: распределительные пункты (РП), за исключением комплектных распределительных устройств наружной установки (КРН, КРУН), | K5: 2.) от 25 до 100 кВА включительно | L5: мощностью от 25 до 100 кВА включительно | N5: 2.) от 25 до 100 кВА включительно | O5: от 25 до 100 кВА включительно | Q5: 4.) от 16 МВА до 25 МВА включительно | R5: от 16 МВА до 25 МВА включительно | T5: 2) полукосвенного включения | U5: полукосвенного включения
A6: 3) Железобетонные | B6: железобетонных опорах | D6: 5) галереи и эстакады | E6: в галереях и эстакадах | F6: в галерее или на эстакаде | H6: 5) КРН, КРУН | I6: комплектные распределительные устройства наружной установки (КРН, КРУН), | K6: 3.) от 100 до 250 кВА включительно | L6: мощностью от 100 до 250 кВА включительно | N6: 3.) от 100 до 250 кВА включительно | O6: от 100 до 250 кВА включительно | Q6: 5.) от 25 МВА до 32 МВА включительно | R6: от 25 МВА до 32 МВА включительно | T6: 3) косвенного включения | U6: косвенного включения
A7: 1) Изолированый | B7: изолированым | D7: 6) метод горизонтального наклонного бурения | E7: , прокладываемые методом горизонтального наклонного бурения | H7: 6) переключательные пункты | I7: переключательные пункты | K7: 4.) от 250 до 400 кВА включительно | L7: мощностью от 250 до 400 кВА включительно | N7: 4.) от 250 до 400 кВА включительно | O7: от 250 до 400 кВА включительно | Q7: 6.) от 32 МВА до 40 МВА включительно | R7: от 32 МВА до 40 МВА включительно
A8: 2) Неизолированный | B8: неизолированным | D8: 7) подводная прокладка | E8: подводной прокладки, | F8: подводной прокладки, | H8: 1) до 100 А | I8: до 100 А включительно | K8: 5.) от 400 до 630 кВА включительно | L8: мощностью от 400 до 630 кВА включительно | N8: 5.) от 400 до 630 кВА включительно | O8: от 400 до 630 кВА включительно | Q8: 7.) от 40 МВА до 63 МВА включительно | R8: от 40 МВА до 63 МВА включительно
A9: 1) Медный | B9: медным | D9: 1) одножильный | E9: одножильные | H9: 2) от 100 до 250 А включительно | I9: от 100 до 250 А включительно | K9: 6.) от 630 кВА до 1000 кВА | L9: мощностью от 630 кВА до 1000 кВА | N9: 6.) от 630 кВА до 1000 кВА | O9: от 630 кВА до 1000 кВА | Q9: 8.) от 63 МВА до 80 МВА включительно | R9: от 63 МВА до 80 МВА включительно
A10: 2) Стальной | B10: стальным | D10: 2) многожильный | E10: многожильные | H10: 3) от 250 до 500 А включительно | I10: от 250 до 500 А включительно | K10: 7.) от 1000 кВА до 1250 кВА | L10: мощностью от 1000 кВА до 1250 кВА | N10: 7.) от 1000 кВА до 1250 кВА | O10: от 1000 кВА до 1250 кВА | Q10: 9.) от 80 МВА до 100 МВА включительно | R10: от 80 МВА до 100 МВА включительно
A11: 3) Сталеалюминиевый | B11: сталеалюминиевым | D11: 1) резиновая или пластмассовая | E11: резиновой или пластмассовой | H11: 4) от 500 до 1000 А включительно | I11: от 500 до 1000 А включительно | K11: 8.) от 1250 кВА до 1600 кВА включительно | L11: мощностью от 1250 кВА до 1600 кВА включительно | N11: 8.) от 1250 кВА до 1600 кВА включительно | O11: от 1250 кВА до 1600 кВА включительно | Q11: 10) свыше 100 МВА | R11: свыше 100 МВА
A12: 4) Алюминиевый | B12: алюминиевым | D12: 2) бумажная | E12: бумажной | H12: 5) свыше 1000 А | I12: свыше 1000 А | K12: 9.) от 1600 кВА до 2000 кВА включительно | L12: мощностью от 1600 кВА до 2000 кВА включительно | N12: 9.) от 1600 кВА до 2000 кВА включительно | O12: от 1600 кВА до 2000 кВА включительно | Q12: 1) 35/6(10) кВ | R12: 35/6(10) кВ
A13: 1) до 50 квадратных мм включительно | B13: до 50 квадратных мм включительно | D13: 1) до 50 квадратных мм включительно | E13: до 50 квадратных мм включительно | H13: 1) до 5 включительно | I13: до 5 включительно | K13: 10) от 2000 кВА до 2500 кВА включительно | L13: мощностью от 2000 кВА до 2500 кВА включительно | N13: 10) от 2000 кВА до 2500 кВА включительно | O13: от 2000 кВА до 2500 кВА включительно | Q13: 2) 35/0,4 кВ | R13: 35/0,4 кВ
A14: 2) от 50 до 100 квадратных мм включительно | B14: от 50 до 100 квадратных мм включительно | D14: 2) от 50 до 100 квадратных мм включительно | E14: от 50 до 100 квадратных мм включительно | H14: 2) от 5 до 10 включительно | I14: от 5 до 10 включительно | K14: 11) от 2500 кВА до 3150 кВА включительно | L14: мощностью от 2500 кВА до 3150 кВА включительно | N14: 11) от 2500 кВА до 3150 кВА включительно | O14: от 2500 кВА до 3150 кВА включительно | Q14: 3) 110/35 кВ | R14: 110/35 кВ
A15: 3) от 100 до 200 квадратных мм включительно | B15: от 100 до 200 квадратных мм включительно | D15: 3) от 100 до 200 квадратных мм включительно | E15: от 100 до 200 квадратных мм включительно | H15: 3) от 10 до 15 включительно | I15: от 10 до 15 включительно | K15: 12) от 3150 кВА до 4000 кВА включительно | L15: мощностью от 3150 кВА до 4000 кВА включительно | N15: 12) свыше 3150 кВА | O15: свыше 3150 кВА | Q15: 4) 110/6(10) кВ | R15: 110/6(10) кВ
A16: 4) от 200 до 500 квадратных мм включительно | B16: от 200 до 500 квадратных мм включительно | D16: 4) от 200 до 250 квадратных мм включительно | E16: от 200 до 250 квадратных мм включительно | H16: 4) свыше 15 | I16: свыше 15 | K16: 13) свыше 4000 кВА | L16: мощностью свыше 4000 кВА | N16: 1) открытого | O16: открытого типа | Q16: 5) 110/35/6(10) кВ | R16: 110/35/6(10) кВ
A17: 5) от 500 до 800 квадратных мм включительно | B17: от 500 до 800 квадратных мм включительно | D17: 5) от 250 до 300 квадратных мм включительно | E17: от 250 до 300 квадратных мм включительно | H17: 1) 0,4 кВ и ниже | I17: 0,4 кВ и ниже | K17: 1) столбового/мачтового | L17: столбового/мачтового типа | N17: 2) закрытого | O17: закрытого типа | Q17: 1) один | R17: однотрансформаторные подстанции
A18: 6) свыше 800 квадратных мм | B18: свыше 800 квадратных мм | D18: 6) от 300 до 400 квадратных мм включительно | E18: от 300 до 400 квадратных мм включительно | H18: 2) 1 - 20 кВ | I18: 1 - 20 кВ | K18: 2) шкафного или киоскового | L18: шкафного или киоскового типа | N18: 1) 6(10)/0,4 кВ | O18: 6(10)/0,4 кВ | Q18: 2) два | R18: двухтрансформаторные подстанции
A19: 1) Одноцепные | B19: одноцепные | D19: 7) от 400 до 500 квадратных мм включительно | E19: от 400 до 500 квадратных мм включительно | H19: 3) 35 кВ | I19: 35 кВ | K19: 3) блочного | L19: блочного типа | N19: 2) 20/0,4 кВ | O19: 20/0,4 кВ | Q19: 1) открытого | R19: открытого типа
A20: 2) Двухцепные | B20: двухцепные | D20: 8) от 500 до 800 квадратных мм включительно | E20: от 500 до 800 квадратных мм включительно | H20: 4) 110 кВ и выше | I20: 110 кВ и выше | K20: 4) встроенного | L20: встроенного типа | Q20: 2) закрытого | R20: закрытого типа
A21: 1) 0,4 кВ и ниже | B21: 0.4 | D21: 9) свыше 800 квадратных мм | E21: свыше 800 квадратных мм | K21: 1) 6/0,4 кВ | L21: 6/0,4 кВ
A22: 2) 1 - 20 кВ | B22: 1 - 20 | D22: 1) один | E22: с одним кабелем | F22: с одной трубой в скважине | K22: 2) 10/0,4 кВ | L22: 10/0,4 кВ
A23: 3) 27,5 - 60 кВ | B23: 27,5 - 60 | D23: 2) два | E23: с двумя кабелями | F23: с двумя трубами в скважине | K23: 3) 20/0,4 кВ | L23: 20/0,4 кВ
A24: 4) 110 кВ и выше | B24: 110 | D24: 3) три | E24: с тремя кабелями | F24: с тремя трубами в скважине | K24: 4) 6/10 (10/6) кВ | L24: 6/10 (10/6) кВ
D25: 4) четыре | E25: с четырьмя кабелями | F25: с четырьмя трубами в скважине | K25: 5) 10/20 (20/10) кВ | L25: 10/20 (20/10) кВ
D26: 5) более четырех | E26: кабелей более четырех | F26: труб более четырех | K26: 6) 6/20 (20/6) кВ | L26: 6/20 (20/6) кВ
D27: 1) 0,4 кВ и ниже | E27: 0,4 кВ и ниже
D28: 2) 1 - 10 кВ | E28: 1 - 10 кВ
D29: 3) 15 - 20 кВ | E29: 15 - 20 кВ
D30: 4) 27,5 - 60 кВ | E30: 27,5 - 60 кВ
D31: 5) 110 кВ и выше | E31: 110 кВ и выше
